Body Name,Trans. Date,Department Code,Department,Expense Area Code,Expense Area,Expense type code,Expense type,Amount Paid (�),Supplier name,Extended description,TransNo,Period
Rother District Council,22/05/2020,041ENVIRON,Environmental Services,32133,EH Food Hyg / Idc / Water Purity R + W Partnership,D2513,Hired and Contracted services,129.75,Brady Corporation Ltd (T/A Seton),Hired and contracted services - Service fee paid,2017992,202007
Rother District Council,03/08/2020,041ENVIRON,Environmental Services,32136,EH Pest Control R + W Partnership,D2352,Clothing and Uniforms,72.63,Brady Corporation Ltd (T/A Seton),Clothing and Uniforms - EnvH- Protective Clothing EnvHealth,2018682,202007
Rother District Council,31/08/2020,091HOUSING,Housing and Community Services,20108,Bexhill Promenade & Foreshore,B1100,Repairs to Premises,37.05,REDACTED PERSONAL DATA,Repairs to Premises - Purchase of Materials - Build Maint,2019398,202007
Rother District Council,03/09/2020,081ACQUISIT,"Acquisitions, Transformation and Regeneration",20144,Property Management,D2513,Hired and Contracted services,399,The Crown Estate,Hired and Contracted services,2019401,202007
Rother District Council,09/09/2020,091HOUSING,Housing and Community Services,20109,Sports Development,D2923,Grants made,320,Skiltek Ltd,Grants made - Sports Development Projects,2019425,202007
Rother District Council,09/09/2020,091HOUSING,Housing and Community Services,20109,Sports Development,D2923,Grants made,320,Skiltek Ltd,Grants made - Sports Development-Active Rother,2019425,202007
Rother District Council,09/09/2020,091HOUSING,Housing and Community Services,20109,Sports Development,D2923,Grants made,640,Skiltek Ltd,Grants made - Sports Development-Active Rother,2019425,202007
Rother District Council,14/09/2020,091HOUSING,Housing and Community Services,20114,Bexhill Parks & Open Spaces,B1100,Repairs to Premises,78.55,Littlewood Fencing Ltd,Repairs to Premises - Purchase of Materials - Build Maint,2019452,202007
Rother District Council,01/09/2020,091HOUSING,Housing and Community Services,20261,"TA Purchases (prev - 41 Jameson Mews, Bexhill on Sea)",B1100,Repairs to Premises,30.97,Graham,Repairs to Premises - Purchase of Materials - Build Maint,2019458,202007
Rother District Council,28/08/2020,081ACQUISIT,"Acquisitions, Transformation and Regeneration",20155,Investment properties,B1100,Repairs to Premises,35,Graham,Repairs to Premises - Purchase of Materials - Build Maint,2019459,202007
Rother District Council,16/09/2020,091HOUSING,Housing and Community Services,20108,Bexhill Promenade & Foreshore,D2513,Hired and Contracted services,425,Hailsham Roadway Construction Ltd,Repairs to Premises - Specified Repairs and Works listed,2019567,202007
Rother District Council,16/09/2020,101RESOURCES,Resources,20216,Cost Of Collection,D2513,Hired and Contracted services,860,Inform CPI Ltd,Hired and contracted services - RV Finder,2019582,202007
Rother District Council,17/09/2020,101RESOURCES,Resources,20216,Cost Of Collection,D2626,Postages,374.11,DSI Billing Services Ltd,Postages - DSI Billing,2019589,202007
Rother District Council,22/09/2020,091HOUSING,Housing and Community Services,20200,Housing Needs - HB (Housing Benefit),D2514,Accommodation Costs,"1,980.00",Key Property Solutions Guaranteed Ltd,Accommodation Costs,2019679,202007
Rother District Council,11/09/2020,081ACQUISIT,"Acquisitions, Transformation and Regeneration",20155,Investment properties,B1100,Repairs to Premises,6.73,Graham,Repairs to Premises - Purchase of Materials - Build Maint,2019703,202007
Rother District Council,11/09/2020,081ACQUISIT,"Acquisitions, Transformation and Regeneration",20155,Investment properties,B1100,Repairs to Premises,14.76,Graham,Repairs to Premises - Purchase of Materials - Build Maint,2019725,202007
Rother District Council,10/09/2020,091HOUSING,Housing and Community Services,20128,Public Conveniences,B1100,Repairs to Premises,16.48,Graham,Repairs to Premises - Purchase of Materials - Build Maint,2019726,202007
Rother District Council,10/09/2020,091HOUSING,Housing and Community Services,20128,Public Conveniences,B1100,Repairs to Premises,36.69,Graham,Repairs to Premises - Purchase of Materials - Build Maint,2019727,202007
Rother District Council,08/09/2020,091HOUSING,Housing and Community Services,20128,Public Conveniences,B1100,Repairs to Premises,8.29,Graham,Repairs to Premises - Purchase of Materials - Build Maint,2019728,202007
Rother District Council,09/09/2020,031RESOURCES,Executive Directors & Corporate Core,20173,Administrative Offices - Town Hall,B1100,Repairs to Premises,22.8,Saint-Gobain Building Distribution Ltd t/a Jewson,Repairs to Premises - Purchase of Materials - Build Maint,2019731,202007
Rother District Council,11/09/2020,081ACQUISIT,"Acquisitions, Transformation and Regeneration",20155,Investment properties,B1100,Repairs to Premises,26.09,Saint-Gobain Building Distribution Ltd t/a Jewson,Repairs to Premises - Purchase of Materials - Build Maint,2019732,202007
Rother District Council,01/10/2020,091HOUSING,Housing and Community Services,20202,Rother Tenant Finder (prev Rother Letting Service),D2514,Accommodation Costs,163.1,Moonpool Properties Ltd,Accommodation Costs - Homelessness services Rent in Advance for Homeless,2019735,202007
Rother District Council,24/09/2020,091HOUSING,Housing and Community Services,20114,Bexhill Parks & Open Spaces,B1100,Repairs to Premises,74.13,Littlewood Fencing Ltd,Repairs to Premises,2019739,202007
Rother District Council,13/08/2020,041ENVIRON,Environmental Services,32134,EH Pollution R + W Partnership,D2513,Hired and Contracted services,6.65,Wealden and Eastbourne Lifeline,Hired and contracted services - Out Of Hours Call Answering Service,2019740,202007
Rother District Council,13/08/2020,041ENVIRON,Environmental Services,32134,EH Pollution R + W Partnership,D2513,Hired and Contracted services,40.3,Wealden and Eastbourne Lifeline,Hired and contracted services - Out Of Hours Call Answering Service,2019741,202007
Rother District Council,26/09/2020,041ENVIRON,Environmental Services,32134,EH Pollution R + W Partnership,D2352,Clothing and Uniforms,174.04,SuperStitch 86,Clothing and Uniforms - EnvH- Protective Clothing EnvHealth,2019742,202007
Rother District Council,26/09/2020,041ENVIRON,Environmental Services,32134,EH Pollution R + W Partnership,D1201,Equipment & Materials,10,SuperStitch 86,Equipment & Materials - Carriage/Handling Charge,2019742,202007
Rother District Council,25/09/2020,101RESOURCES,Resources,20242,Communications-Phones,D2621,Telephones,267.68,Interoute Networks Ltd,Telephones - KCOM Smartnumber Charges,2019747,202007
Rother District Council,25/09/2020,041ENVIRON,Environmental Services,32142,EH Taxi and Private Hire Licenses R + W Partnership,D2513,Hired and Contracted services,175,Turnkey Instruments Limited,Hired and contracted services - Service fee paid,2019761,202007
Rother District Council,28/09/2020,101RESOURCES,Resources,20216,Cost Of Collection,D2626,Postages,769.56,DSI Billing Services Ltd,Postages - DSI Billing,2019783,202007
Rother District Council,28/09/2020,031RESOURCES,Executive Directors & Corporate Core,20276,COVID19 RDC expenditure,D2514,Accommodation Costs,300,Roost People Ltd,Accomodation Costs - Housing Due to Covid 19 NoVAT,2019788,202007
Rother District Council,28/09/2020,091HOUSING,Housing and Community Services,20329,Rough Sleeping Initiative,D2514,Accommodation Costs,415,Roost People Ltd,Accomodation Costs - Housing Due to Covid 19 NoVAT,2019788,202007
Rother District Council,28/09/2020,091HOUSING,Housing and Community Services,20200,Housing Needs - HB (Housing Benefit),D2514,Accommodation Costs,415,Roost People Ltd,Accommodation Costs,2019788,202007
Rother District Council,28/09/2020,091HOUSING,Housing and Community Services,20200,Housing Needs - HB (Housing Benefit),D2514,Accommodation Costs,415,Roost People Ltd,Accommodation Costs,2019788,202007
Rother District Council,28/09/2020,091HOUSING,Housing and Community Services,20200,Housing Needs - HB (Housing Benefit),D2514,Accommodation Costs,390,Roost People Ltd,Accommodation Costs,2019788,202007
Rother District Council,28/09/2020,091HOUSING,Housing and Community Services,20200,Housing Needs - HB (Housing Benefit),D2514,Accommodation Costs,340,Roost People Ltd,Accommodation Costs,2019788,202007
Rother District Council,28/09/2020,091HOUSING,Housing and Community Services,20200,Housing Needs - HB (Housing Benefit),D2514,Accommodation Costs,390,Roost People Ltd,Accommodation Costs,2019788,202007
Rother District Council,28/09/2020,091HOUSING,Housing and Community Services,20200,Housing Needs - HB (Housing Benefit),D2514,Accommodation Costs,340,Roost People Ltd,Accommodation Costs,2019788,202007
Rother District Council,28/09/2020,091HOUSING,Housing and Community Services,20200,Housing Needs - HB (Housing Benefit),D2514,Accommodation Costs,340,Roost People Ltd,Accommodation Costs,2019788,202007
Rother District Council,28/09/2020,091HOUSING,Housing and Community Services,20200,Housing Needs - HB (Housing Benefit),D2514,Accommodation Costs,390,Roost People Ltd,Accommodation Costs,2019788,202007
Rother District Council,28/09/2020,031RESOURCES,Executive Directors & Corporate Core,20276,COVID19 RDC expenditure,D2514,Accommodation Costs,420,South Down Residential Ltd,Accomodation Costs - Housing Due to Covid 19,2019791,202007
Rother District Council,28/09/2020,031RESOURCES,Executive Directors & Corporate Core,20276,COVID19 RDC expenditure,D2514,Accommodation Costs,322,South Down Residential Ltd,Accomodation Costs - Housing Due to Covid 19,2019791,202007
Rother District Council,28/09/2020,031RESOURCES,Executive Directors & Corporate Core,20276,COVID19 RDC expenditure,D2514,Accommodation Costs,80.5,South Down Residential Ltd,Accomodation Costs - Housing Due to Covid 19,2019791,202007
Rother District Council,28/09/2020,091HOUSING,Housing and Community Services,20329,Rough Sleeping Initiative,D2514,Accommodation Costs,402.5,South Down Residential Ltd,Accomodation Costs - Housing Due to Covid 19,2019791,202007
Rother District Council,28/09/2020,091HOUSING,Housing and Community Services,20200,Housing Needs - HB (Housing Benefit),D2514,Accommodation Costs,145.6,South Down Residential Ltd,Accommodation Costs,2019791,202007
Rother District Council,28/09/2020,091HOUSING,Housing and Community Services,20200,Housing Needs - HB (Housing Benefit),D2514,Accommodation Costs,36.4,South Down Residential Ltd,Accommodation Costs,2019791,202007
Rother District Council,28/09/2020,091HOUSING,Housing and Community Services,20200,Housing Needs - HB (Housing Benefit),D2514,Accommodation Costs,302.4,South Down Residential Ltd,Accommodation Costs,2019791,202007
Rother District Council,28/09/2020,091HOUSING,Housing and Community Services,20200,Housing Needs - HB (Housing Benefit),D2514,Accommodation Costs,75.6,South Down Residential Ltd,Accommodation Costs,2019791,202007
Rother District Council,28/09/2020,091HOUSING,Housing and Community Services,20200,Housing Needs - HB (Housing Benefit),D2514,Accommodation Costs,302.4,South Down Residential Ltd,Accommodation Costs,2019791,202007
Rother District Council,28/09/2020,091HOUSING,Housing and Community Services,20200,Housing Needs - HB (Housing Benefit),D2514,Accommodation Costs,75.6,South Down Residential Ltd,Accommodation Costs,2019791,202007
Rother District Council,28/09/2020,091HOUSING,Housing and Community Services,20200,Housing Needs - HB (Housing Benefit),D2514,Accommodation Costs,302.4,South Down Residential Ltd,Accommodation Costs,2019791,202007
Rother District Council,28/09/2020,091HOUSING,Housing and Community Services,20200,Housing Needs - HB (Housing Benefit),D2514,Accommodation Costs,75.6,South Down Residential Ltd,Accommodation Costs,2019791,202007
Rother District Council,28/09/2020,091HOUSING,Housing and Community Services,20200,Housing Needs - HB (Housing Benefit),D2514,Accommodation Costs,180,South Down Residential Ltd,Accommodation Costs,2019791,202007
Rother District Council,28/09/2020,091HOUSING,Housing and Community Services,20200,Housing Needs - HB (Housing Benefit),D2514,Accommodation Costs,352.8,South Down Residential Ltd,Accommodation Costs,2019791,202007
Rother District Council,28/09/2020,091HOUSING,Housing and Community Services,20200,Housing Needs - HB (Housing Benefit),D2514,Accommodation Costs,88.2,South Down Residential Ltd,Accommodation Costs,2019791,202007
Rother District Council,28/09/2020,091HOUSING,Housing and Community Services,20200,Housing Needs - HB (Housing Benefit),D2514,Accommodation Costs,302.4,South Down Residential Ltd,Accommodation Costs,2019791,202007
Rother District Council,28/09/2020,091HOUSING,Housing and Community Services,20200,Housing Needs - HB (Housing Benefit),D2514,Accommodation Costs,75.6,South Down Residential Ltd,Accommodation Costs,2019791,202007
Rother District Council,28/09/2020,091HOUSING,Housing and Community Services,20329,Rough Sleeping Initiative,D2514,Accommodation Costs,336,South Down Residential Ltd,Accommodation Costs,2019791,202007
Rother District Council,28/09/2020,091HOUSING,Housing and Community Services,20329,Rough Sleeping Initiative,D2514,Accommodation Costs,84,South Down Residential Ltd,Accommodation Costs,2019791,202007
Rother District Council,01/09/2020,031RESOURCES,Executive Directors & Corporate Core,20180,Emergency Planning,D2621,Telephones,15.13,Daisy Communications PLC,Telephones,2019795,202007
Rother District Council,01/09/2020,041ENVIRON,Environmental Services,32134,EH Pollution R + W Partnership,D2621,Telephones,15.13,Daisy Communications PLC,Telephones,2019795,202007
Rother District Council,01/09/2020,091HOUSING,Housing and Community Services,20102,Rother Museum Services,D2621,Telephones,15.13,Daisy Communications PLC,Telephones,2019795,202007
Rother District Council,01/09/2020,091HOUSING,Housing and Community Services,20107,Camber Beach & Foreshore,D2621,Telephones,15.79,Daisy Communications PLC,Telephones,2019795,202007
Rother District Council,01/09/2020,091HOUSING,Housing and Community Services,20107,Camber Beach & Foreshore,D2621,Telephones,24.11,Daisy Communications PLC,Telephones,2019795,202007
Rother District Council,01/09/2020,101RESOURCES,Resources,20242,Communications-Phones,D2621,Telephones,15.13,Daisy Communications PLC,Telephones,2019795,202007
Rother District Council,01/09/2020,101RESOURCES,Resources,20242,Communications-Phones,D2621,Telephones,15.13,Daisy Communications PLC,Telephones,2019795,202007
Rother District Council,01/09/2020,101RESOURCES,Resources,20242,Communications-Phones,D2621,Telephones,15.13,Daisy Communications PLC,Telephones,2019795,202007
Rother District Council,01/09/2020,101RESOURCES,Resources,20242,Communications-Phones,D2621,Telephones,15.13,Daisy Communications PLC,Telephones,2019795,202007
Rother District Council,01/09/2020,101RESOURCES,Resources,20242,Communications-Phones,D2621,Telephones,15.13,Daisy Communications PLC,Telephones,2019795,202007
Rother District Council,01/09/2020,101RESOURCES,Resources,20239,Computer Services,D2621,Telephones,15.13,Daisy Communications PLC,Telephones,2019795,202007
Rother District Council,01/09/2020,101RESOURCES,Resources,20239,Computer Services,D2621,Telephones,15.13,Daisy Communications PLC,Telephones,2019795,202007
Rother District Council,31/07/2020,041ENVIRON,Environmental Services,32136,EH Pest Control R + W Partnership,C1104,Derv,7.6,Allstar Business Solutions,Derv - Fuel Service fee payable on fuel cards,2019796,202007
Rother District Council,31/07/2020,091HOUSING,Housing and Community Services,20107,Camber Beach & Foreshore,C1104,Derv,1.9,Allstar Business Solutions,Derv - Fuel Service fee payable on fuel cards,2019796,202007
Rother District Council,31/07/2020,041ENVIRON,Environmental Services,32136,EH Pest Control R + W Partnership,C1104,Derv,45.83,Allstar Business Solutions,Derv,2019796,202007
Rother District Council,31/07/2020,041ENVIRON,Environmental Services,32136,EH Pest Control R + W Partnership,C1104,Derv,41.67,Allstar Business Solutions,Derv,2019796,202007
Rother District Council,31/07/2020,041ENVIRON,Environmental Services,32136,EH Pest Control R + W Partnership,C1104,Derv,40.83,Allstar Business Solutions,Derv,2019796,202007
Rother District Council,31/07/2020,041ENVIRON,Environmental Services,32136,EH Pest Control R + W Partnership,C1104,Derv,46.67,Allstar Business Solutions,Derv,2019796,202007
Rother District Council,31/07/2020,091HOUSING,Housing and Community Services,20107,Camber Beach & Foreshore,C1104,Derv,47.73,Allstar Business Solutions,Derv,2019796,202007
Rother District Council,31/07/2020,091HOUSING,Housing and Community Services,20145,Maintenance Services,C1104,Derv,41.67,Allstar Business Solutions,Derv,2019796,202007
Rother District Council,31/07/2020,091HOUSING,Housing and Community Services,20145,Maintenance Services,C1104,Derv,35.19,Allstar Business Solutions,Derv,2019796,202007
Rother District Council,15/08/2020,041ENVIRON,Environmental Services,32136,EH Pest Control R + W Partnership,C1104,Derv,5.7,Allstar Business Solutions,Derv - Fuel Service fee payable on fuel cards,2019797,202007
Rother District Council,15/08/2020,091HOUSING,Housing and Community Services,20107,Camber Beach & Foreshore,C1104,Derv,1.9,Allstar Business Solutions,Derv - Fuel Service fee payable on fuel cards,2019797,202007
Rother District Council,15/08/2020,031RESOURCES,Executive Directors & Corporate Core,20170,Communications-Postages,C1103,Petrol,36.33,Allstar Business Solutions,Petrol,2019797,202007
Rother District Council,15/08/2020,041ENVIRON,Environmental Services,32136,EH Pest Control R + W Partnership,C1104,Derv,43.33,Allstar Business Solutions,Derv,2019797,202007
Rother District Council,15/08/2020,041ENVIRON,Environmental Services,32136,EH Pest Control R + W Partnership,C1104,Derv,39.18,Allstar Business Solutions,Derv,2019797,202007
Rother District Council,15/08/2020,041ENVIRON,Environmental Services,32136,EH Pest Control R + W Partnership,C1104,Derv,48.34,Allstar Business Solutions,Derv,2019797,202007
Rother District Council,15/08/2020,091HOUSING,Housing and Community Services,20107,Camber Beach & Foreshore,C1104,Derv,47.88,Allstar Business Solutions,Derv,2019797,202007
Rother District Council,15/08/2020,091HOUSING,Housing and Community Services,20145,Maintenance Services,C1104,Derv,45.83,Allstar Business Solutions,Derv,2019797,202007
Rother District Council,15/08/2020,091HOUSING,Housing and Community Services,20145,Maintenance Services,C1104,Derv,41.67,Allstar Business Solutions,Derv,2019797,202007
Rother District Council,05/09/2020,041ENVIRON,Environmental Services,32142,EH Taxi and Private Hire Licenses R + W Partnership,D2513,Hired and Contracted services,40,uCheck,Hired and contracted services - Service fee paid,2019799,202007
Rother District Council,05/09/2020,041ENVIRON,Environmental Services,32142,EH Taxi and Private Hire Licenses R + W Partnership,D2513,Hired and Contracted services,8.67,uCheck,Hired and contracted services - Service fee paid,2019799,202007
Rother District Council,05/08/2020,041ENVIRON,Environmental Services,32142,EH Taxi and Private Hire Licenses R + W Partnership,D2513,Hired and Contracted services,40,uCheck,Hired and contracted services - Service fee paid,2019800,202007
Rother District Council,05/08/2020,041ENVIRON,Environmental Services,32142,EH Taxi and Private Hire Licenses R + W Partnership,D2513,Hired and Contracted services,8.67,uCheck,Hired and contracted services - Service fee paid,2019800,202007
Rother District Council,18/08/2020,999NOREPORT,Housing and Community Services,70751,Capital - Temporary Accommodation,N1002,Land & Property fees,"6,750.00",HMRC Shipley (Stamp Duty),Land & Property fees,2019809,202007
Rother District Council,08/09/2020,999NOREPORT,Housing and Community Services,70704,Capital - Bexhill Leisure Centre,N1002,Land & Property fees,740,HMRC Shipley (Stamp Duty),Land & Property fees,2019810,202007
Rother District Council,13/08/2020,091HOUSING,Housing and Community Services,20120,Neighbourhood Services,D2622,Mobile Phones,10,O2 (UK) Ltd,Mobile Phones,2019816,202007
Rother District Council,13/08/2020,091HOUSING,Housing and Community Services,20120,Neighbourhood Services,D2622,Mobile Phones,10,O2 (UK) Ltd,Mobile Phones,2019816,202007
Rother District Council,13/08/2020,091HOUSING,Housing and Community Services,20120,Neighbourhood Services,D2622,Mobile Phones,10,O2 (UK) Ltd,Mobile Phones,2019816,202007
Rother District Council,13/08/2020,091HOUSING,Housing and Community Services,20120,Neighbourhood Services,D2622,Mobile Phones,10,O2 (UK) Ltd,Mobile Phones,2019816,202007
Rother District Council,13/08/2020,091HOUSING,Housing and Community Services,20120,Neighbourhood Services,D2622,Mobile Phones,10,O2 (UK) Ltd,Mobile Phones,2019816,202007
Rother District Council,13/08/2020,091HOUSING,Housing and Community Services,20120,Neighbourhood Services,D2622,Mobile Phones,10,O2 (UK) Ltd,Mobile Phones,2019816,202007
Rother District Council,13/08/2020,091HOUSING,Housing and Community Services,20120,Neighbourhood Services,D2622,Mobile Phones,10,O2 (UK) Ltd,Mobile Phones,2019816,202007
Rother District Council,13/08/2020,091HOUSING,Housing and Community Services,20120,Neighbourhood Services,D2622,Mobile Phones,10,O2 (UK) Ltd,Mobile Phones,2019816,202007
Rother District Council,13/08/2020,091HOUSING,Housing and Community Services,20120,Neighbourhood Services,D2622,Mobile Phones,10,O2 (UK) Ltd,Mobile Phones,2019816,202007
Rother District Council,13/08/2020,091HOUSING,Housing and Community Services,20120,Neighbourhood Services,D2622,Mobile Phones,10,O2 (UK) Ltd,Mobile Phones,2019816,202007
Rother District Council,13/08/2020,091HOUSING,Housing and Community Services,20120,Neighbourhood Services,D2622,Mobile Phones,10,O2 (UK) Ltd,Mobile Phones,2019816,202007
Rother District Council,13/08/2020,091HOUSING,Housing and Community Services,20120,Neighbourhood Services,D2622,Mobile Phones,10,O2 (UK) Ltd,Mobile Phones,2019816,202007
Rother District Council,13/08/2020,091HOUSING,Housing and Community Services,20120,Neighbourhood Services,D2622,Mobile Phones,10,O2 (UK) Ltd,Mobile Phones,2019816,202007
Rother District Council,13/08/2020,091HOUSING,Housing and Community Services,20109,Sports Development,D2622,Mobile Phones,10,O2 (UK) Ltd,Mobile Phones,2019816,202007
Rother District Council,13/08/2020,091HOUSING,Housing and Community Services,20120,Neighbourhood Services,D2622,Mobile Phones,26.25,O2 (UK) Ltd,Mobile Phones,2019816,202007
Rother District Council,13/08/2020,091HOUSING,Housing and Community Services,20120,Neighbourhood Services,D2622,Mobile Phones,10,O2 (UK) Ltd,Mobile Phones,2019816,202007
Rother District Council,13/08/2020,091HOUSING,Housing and Community Services,20120,Neighbourhood Services,D2622,Mobile Phones,10,O2 (UK) Ltd,Mobile Phones,2019816,202007
Rother District Council,13/08/2020,091HOUSING,Housing and Community Services,20120,Neighbourhood Services,D2622,Mobile Phones,10,O2 (UK) Ltd,Mobile Phones,2019816,202007
Rother District Council,13/08/2020,091HOUSING,Housing and Community Services,20120,Neighbourhood Services,D2622,Mobile Phones,10,O2 (UK) Ltd,Mobile Phones,2019816,202007
Rother District Council,13/08/2020,091HOUSING,Housing and Community Services,20120,Neighbourhood Services,D2622,Mobile Phones,10,O2 (UK) Ltd,Mobile Phones,2019816,202007
Rother District Council,13/08/2020,091HOUSING,Housing and Community Services,20120,Neighbourhood Services,D2622,Mobile Phones,10,O2 (UK) Ltd,Mobile Phones,2019816,202007
Rother District Council,13/08/2020,091HOUSING,Housing and Community Services,20120,Neighbourhood Services,D2622,Mobile Phones,10,O2 (UK) Ltd,Mobile Phones,2019816,202007
Rother District Council,13/08/2020,091HOUSING,Housing and Community Services,20120,Neighbourhood Services,D2622,Mobile Phones,10,O2 (UK) Ltd,Mobile Phones,2019816,202007
Rother District Council,13/08/2020,091HOUSING,Housing and Community Services,20120,Neighbourhood Services,D2622,Mobile Phones,10,O2 (UK) Ltd,Mobile Phones,2019816,202007
Rother District Council,13/08/2020,091HOUSING,Housing and Community Services,20120,Neighbourhood Services,D2622,Mobile Phones,10,O2 (UK) Ltd,Mobile Phones,2019816,202007
Rother District Council,13/08/2020,091HOUSING,Housing and Community Services,20120,Neighbourhood Services,D2622,Mobile Phones,10,O2 (UK) Ltd,Mobile Phones,2019816,202007
Rother District Council,13/08/2020,091HOUSING,Housing and Community Services,20120,Neighbourhood Services,D2622,Mobile Phones,10,O2 (UK) Ltd,Mobile Phones,2019816,202007
Rother District Council,13/08/2020,091HOUSING,Housing and Community Services,20120,Neighbourhood Services,D2622,Mobile Phones,10,O2 (UK) Ltd,Mobile Phones,2019816,202007
Rother District Council,13/08/2020,091HOUSING,Housing and Community Services,20120,Neighbourhood Services,D2622,Mobile Phones,10,O2 (UK) Ltd,Mobile Phones,2019816,202007
Rother District Council,13/08/2020,091HOUSING,Housing and Community Services,20120,Neighbourhood Services,D2622,Mobile Phones,10.47,O2 (UK) Ltd,Mobile Phones,2019816,202007
Rother District Council,13/08/2020,091HOUSING,Housing and Community Services,20120,Neighbourhood Services,D2622,Mobile Phones,10,O2 (UK) Ltd,Mobile Phones,2019816,202007
Rother District Council,13/08/2020,091HOUSING,Housing and Community Services,20204,Housing Administration Account,D2622,Mobile Phones,10,O2 (UK) Ltd,Mobile Phones,2019816,202007
Rother District Council,13/08/2020,091HOUSING,Housing and Community Services,20204,Housing Administration Account,D2622,Mobile Phones,10,O2 (UK) Ltd,Mobile Phones,2019816,202007
Rother District Council,13/08/2020,091HOUSING,Housing and Community Services,20204,Housing Administration Account,D2622,Mobile Phones,10,O2 (UK) Ltd,Mobile Phones,2019816,202007
Rother District Council,13/08/2020,091HOUSING,Housing and Community Services,20204,Housing Administration Account,D2622,Mobile Phones,10,O2 (UK) Ltd,Mobile Phones,2019816,202007
Rother District Council,13/08/2020,091HOUSING,Housing and Community Services,20204,Housing Administration Account,D2622,Mobile Phones,10,O2 (UK) Ltd,Mobile Phones,2019816,202007
Rother District Council,13/08/2020,091HOUSING,Housing and Community Services,20204,Housing Administration Account,D2622,Mobile Phones,10,O2 (UK) Ltd,Mobile Phones,2019816,202007
Rother District Council,13/08/2020,091HOUSING,Housing and Community Services,20204,Housing Administration Account,D2622,Mobile Phones,10,O2 (UK) Ltd,Mobile Phones,2019816,202007
Rother District Council,13/08/2020,091HOUSING,Housing and Community Services,20204,Housing Administration Account,D2622,Mobile Phones,10,O2 (UK) Ltd,Mobile Phones,2019816,202007
Rother District Council,13/08/2020,091HOUSING,Housing and Community Services,20204,Housing Administration Account,D2622,Mobile Phones,10,O2 (UK) Ltd,Mobile Phones,2019816,202007
Rother District Council,13/08/2020,091HOUSING,Housing and Community Services,20204,Housing Administration Account,D2622,Mobile Phones,10,O2 (UK) Ltd,Mobile Phones,2019816,202007
Rother District Council,13/08/2020,091HOUSING,Housing and Community Services,20204,Housing Administration Account,D2622,Mobile Phones,10,O2 (UK) Ltd,Mobile Phones,2019816,202007
Rother District Council,13/08/2020,091HOUSING,Housing and Community Services,20204,Housing Administration Account,D2622,Mobile Phones,10,O2 (UK) Ltd,Mobile Phones,2019816,202007
Rother District Council,13/08/2020,091HOUSING,Housing and Community Services,20204,Housing Administration Account,D2622,Mobile Phones,10,O2 (UK) Ltd,Mobile Phones,2019816,202007
Rother District Council,13/08/2020,091HOUSING,Housing and Community Services,20204,Housing Administration Account,D2622,Mobile Phones,10,O2 (UK) Ltd,Mobile Phones,2019816,202007
Rother District Council,13/08/2020,091HOUSING,Housing and Community Services,20204,Housing Administration Account,D2622,Mobile Phones,10,O2 (UK) Ltd,Mobile Phones,2019816,202007
Rother District Council,13/08/2020,091HOUSING,Housing and Community Services,20204,Housing Administration Account,D2622,Mobile Phones,10,O2 (UK) Ltd,Mobile Phones,2019816,202007
Rother District Council,13/08/2020,091HOUSING,Housing and Community Services,20204,Housing Administration Account,D2622,Mobile Phones,21.82,O2 (UK) Ltd,Mobile Phones,2019816,202007
Rother District Council,13/08/2020,091HOUSING,Housing and Community Services,20204,Housing Administration Account,D2622,Mobile Phones,10,O2 (UK) Ltd,Mobile Phones,2019816,202007
Rother District Council,13/08/2020,091HOUSING,Housing and Community Services,20204,Housing Administration Account,D2622,Mobile Phones,10,O2 (UK) Ltd,Mobile Phones,2019816,202007
Rother District Council,13/08/2020,091HOUSING,Housing and Community Services,20204,Housing Administration Account,D2622,Mobile Phones,10,O2 (UK) Ltd,Mobile Phones,2019816,202007
Rother District Council,13/08/2020,091HOUSING,Housing and Community Services,20262,Head of Service Housing and Community Services,D2622,Mobile Phones,21.24,O2 (UK) Ltd,Mobile Phones,2019816,202007
Rother District Council,13/08/2020,091HOUSING,Housing and Community Services,20236,Customer Services and Development,D2622,Mobile Phones,15,O2 (UK) Ltd,Mobile Phones,2019816,202007
Rother District Council,13/08/2020,091HOUSING,Housing and Community Services,20264,Property Maintenance Team,D2622,Mobile Phones,10,O2 (UK) Ltd,Mobile Phones,2019816,202007
Rother District Council,13/08/2020,091HOUSING,Housing and Community Services,20264,Property Maintenance Team,D2622,Mobile Phones,19.68,O2 (UK) Ltd,Mobile Phones,2019816,202007
Rother District Council,13/08/2020,091HOUSING,Housing and Community Services,20264,Property Maintenance Team,D2622,Mobile Phones,10,O2 (UK) Ltd,Mobile Phones,2019816,202007
Rother District Council,13/08/2020,091HOUSING,Housing and Community Services,20264,Property Maintenance Team,D2622,Mobile Phones,12.2,O2 (UK) Ltd,Mobile Phones,2019816,202007
Rother District Council,13/08/2020,091HOUSING,Housing and Community Services,20264,Property Maintenance Team,D2622,Mobile Phones,10,O2 (UK) Ltd,Mobile Phones,2019816,202007
Rother District Council,13/08/2020,091HOUSING,Housing and Community Services,20264,Property Maintenance Team,D2622,Mobile Phones,10,O2 (UK) Ltd,Mobile Phones,2019816,202007
Rother District Council,13/08/2020,091HOUSING,Housing and Community Services,20264,Property Maintenance Team,D2622,Mobile Phones,10,O2 (UK) Ltd,Mobile Phones,2019816,202007
Rother District Council,13/08/2020,091HOUSING,Housing and Community Services,20264,Property Maintenance Team,D2622,Mobile Phones,10,O2 (UK) Ltd,Mobile Phones,2019816,202007
Rother District Council,13/08/2020,101RESOURCES,Resources,20215,Revenue and Benefits,D2622,Mobile Phones,10,O2 (UK) Ltd,Mobile Phones,2019817,202007
Rother District Council,13/08/2020,101RESOURCES,Resources,20215,Revenue and Benefits,D2622,Mobile Phones,10,O2 (UK) Ltd,Mobile Phones,2019817,202007
Rother District Council,13/08/2020,101RESOURCES,Resources,20222,Accountancy,D2622,Mobile Phones,10,O2 (UK) Ltd,Mobile Phones,2019817,202007
Rother District Council,13/08/2020,101RESOURCES,Resources,20215,Revenue and Benefits,D2622,Mobile Phones,10,O2 (UK) Ltd,Mobile Phones,2019817,202007
Rother District Council,13/08/2020,101RESOURCES,Resources,20215,Revenue and Benefits,D2622,Mobile Phones,10,O2 (UK) Ltd,Mobile Phones,2019817,202007
Rother District Council,13/08/2020,101RESOURCES,Resources,20215,Revenue and Benefits,D2622,Mobile Phones,10,O2 (UK) Ltd,Mobile Phones,2019817,202007
Rother District Council,13/08/2020,101RESOURCES,Resources,20215,Revenue and Benefits,D2622,Mobile Phones,10,O2 (UK) Ltd,Mobile Phones,2019817,202007
Rother District Council,13/08/2020,101RESOURCES,Resources,20215,Revenue and Benefits,D2622,Mobile Phones,10,O2 (UK) Ltd,Mobile Phones,2019817,202007
Rother District Council,13/08/2020,101RESOURCES,Resources,20239,Computer Services,D2622,Mobile Phones,10,O2 (UK) Ltd,Mobile Phones,2019817,202007
Rother District Council,13/08/2020,101RESOURCES,Resources,20239,Computer Services,D2622,Mobile Phones,10,O2 (UK) Ltd,Mobile Phones,2019817,202007
Rother District Council,13/08/2020,101RESOURCES,Resources,20239,Computer Services,D2622,Mobile Phones,10,O2 (UK) Ltd,Mobile Phones,2019817,202007
Rother District Council,13/08/2020,101RESOURCES,Resources,20239,Computer Services,D2622,Mobile Phones,10,O2 (UK) Ltd,Mobile Phones,2019817,202007
Rother District Council,13/08/2020,101RESOURCES,Resources,20239,Computer Services,D2622,Mobile Phones,10,O2 (UK) Ltd,Mobile Phones,2019817,202007
Rother District Council,13/08/2020,101RESOURCES,Resources,20239,Computer Services,D2622,Mobile Phones,10,O2 (UK) Ltd,Mobile Phones,2019817,202007
Rother District Council,13/08/2020,101RESOURCES,Resources,20222,Accountancy,D2622,Mobile Phones,10,O2 (UK) Ltd,Mobile Phones,2019817,202007
Rother District Council,24/09/2020,091HOUSING,Housing and Community Services,20145,Maintenance Services,D1201,Equipment & Materials,16.46,Trade UK Account (Screwfix & B&Q),Equipment & Materials - Purchase of Tools,2019819,202007
Rother District Council,24/09/2020,091HOUSING,Housing and Community Services,20138,Residual Highway Services,B1100,Repairs to Premises,22.19,Trade UK Account (Screwfix & B&Q),Repairs to Premises - Purchase of Materials - Build Maint,2019820,202007
Rother District Council,13/08/2020,081ACQUISIT,"Acquisitions, Transformation and Regeneration",20122,Economic Development,D2622,Mobile Phones,10,O2 (UK) Ltd,Mobile Phones,2019822,202007
Rother District Council,13/08/2020,081ACQUISIT,"Acquisitions, Transformation and Regeneration",20122,Economic Development,D2622,Mobile Phones,10,O2 (UK) Ltd,Mobile Phones,2019822,202007
Rother District Council,13/08/2020,081ACQUISIT,"Acquisitions, Transformation and Regeneration",20122,Economic Development,D2622,Mobile Phones,10,O2 (UK) Ltd,Mobile Phones,2019822,202007
Rother District Council,13/08/2020,081ACQUISIT,"Acquisitions, Transformation and Regeneration",20122,Economic Development,D2622,Mobile Phones,10,O2 (UK) Ltd,Mobile Phones,2019822,202007
Rother District Council,13/08/2020,081ACQUISIT,"Acquisitions, Transformation and Regeneration",20122,Economic Development,D2622,Mobile Phones,10.04,O2 (UK) Ltd,Mobile Phones,2019822,202007
Rother District Council,13/08/2020,081ACQUISIT,"Acquisitions, Transformation and Regeneration",20122,Economic Development,D2622,Mobile Phones,10,O2 (UK) Ltd,Mobile Phones,2019822,202007
Rother District Council,13/08/2020,081ACQUISIT,"Acquisitions, Transformation and Regeneration",20121,Programme and Policy Office,D2622,Mobile Phones,10,O2 (UK) Ltd,Mobile Phones,2019822,202007
Rother District Council,13/08/2020,081ACQUISIT,"Acquisitions, Transformation and Regeneration",20243,Business Improvement,D2622,Mobile Phones,10,O2 (UK) Ltd,Mobile Phones,2019822,202007
Rother District Council,13/08/2020,081ACQUISIT,"Acquisitions, Transformation and Regeneration",20272,Major Projects unit,D2622,Mobile Phones,10,O2 (UK) Ltd,Mobile Phones,2019822,202007
Rother District Council,13/08/2020,081ACQUISIT,"Acquisitions, Transformation and Regeneration",20263,"Head of Service Acquisitions, Transformation and Regeneration",D2622,Mobile Phones,10,O2 (UK) Ltd,Mobile Phones,2019822,202007
Rother District Council,13/08/2020,081ACQUISIT,"Acquisitions, Transformation and Regeneration",20272,Major Projects unit,D2622,Mobile Phones,10,O2 (UK) Ltd,Mobile Phones,2019822,202007
Rother District Council,13/08/2020,081ACQUISIT,"Acquisitions, Transformation and Regeneration",20243,Business Improvement,D2622,Mobile Phones,10,O2 (UK) Ltd,Mobile Phones,2019822,202007
Rother District Council,15/08/2020,101RESOURCES,Resources,20242,Communications-Phones,D2621,Telephones,577,TalkTalk Communications Ltd T/A TalkTalk Business,Telephones - Telephone Call Costs+Line Rental,2019824,202007
Rother District Council,15/08/2020,101RESOURCES,Resources,20242,Communications-Phones,D2621,Telephones,270,TalkTalk Communications Ltd T/A TalkTalk Business,Telephones - Telephone Call Costs+Line Rental,2019825,202007
Rother District Council,28/09/2020,091HOUSING,Housing and Community Services,20206,Syrians,D2513,Hired and Contracted services,900,The Eggtooth Project,Hired and contracted services - Syrian Misc,2019831,202007
Rother District Council,24/09/2020,031RESOURCES,Executive Directors & Corporate Core,20171,Human Resources,D1201,Equipment & Materials,152.95,Office Furniture Online,Equipment & Materials - Health and Safety Act Equipment,2019833,202007
Rother District Council,15/09/2020,091HOUSING,Housing and Community Services,20132,Street & Beach Cleansing,D1201,Equipment & Materials,106.97,Saint-Gobain Building Distribution Ltd t/a Jewson,Repairs to Premises - Purchase of Materials - Build Maint,2019834,202007
Rother District Council,17/09/2020,091HOUSING,Housing and Community Services,20137,Car Parks,B1100,Repairs to Premises,2.16,Saint-Gobain Building Distribution Ltd t/a Jewson,Repairs to Premises - Purchase of Materials - Build Maint,2019835,202007
Rother District Council,18/09/2020,091HOUSING,Housing and Community Services,20114,Bexhill Parks & Open Spaces,B1100,Repairs to Premises,71.04,Saint-Gobain Building Distribution Ltd t/a Jewson,Repairs to Premises - Purchase of Materials - Build Maint,2019836,202007
Rother District Council,17/09/2020,091HOUSING,Housing and Community Services,20128,Public Conveniences,B1100,Repairs to Premises,19.97,Graham,Repairs to Premises - Purchase of Materials - Build Maint,2019837,202007
Rother District Council,13/08/2020,031RESOURCES,Executive Directors & Corporate Core,20171,Human Resources,D2622,Mobile Phones,10,O2 (UK) Ltd,Mobile Phones,2019841,202007
Rother District Council,13/08/2020,031RESOURCES,Executive Directors & Corporate Core,20171,Human Resources,D2622,Mobile Phones,10,O2 (UK) Ltd,Mobile Phones,2019841,202007
Rother District Council,13/08/2020,031RESOURCES,Executive Directors & Corporate Core,20158,Committee Service General Exp,D2622,Mobile Phones,10,O2 (UK) Ltd,Mobile Phones,2019841,202007
Rother District Council,13/08/2020,031RESOURCES,Executive Directors & Corporate Core,20162,Electoral Registration,D2622,Mobile Phones,10,O2 (UK) Ltd,Mobile Phones,2019841,202007
Rother District Council,13/08/2020,031RESOURCES,Executive Directors & Corporate Core,20180,Emergency Planning,D2622,Mobile Phones,10,O2 (UK) Ltd,Mobile Phones,2019841,202007
Rother District Council,13/08/2020,031RESOURCES,Executive Directors & Corporate Core,20180,Emergency Planning,D2622,Mobile Phones,10,O2 (UK) Ltd,Mobile Phones,2019841,202007
Rother District Council,13/08/2020,031RESOURCES,Executive Directors & Corporate Core,20180,Emergency Planning,D2622,Mobile Phones,4.5,O2 (UK) Ltd,Mobile Phones,2019841,202007
Rother District Council,13/08/2020,031RESOURCES,Executive Directors & Corporate Core,20183,Executive Directors,D2622,Mobile Phones,10,O2 (UK) Ltd,Mobile Phones,2019841,202007
Rother District Council,13/08/2020,031RESOURCES,Executive Directors & Corporate Core,20183,Executive Directors,D2622,Mobile Phones,30,O2 (UK) Ltd,Mobile Phones,2019841,202007
Rother District Council,13/08/2020,031RESOURCES,Executive Directors & Corporate Core,20183,Executive Directors,D2622,Mobile Phones,10,O2 (UK) Ltd,Mobile Phones,2019841,202007
Rother District Council,13/08/2020,031RESOURCES,Executive Directors & Corporate Core,32132,Joint Waste Contract Client Unit,D2622,Mobile Phones,10,O2 (UK) Ltd,Mobile Phones,2019841,202007
Rother District Council,13/08/2020,031RESOURCES,Executive Directors & Corporate Core,20179,Communications,D2622,Mobile Phones,10,O2 (UK) Ltd,Mobile Phones,2019841,202007
Rother District Council,13/08/2020,031RESOURCES,Executive Directors & Corporate Core,32132,Joint Waste Contract Client Unit,D2622,Mobile Phones,10,O2 (UK) Ltd,Mobile Phones,2019841,202007
Rother District Council,13/08/2020,101RESOURCES,Resources,20226,Service Manager Finance and Welfare,D2622,Mobile Phones,10,O2 (UK) Ltd,Mobile Phones,2019841,202007
Rother District Council,18/09/2020,091HOUSING,Housing and Community Services,20200,Housing Needs - HB (Housing Benefit),D2513,Hired and Contracted services,55,Wealden and Eastbourne Lifeline,Hired and Contracted services,2019842,202007
Rother District Council,18/09/2020,101RESOURCES,Resources,20209,Corporate management,D2513,Hired and Contracted services,26.6,Wealden and Eastbourne Lifeline,Hired and Contracted services,2019843,202007
Rother District Council,29/09/2020,101RESOURCES,Resources,20240,Printing Services,D2417,Photocopy Paper by external suppliers,52.2,Premier Paper Group Ltd,Photocopy Paper by external suppliers - Colour Paper,2019845,202007
Rother District Council,29/09/2020,101RESOURCES,Resources,20240,Printing Services,D2417,Photocopy Paper by external suppliers,122.7,Premier Paper Group Ltd,Photocopy Paper by external suppliers - White,2019845,202007
Rother District Council,26/09/2020,081ACQUISIT,"Acquisitions, Transformation and Regeneration",20153,"Elva Business Centre, Bexhill",B1100,Repairs to Premises,520,REDACTED PERSONAL DATA,Repairs to Premises - Parks- Landscaping Works,2019846,202007
Rother District Council,28/09/2020,081ACQUISIT,"Acquisitions, Transformation and Regeneration",20153,"Elva Business Centre, Bexhill",B1100,Repairs to Premises,45,Alfa Electric Ltd,Repairs to Premises - Repairs - Electrical Works,2019847,202007
Rother District Council,30/09/2020,091HOUSING,Housing and Community Services,20109,Sports Development,D2927,Services Facilitated by External Grants,450,Hastings Borough Council,Services Facilitated by External - Grants-Active Sussex Project workforce dev.,2019853,202007
Rother District Council,30/09/2020,091HOUSING,Housing and Community Services,20108,Bexhill Promenade & Foreshore,D1201,Equipment & Materials,"1,319.00",Squires Metal Fabrications Ltd,Equipment & materials - Miscellaneous,2019854,202007
Rother District Council,18/06/2020,091HOUSING,Housing and Community Services,20108,Bexhill Promenade & Foreshore,B1100,Repairs to Premises,25.27,Trade Paints Ltd,Repairs to Premises - Purchase of Materials - Build Maint,2019855,202007
Rother District Council,30/06/2020,081ACQUISIT,"Acquisitions, Transformation and Regeneration",20155,Investment properties,B1100,Repairs to Premises,232.35,Trade Paints Ltd,Repairs to Premises - Purchase of Materials - Build Maint,2019856,202007
Rother District Council,03/08/2020,091HOUSING,Housing and Community Services,20261,"TA Purchases (prev - 41 Jameson Mews, Bexhill on Sea)",B1100,Repairs to Premises,8.91,Trade Paints Ltd,Repairs to Premises - Purchase of Materials - Build Maint,2019857,202007
Rother District Council,21/08/2020,081ACQUISIT,"Acquisitions, Transformation and Regeneration",20155,Investment properties,B1100,Repairs to Premises,14.47,Trade Paints Ltd,Repairs to Premises - Purchase of Materials - Build Maint,2019858,202007
Rother District Council,08/06/2020,091HOUSING,Housing and Community Services,20261,"TA Purchases (prev - 41 Jameson Mews, Bexhill on Sea)",B1100,Repairs to Premises,74.82,Trade Paints Ltd,Repairs to Premises - Purchase of Materials - Build Maint,2019859,202007
Rother District Council,30/09/2020,101RESOURCES,Resources,20241,Stationery,D2420,General office supplies (Stationery purchased from ext suppliers),49.56,Lyreco UK Limited,General office supplies - Stationery (Stationery Services to buy ONLY),2019861,202007
Rother District Council,30/09/2020,101RESOURCES,Resources,20241,Stationery,D2420,General office supplies (Stationery purchased from ext suppliers),3.72,Lyreco UK Limited,General office supplies - Stationery (Stationery Services to buy ONLY),2019862,202007
Rother District Council,30/09/2020,101RESOURCES,Resources,20241,Stationery,D2420,General office supplies (Stationery purchased from ext suppliers),18.9,Lyreco UK Limited,General office supplies - Stationery (Stationery Services to buy ONLY),2019863,202007
Rother District Council,30/09/2020,101RESOURCES,Resources,20241,Stationery,D2420,General office supplies (Stationery purchased from ext suppliers),16.2,Lyreco UK Limited,General office supplies - Stationery (Stationery Services to buy ONLY),2019864,202007
Rother District Council,30/09/2020,101RESOURCES,Resources,20241,Stationery,D2420,General office supplies (Stationery purchased from ext suppliers),32.63,Lyreco UK Limited,General office supplies - Stationery (Stationery Services to buy ONLY),2019865,202007
Rother District Council,30/09/2020,101RESOURCES,Resources,20241,Stationery,D2420,General office supplies (Stationery purchased from ext suppliers),55.76,Lyreco UK Limited,General office supplies - Stationery (Stationery Services to buy ONLY),2019866,202007
Rother District Council,30/09/2020,101RESOURCES,Resources,20241,Stationery,D2420,General office supplies (Stationery purchased from ext suppliers),12.18,Lyreco UK Limited,General office supplies - Stationery (Stationery Services to buy ONLY),2019867,202007
Rother District Council,30/09/2020,091HOUSING,Housing and Community Services,20114,Bexhill Parks & Open Spaces,D2513,Hired and Contracted services,7,H M Land Registry,Hired and contracted services - Parks-Consultants Fees,2019868,202007
Rother District Council,30/09/2020,101RESOURCES,Resources,20241,Stationery,D2420,General office supplies (Stationery purchased from ext suppliers),41.96,Office Depot UK Ltd,General office supplies - Stationery (Stationery Services to buy ONLY),2019869,202007
Rother District Council,28/09/2020,041ENVIRON,Environmental Services,32144,EH Environmental Services Admin R + W Partnership,A2203,Training,295,Partnership Media Group Ltd t/a GovNet Communications,Training,2019870,202007
Rother District Council,05/06/2020,091HOUSING,Housing and Community Services,20137,Car Parks,D1201,Equipment & Materials,229.36,Alfa Electric Ltd,Equipment & Materials - Car Parks various,2019871,202007
Rother District Council,31/07/2020,091HOUSING,Housing and Community Services,20102,Rother Museum Services,B1100,Repairs to Premises,82.54,Alfa Electric Ltd,Repairs to Premises - Repairs - Electrical Works,2019872,202007
Rother District Council,13/08/2020,031RESOURCES,Executive Directors & Corporate Core,20175,Administrative Offices - T.H. Annex (NOT CHP),B1100,Repairs to Premises,89.36,Alfa Electric Ltd,Repairs to Premises - Repairs - Electrical Works,2019873,202007
Rother District Council,10/08/2020,091HOUSING,Housing and Community Services,20137,Car Parks,B1100,Repairs to Premises,898.64,Alfa Electric Ltd,Repairs to Premises - Specified Repairs and Works listed,2019874,202007
Rother District Council,18/08/2020,091HOUSING,Housing and Community Services,20108,Bexhill Promenade & Foreshore,B1100,Repairs to Premises,252.04,Alfa Electric Ltd,Repairs to Premises - Repairs - Electrical Works,2019875,202007
Rother District Council,30/09/2020,081ACQUISIT,"Acquisitions, Transformation and Regeneration",20267,Property Investment Strategy - 18-40 Beeching Road ( Land and Buildings),D2507,Security Services,393,Clearway Environmental Services (UK) Ltd,Hired and contracted services - Cash Security Fees-Car Parks,2019876,202007
Rother District Council,29/09/2020,041ENVIRON,Environmental Services,32134,EH Pollution R + W Partnership,D1201,Equipment & Materials,48,Cirrus Research PLC,Equipment & Materials - Carriage/Handling Charge,2019877,202007
Rother District Council,29/09/2020,041ENVIRON,Environmental Services,32134,EH Pollution R + W Partnership,D1201,Equipment & Materials,929,Cirrus Research PLC,Equipment & Materials - EnvH- Pollution Equipment,2019877,202007
Rother District Council,29/09/2020,091HOUSING,Housing and Community Services,20204,Housing Administration Account,A2203,Training,263.2,Professional Development Group T/A Government Events,Training,2019878,202007
Rother District Council,01/07/2020,091HOUSING,Housing and Community Services,20261,"TA Purchases (prev - 41 Jameson Mews, Bexhill on Sea)",D2513,Hired and Contracted services,850,Meridian Surveyors,Hired and contracted services - Service fee paid,2019879,202007
Rother District Council,30/09/2020,031RESOURCES,Executive Directors & Corporate Core,20162,Electoral Registration,D2415,Printing by external suppliers,891.36,Civica Election Services Ltd,Printing by external suppliers - Printing (Not from RDC Print Room),2019880,202007
Rother District Council,30/09/2020,091HOUSING,Housing and Community Services,20206,Syrians,D2513,Hired and Contracted services,106.73,247 Transport Solutions Ltd,Hired and contracted services - Syrian Resettlement Programme-Travel,2019881,202007
Rother District Council,30/09/2020,091HOUSING,Housing and Community Services,20200,Housing Needs - HB (Housing Benefit),D2513,Hired and Contracted services,137.03,247 Transport Solutions Ltd,Hired and Contracted services,2019882,202007
Rother District Council,30/09/2020,101RESOURCES,Resources,20222,Accountancy,D2509,Consultants and Other Services,"5,950.00",Paystream My Max Ltd,Consultants and other services - Consultants Fees,2019883,202007
Rother District Council,29/09/2020,999NOREPORT,Environmental Services,70706,Capital - Disable Facilities Grant,N1012,Capital Advances,"2,972.57",REDACTED PERSONAL DATA,Capital Advances Disabled Facilities Grant,2019884,202007
Rother District Council,22/09/2020,999NOREPORT,Environmental Services,70706,Capital - Disable Facilities Grant,N1012,Capital Advances,"5,000.00",The Build Works,Capital Advances Disabled Facilities Grant,2019885,202007
Rother District Council,21/09/2020,999NOREPORT,Environmental Services,70706,Capital - Disable Facilities Grant,N1012,Capital Advances,"1,486.96",Peabody South East Ltd,Capital Advances Disabled Facilities Grant,2019886,202007
Rother District Council,21/09/2020,999NOREPORT,Environmental Services,70706,Capital - Disable Facilities Grant,N1012,Capital Advances,"1,305.25",REDACTED PERSONAL DATA,Capital Advances Disabled Facilities Grant,2019887,202007
Rother District Council,22/09/2020,999NOREPORT,Environmental Services,70706,Capital - Disable Facilities Grant,N1012,Capital Advances,"2,653.58",REDACTED PERSONAL DATA,Capital Advances Disabled Facilities Grant,2019888,202007
Rother District Council,22/09/2020,999NOREPORT,Environmental Services,70706,Capital - Disable Facilities Grant,N1012,Capital Advances,"3,699.43",Southern Mobility Centres Ltd,Capital Advances Disabled Facilities Grant,2019889,202007
Rother District Council,24/09/2020,999NOREPORT,Environmental Services,70706,Capital - Disable Facilities Grant,N1012,Capital Advances,"4,885.00",Prestige Stairlifts Ltd,Capital Advances Disabled Facilities Grant,2019890,202007
Rother District Council,24/09/2020,999NOREPORT,Environmental Services,70706,Capital - Disable Facilities Grant,N1012,Capital Advances,703.2,Peabody South East Ltd,Capital Advances Disabled Facilities Grant,2019891,202007
Rother District Council,24/09/2020,999NOREPORT,Environmental Services,70706,Capital - Disable Facilities Grant,N1012,Capital Advances,"3,000.00",REDACTED PERSONAL DATA,Capital Advances Disabled Facilities Grant,2019892,202007
Rother District Council,25/09/2020,999NOREPORT,Environmental Services,70706,Capital - Disable Facilities Grant,N1012,Capital Advances,"2,293.42",DisAdapt,Capital Advances Disabled Facilities Grant,2019893,202007
Rother District Council,25/09/2020,999NOREPORT,Environmental Services,70706,Capital - Disable Facilities Grant,N1012,Capital Advances,944,Peabody South East Ltd,Capital Advances Disabled Facilities Grant,2019894,202007
Rother District Council,25/09/2020,999NOREPORT,Environmental Services,70706,Capital - Disable Facilities Grant,N1012,Capital Advances,"4,522.45",REDACTED PERSONAL DATA,Capital Advances Disabled Facilities Grant,2019895,202007
Rother District Council,25/09/2020,999NOREPORT,Environmental Services,70706,Capital - Disable Facilities Grant,N1012,Capital Advances,925.03,Peabody South East Ltd,Capital Advances Disabled Facilities Grant,2019896,202007
Rother District Council,28/09/2020,999NOREPORT,Environmental Services,70706,Capital - Disable Facilities Grant,N1012,Capital Advances,"5,000.00",REDACTED PERSONAL DATA,Capital Advances Disabled Facilities Grant,2019897,202007
Rother District Council,28/09/2020,999NOREPORT,Environmental Services,70706,Capital - Disable Facilities Grant,N1012,Capital Advances,"5,000.00",Alfa Electric Ltd,Capital Advances Disabled Facilities Grant,2019898,202007
Rother District Council,28/09/2020,999NOREPORT,Environmental Services,70706,Capital - Disable Facilities Grant,N1012,Capital Advances,933.44,Peabody South East Ltd,Capital Advances Disabled Facilities Grant,2019899,202007
Rother District Council,28/09/2020,999NOREPORT,Environmental Services,70706,Capital - Disable Facilities Grant,N1012,Capital Advances,"6,202.95",REDACTED PERSONAL DATA,Capital Advances Disabled Facilities Grant,2019900,202007
Rother District Council,29/09/2020,999NOREPORT,Environmental Services,70706,Capital - Disable Facilities Grant,N1012,Capital Advances,970.88,Peabody South East Ltd,Capital Advances Disabled Facilities Grant,2019901,202007
Rother District Council,04/09/2020,091HOUSING,Housing and Community Services,20114,Bexhill Parks & Open Spaces,B2731,Grounds maintenance routine,"69,983.72",Idverde Limited,Grounds maintenance routine - Parks-Grounds Maintenance Contracts,2019902,202007
Rother District Council,01/10/2020,101RESOURCES,Resources,20217,Reliefs & Benefits-Council Tax Benefit,D2513,Hired and Contracted services,"4,750.00",Hastings Advice and  Representation Centre (HARC),Grants made - SLA Contribution,2019903,202007
Rother District Council,30/09/2020,101RESOURCES,Resources,20216,Cost Of Collection,D2509,Consultants and Other Services,109.09,Northgate Public Services (UK) Ltd,Consultants and other services - Consultants Fees,2019904,202007
Rother District Council,30/09/2020,101RESOURCES,Resources,20216,Cost Of Collection,D2509,Consultants and Other Services,"3,600.00",Inform CPI Ltd,Hired and contracted services - RV Finder,2019905,202007
Rother District Council,30/09/2020,999NOREPORT,"Acquisitions, Transformation and Regeneration",70725,Capital - Blackfriars,N1004,Architects & Consultant Fees,"5,219.20",Built Environment Design Partnership Limited,Architects & Consultant Fees Capital-Architect and Conslt Fees,2019906,202007
Rother District Council,23/09/2020,091HOUSING,Housing and Community Services,20114,Bexhill Parks & Open Spaces,B1100,Repairs to Premises,293.97,Alfa Electric Ltd,Repairs to Premises - Parks - Electrical Works,2019907,202007
Rother District Council,24/09/2020,031RESOURCES,Executive Directors & Corporate Core,20173,Administrative Offices - Town Hall,B1100,Repairs to Premises,179.41,Alfa Electric Ltd,Repairs to Premises - Repairs - Electrical Works,2019908,202007
Rother District Council,23/09/2020,031RESOURCES,Executive Directors & Corporate Core,20173,Administrative Offices - Town Hall,B1100,Repairs to Premises,298.36,Alfa Electric Ltd,Repairs to Premises - Repairs - Electrical Works,2019909,202007
Rother District Council,25/09/2020,091HOUSING,Housing and Community Services,20108,Bexhill Promenade & Foreshore,B1100,Repairs to Premises,76.04,Alfa Electric Ltd,Repairs to Premises - Repairs - Electrical Works,2019910,202007
Rother District Council,25/09/2020,091HOUSING,Housing and Community Services,20108,Bexhill Promenade & Foreshore,B1100,Repairs to Premises,76.04,Alfa Electric Ltd,Repairs to Premises - Repairs - Electrical Works,2019911,202007
Rother District Council,25/09/2020,091HOUSING,Housing and Community Services,20108,Bexhill Promenade & Foreshore,B1100,Repairs to Premises,76.04,Alfa Electric Ltd,Repairs to Premises - Repairs - Electrical Works,2019912,202007
Rother District Council,28/09/2020,031RESOURCES,Executive Directors & Corporate Core,20175,Administrative Offices - T.H. Annex (NOT CHP),B1100,Repairs to Premises,320.12,Alfa Electric Ltd,Repairs to Premises - Repairs - Electrical Works,2019913,202007
Rother District Council,01/10/2020,091HOUSING,Housing and Community Services,20108,Bexhill Promenade & Foreshore,D2507,Security Services,90,Fuzion 4 Limited,Security Services,2019914,202007
Rother District Council,01/10/2020,091HOUSING,Housing and Community Services,20200,Housing Needs - HB (Housing Benefit),D2514,Accommodation Costs,368,Paramount Independent Property Services LLP,Accommodation Costs - RRP - Homelessness services Temp Accom - No VAT,2019915,202007
Rother District Council,01/10/2020,031RESOURCES,Executive Directors & Corporate Core,20276,COVID19 RDC expenditure,D2514,Accommodation Costs,"1,200.00",Paramount Independent Property Services LLP,Accomodation Costs - Housing Due to Covid 19 NoVAT,2019915,202007
Rother District Council,01/10/2020,031RESOURCES,Executive Directors & Corporate Core,20276,COVID19 RDC expenditure,D2514,Accommodation Costs,288,Paramount Independent Property Services LLP,Accomodation Costs - Housing Due to Covid 19 NoVAT,2019915,202007
Rother District Council,01/10/2020,031RESOURCES,Executive Directors & Corporate Core,20276,COVID19 RDC expenditure,D2514,Accommodation Costs,836,Paramount Independent Property Services LLP,Accomodation Costs - Housing Due to Covid 19 NoVAT,2019915,202007
Rother District Council,01/10/2020,031RESOURCES,Executive Directors & Corporate Core,20276,COVID19 RDC expenditure,D2514,Accommodation Costs,940,Paramount Independent Property Services LLP,Accommodation Costs,2019915,202007
Rother District Council,01/10/2020,091HOUSING,Housing and Community Services,20200,Housing Needs - HB (Housing Benefit),D2514,Accommodation Costs,"1,950.00",Paramount Independent Property Services LLP,Accommodation Costs,2019915,202007
Rother District Council,01/10/2020,091HOUSING,Housing and Community Services,20200,Housing Needs - HB (Housing Benefit),D2514,Accommodation Costs,"1,650.00",Paramount Independent Property Services LLP,Accommodation Costs,2019915,202007
Rother District Council,01/10/2020,091HOUSING,Housing and Community Services,20200,Housing Needs - HB (Housing Benefit),D2514,Accommodation Costs,"1,950.00",Paramount Independent Property Services LLP,Accommodation Costs,2019915,202007
Rother District Council,01/10/2020,091HOUSING,Housing and Community Services,20200,Housing Needs - HB (Housing Benefit),D2514,Accommodation Costs,"1,350.00",Paramount Independent Property Services LLP,Accommodation Costs,2019915,202007
Rother District Council,01/10/2020,091HOUSING,Housing and Community Services,20200,Housing Needs - HB (Housing Benefit),D2514,Accommodation Costs,"1,950.00",Paramount Independent Property Services LLP,Accommodation Costs,2019915,202007
Rother District Council,01/10/2020,091HOUSING,Housing and Community Services,20200,Housing Needs - HB (Housing Benefit),D2514,Accommodation Costs,"1,140.00",Paramount Independent Property Services LLP,Accommodation Costs,2019915,202007
Rother District Council,01/10/2020,091HOUSING,Housing and Community Services,20200,Housing Needs - HB (Housing Benefit),D2514,Accommodation Costs,110,Paramount Independent Property Services LLP,Accommodation Costs,2019915,202007
Rother District Council,01/10/2020,091HOUSING,Housing and Community Services,20200,Housing Needs - HB (Housing Benefit),D2514,Accommodation Costs,"1,081.00",Paramount Independent Property Services LLP,Accommodation Costs,2019915,202007
Rother District Council,01/10/2020,091HOUSING,Housing and Community Services,20200,Housing Needs - HB (Housing Benefit),D2514,Accommodation Costs,792,Paramount Independent Property Services LLP,Accommodation Costs,2019915,202007
Rother District Council,01/10/2020,091HOUSING,Housing and Community Services,20200,Housing Needs - HB (Housing Benefit),D2514,Accommodation Costs,561,Paramount Independent Property Services LLP,Accommodation Costs,2019915,202007
Rother District Council,01/10/2020,091HOUSING,Housing and Community Services,20200,Housing Needs - HB (Housing Benefit),D2514,Accommodation Costs,66,Paramount Independent Property Services LLP,Accommodation Costs,2019915,202007
Rother District Council,01/10/2020,091HOUSING,Housing and Community Services,20200,Housing Needs - HB (Housing Benefit),D2514,Accommodation Costs,650,Paramount Independent Property Services LLP,Accommodation Costs,2019915,202007
Rother District Council,01/10/2020,071STRAT,Strategy and Planning,20246,Planning Applications,D2519,Statutory Advertising,777.75,JPIMedia Publishing Ltd,Statutory Advertising - Planadv - Rye+Battle Observer,2019916,202007
Rother District Council,01/10/2020,031RESOURCES,Executive Directors & Corporate Core,20171,Human Resources,A2202,Recruitment expenses,698.46,JPIMedia Publishing Ltd,Recruitment expenses Advertising Vacant Post,2019917,202007
Rother District Council,30/09/2020,081ACQUISIT,"Acquisitions, Transformation and Regeneration",20275,Development of Council Owned Sites (Non-capital),D2509,Consultants and Other Services,"3,360.00",MH Architects Ltd,Consultants and other services - Consultants Fees,2019918,202007
Rother District Council,30/09/2020,081ACQUISIT,"Acquisitions, Transformation and Regeneration",20275,Development of Council Owned Sites (Non-capital),D2509,Consultants and Other Services,"4,515.00",MH Architects Ltd,Consultants and other services - Consultants Fees,2019919,202007
Rother District Council,01/10/2020,031RESOURCES,Executive Directors & Corporate Core,32132,Joint Waste Contract Client Unit,E2302,Third party payment private contractors,"1,060,607.42",Biffa Municipal Limited,Third party payment private contractors - CORE Joint Waste Cost,2019920,202007
Rother District Council,30/09/2020,091HOUSING,Housing and Community Services,20200,Housing Needs - HB (Housing Benefit),D2514,Accommodation Costs,"1,170.00",LESSHOMELESS LTD,Accommodation Costs,2019921,202007
Rother District Council,01/09/2020,091HOUSING,Housing and Community Services,20128,Public Conveniences,B2611,Contract cleaning,615.96,Specialist Hygiene Services Ltd,Contract cleaning - Public Conveniences Cleaning Servic,2019922,202007
Rother District Council,01/09/2020,091HOUSING,Housing and Community Services,20128,Public Conveniences,B2611,Contract cleaning,280.02,Specialist Hygiene Services Ltd,Contract cleaning - Public Conveniences Cleaning Servic,2019922,202007
Rother District Council,01/09/2020,091HOUSING,Housing and Community Services,20128,Public Conveniences,B2611,Contract cleaning,336.03,Specialist Hygiene Services Ltd,Contract cleaning - Public Conveniences Cleaning Servic,2019922,202007
Rother District Council,01/09/2020,091HOUSING,Housing and Community Services,20128,Public Conveniences,B2611,Contract cleaning,588,Specialist Hygiene Services Ltd,Contract cleaning - Public Conveniences Cleaning Servic,2019922,202007
Rother District Council,01/09/2020,091HOUSING,Housing and Community Services,20128,Public Conveniences,B2611,Contract cleaning,532,Specialist Hygiene Services Ltd,Contract cleaning - Public Conveniences Cleaning Servic,2019922,202007
Rother District Council,01/09/2020,091HOUSING,Housing and Community Services,20128,Public Conveniences,B2611,Contract cleaning,251.98,Specialist Hygiene Services Ltd,Contract cleaning - Public Conveniences Cleaning Servic,2019922,202007
Rother District Council,01/09/2020,091HOUSING,Housing and Community Services,20128,Public Conveniences,B2611,Contract cleaning,559.96,Specialist Hygiene Services Ltd,Contract cleaning - Public Conveniences Cleaning Servic,2019922,202007
Rother District Council,01/09/2020,091HOUSING,Housing and Community Services,20128,Public Conveniences,B2611,Contract cleaning,307.98,Specialist Hygiene Services Ltd,Contract cleaning - Public Conveniences Cleaning Servic,2019922,202007
Rother District Council,01/09/2020,091HOUSING,Housing and Community Services,20128,Public Conveniences,B2611,Contract cleaning,840.07,Specialist Hygiene Services Ltd,Contract cleaning - Public Conveniences Cleaning Servic,2019922,202007
Rother District Council,01/09/2020,091HOUSING,Housing and Community Services,20128,Public Conveniences,B2611,Contract cleaning,743.08,Specialist Hygiene Services Ltd,Contract cleaning - Public Conveniences Cleaning Servic,2019922,202007
Rother District Council,01/09/2020,091HOUSING,Housing and Community Services,20128,Public Conveniences,B2611,Contract cleaning,196.06,Specialist Hygiene Services Ltd,Contract cleaning - Public Conveniences Cleaning Servic,2019922,202007
Rother District Council,01/09/2020,091HOUSING,Housing and Community Services,20128,Public Conveniences,B2611,Contract cleaning,700.01,Specialist Hygiene Services Ltd,Contract cleaning - Public Conveniences Cleaning Servic,2019922,202007
Rother District Council,01/09/2020,091HOUSING,Housing and Community Services,20128,Public Conveniences,B2611,Contract cleaning,504.04,Specialist Hygiene Services Ltd,Contract cleaning - Public Conveniences Cleaning Servic,2019922,202007
Rother District Council,01/09/2020,091HOUSING,Housing and Community Services,20128,Public Conveniences,B2611,Contract cleaning,840.07,Specialist Hygiene Services Ltd,Contract cleaning - Public Conveniences Cleaning Servic,2019922,202007
Rother District Council,01/09/2020,091HOUSING,Housing and Community Services,20128,Public Conveniences,B2611,Contract cleaning,504.04,Specialist Hygiene Services Ltd,Contract cleaning - Public Conveniences Cleaning Servic,2019922,202007
Rother District Council,01/09/2020,091HOUSING,Housing and Community Services,20128,Public Conveniences,B2611,Contract cleaning,504.04,Specialist Hygiene Services Ltd,Contract cleaning - Public Conveniences Cleaning Servic,2019922,202007
Rother District Council,01/09/2020,091HOUSING,Housing and Community Services,20128,Public Conveniences,B2611,Contract cleaning,742.56,Specialist Hygiene Services Ltd,Contract cleaning - Public Conveniences Cleaning Servic,2019922,202007
Rother District Council,01/09/2020,091HOUSING,Housing and Community Services,20128,Public Conveniences,B2611,Contract cleaning,"1,215.52",Specialist Hygiene Services Ltd,Contract cleaning - Public Conveniences Cleaning Servic,2019922,202007
Rother District Council,01/09/2020,091HOUSING,Housing and Community Services,20128,Public Conveniences,B2611,Contract cleaning,472.87,Specialist Hygiene Services Ltd,Contract cleaning - Public Conveniences Cleaning Servic,2019922,202007
Rother District Council,01/09/2020,091HOUSING,Housing and Community Services,20128,Public Conveniences,B2611,Contract cleaning,928.11,Specialist Hygiene Services Ltd,Contract cleaning - Public Conveniences Cleaning Servic,2019922,202007
Rother District Council,01/09/2020,091HOUSING,Housing and Community Services,20128,Public Conveniences,B2611,Contract cleaning,"1,231.27",Specialist Hygiene Services Ltd,Contract cleaning - Public Conveniences Cleaning Servic,2019922,202007
Rother District Council,01/09/2020,091HOUSING,Housing and Community Services,20128,Public Conveniences,B2611,Contract cleaning,"1,231.27",Specialist Hygiene Services Ltd,Contract cleaning - Public Conveniences Cleaning Servic,2019922,202007
Rother District Council,01/09/2020,091HOUSING,Housing and Community Services,20128,Public Conveniences,B2611,Contract cleaning,"1,751.03",Specialist Hygiene Services Ltd,Contract cleaning - Public Conveniences Cleaning Servic,2019922,202007
Rother District Council,01/09/2020,091HOUSING,Housing and Community Services,20128,Public Conveniences,B2611,Contract cleaning,290.7,Specialist Hygiene Services Ltd,Contract cleaning - Public Conveniences Cleaning Servic,2019922,202007
Rother District Council,01/09/2020,091HOUSING,Housing and Community Services,20128,Public Conveniences,B2611,Contract cleaning,387.69,Specialist Hygiene Services Ltd,Contract cleaning - Public Conveniences Cleaning Servic,2019922,202007
Rother District Council,01/09/2020,091HOUSING,Housing and Community Services,20128,Public Conveniences,B2611,Contract cleaning,323.94,Specialist Hygiene Services Ltd,Contract cleaning - Public Conveniences Cleaning Servic,2019922,202007
Rother District Council,01/09/2020,091HOUSING,Housing and Community Services,20128,Public Conveniences,B2611,Contract cleaning,355.39,Specialist Hygiene Services Ltd,Contract cleaning - Public Conveniences Cleaning Servic,2019922,202007
Rother District Council,01/09/2020,091HOUSING,Housing and Community Services,20128,Public Conveniences,B2611,Contract cleaning,387.69,Specialist Hygiene Services Ltd,Contract cleaning - Public Conveniences Cleaning Servic,2019922,202007
Rother District Council,01/09/2020,091HOUSING,Housing and Community Services,20128,Public Conveniences,B2611,Contract cleaning,290.7,Specialist Hygiene Services Ltd,Contract cleaning - Public Conveniences Cleaning Servic,2019922,202007
Rother District Council,01/09/2020,091HOUSING,Housing and Community Services,20128,Public Conveniences,B2611,Contract cleaning,567.62,Specialist Hygiene Services Ltd,Contract cleaning - Public Conveniences Cleaning Servic,2019922,202007
Rother District Council,01/10/2020,091HOUSING,Housing and Community Services,20128,Public Conveniences,B2611,Contract cleaning,504.04,Specialist Hygiene Services Ltd,Contract cleaning - Public Conveniences Cleaning Servic,2019923,202007
Rother District Council,01/10/2020,091HOUSING,Housing and Community Services,20128,Public Conveniences,B2611,Contract cleaning,840.07,Specialist Hygiene Services Ltd,Contract cleaning - Public Conveniences Cleaning Servic,2019923,202007
Rother District Council,01/10/2020,091HOUSING,Housing and Community Services,20128,Public Conveniences,B2611,Contract cleaning,504.04,Specialist Hygiene Services Ltd,Contract cleaning - Public Conveniences Cleaning Servic,2019923,202007
Rother District Council,01/10/2020,091HOUSING,Housing and Community Services,20128,Public Conveniences,B2611,Contract cleaning,615.96,Specialist Hygiene Services Ltd,Contract cleaning - Public Conveniences Cleaning Servic,2019923,202007
Rother District Council,01/10/2020,091HOUSING,Housing and Community Services,20128,Public Conveniences,B2611,Contract cleaning,280.02,Specialist Hygiene Services Ltd,Contract cleaning - Public Conveniences Cleaning Servic,2019923,202007
Rother District Council,01/10/2020,091HOUSING,Housing and Community Services,20128,Public Conveniences,B2611,Contract cleaning,336.03,Specialist Hygiene Services Ltd,Contract cleaning - Public Conveniences Cleaning Servic,2019923,202007
Rother District Council,01/10/2020,091HOUSING,Housing and Community Services,20128,Public Conveniences,B2611,Contract cleaning,588,Specialist Hygiene Services Ltd,Contract cleaning - Public Conveniences Cleaning Servic,2019923,202007
Rother District Council,01/10/2020,091HOUSING,Housing and Community Services,20128,Public Conveniences,B2611,Contract cleaning,532,Specialist Hygiene Services Ltd,Contract cleaning - Public Conveniences Cleaning Servic,2019923,202007
Rother District Council,01/10/2020,091HOUSING,Housing and Community Services,20128,Public Conveniences,B2611,Contract cleaning,840.07,Specialist Hygiene Services Ltd,Contract cleaning - Public Conveniences Cleaning Servic,2019923,202007
Rother District Council,01/10/2020,091HOUSING,Housing and Community Services,20128,Public Conveniences,B2611,Contract cleaning,743.08,Specialist Hygiene Services Ltd,Contract cleaning - Public Conveniences Cleaning Servic,2019923,202007
Rother District Council,01/10/2020,091HOUSING,Housing and Community Services,20128,Public Conveniences,B2611,Contract cleaning,196.06,Specialist Hygiene Services Ltd,Contract cleaning - Public Conveniences Cleaning Servic,2019923,202007
Rother District Council,01/10/2020,091HOUSING,Housing and Community Services,20128,Public Conveniences,B2611,Contract cleaning,700.01,Specialist Hygiene Services Ltd,Contract cleaning - Public Conveniences Cleaning Servic,2019923,202007
Rother District Council,01/10/2020,091HOUSING,Housing and Community Services,20128,Public Conveniences,B2611,Contract cleaning,251.98,Specialist Hygiene Services Ltd,Contract cleaning - Public Conveniences Cleaning Servic,2019923,202007
Rother District Council,01/10/2020,091HOUSING,Housing and Community Services,20128,Public Conveniences,B2611,Contract cleaning,559.96,Specialist Hygiene Services Ltd,Contract cleaning - Public Conveniences Cleaning Servic,2019923,202007
Rother District Council,01/10/2020,091HOUSING,Housing and Community Services,20128,Public Conveniences,B2611,Contract cleaning,307.98,Specialist Hygiene Services Ltd,Contract cleaning - Public Conveniences Cleaning Servic,2019923,202007
Rother District Council,01/10/2020,091HOUSING,Housing and Community Services,20128,Public Conveniences,B2611,Contract cleaning,504.04,Specialist Hygiene Services Ltd,Contract cleaning - Public Conveniences Cleaning Servic,2019923,202007
Rother District Council,01/10/2020,091HOUSING,Housing and Community Services,20128,Public Conveniences,B2611,Contract cleaning,742.56,Specialist Hygiene Services Ltd,Contract cleaning - Public Conveniences Cleaning Servic,2019923,202007
Rother District Council,01/10/2020,091HOUSING,Housing and Community Services,20128,Public Conveniences,B2611,Contract cleaning,"1,215.52",Specialist Hygiene Services Ltd,Contract cleaning - Public Conveniences Cleaning Servic,2019923,202007
Rother District Council,01/10/2020,091HOUSING,Housing and Community Services,20128,Public Conveniences,B2611,Contract cleaning,472.87,Specialist Hygiene Services Ltd,Contract cleaning - Public Conveniences Cleaning Servic,2019923,202007
Rother District Council,01/10/2020,091HOUSING,Housing and Community Services,20128,Public Conveniences,B2611,Contract cleaning,928.11,Specialist Hygiene Services Ltd,Contract cleaning - Public Conveniences Cleaning Servic,2019923,202007
Rother District Council,01/10/2020,091HOUSING,Housing and Community Services,20128,Public Conveniences,B2611,Contract cleaning,"1,231.27",Specialist Hygiene Services Ltd,Contract cleaning - Public Conveniences Cleaning Servic,2019923,202007
Rother District Council,01/10/2020,091HOUSING,Housing and Community Services,20128,Public Conveniences,B2611,Contract cleaning,"1,231.27",Specialist Hygiene Services Ltd,Contract cleaning - Public Conveniences Cleaning Servic,2019923,202007
Rother District Council,01/10/2020,091HOUSING,Housing and Community Services,20128,Public Conveniences,B2611,Contract cleaning,"1,751.03",Specialist Hygiene Services Ltd,Contract cleaning - Public Conveniences Cleaning Servic,2019923,202007
Rother District Council,01/10/2020,091HOUSING,Housing and Community Services,20128,Public Conveniences,B2611,Contract cleaning,290.7,Specialist Hygiene Services Ltd,Contract cleaning - Public Conveniences Cleaning Servic,2019923,202007
Rother District Council,01/10/2020,091HOUSING,Housing and Community Services,20128,Public Conveniences,B2611,Contract cleaning,387.69,Specialist Hygiene Services Ltd,Contract cleaning - Public Conveniences Cleaning Servic,2019923,202007
Rother District Council,01/10/2020,091HOUSING,Housing and Community Services,20128,Public Conveniences,B2611,Contract cleaning,323.94,Specialist Hygiene Services Ltd,Contract cleaning - Public Conveniences Cleaning Servic,2019923,202007
Rother District Council,01/10/2020,091HOUSING,Housing and Community Services,20128,Public Conveniences,B2611,Contract cleaning,355.39,Specialist Hygiene Services Ltd,Contract cleaning - Public Conveniences Cleaning Servic,2019923,202007
Rother District Council,01/10/2020,091HOUSING,Housing and Community Services,20128,Public Conveniences,B2611,Contract cleaning,387.69,Specialist Hygiene Services Ltd,Contract cleaning - Public Conveniences Cleaning Servic,2019923,202007
Rother District Council,01/10/2020,091HOUSING,Housing and Community Services,20128,Public Conveniences,B2611,Contract cleaning,290.7,Specialist Hygiene Services Ltd,Contract cleaning - Public Conveniences Cleaning Servic,2019923,202007
Rother District Council,01/10/2020,091HOUSING,Housing and Community Services,20128,Public Conveniences,B2611,Contract cleaning,567.62,Specialist Hygiene Services Ltd,Contract cleaning - Public Conveniences Cleaning Servic,2019923,202007
Rother District Council,01/10/2020,091HOUSING,Housing and Community Services,20200,Housing Needs - HB (Housing Benefit),D2514,Accommodation Costs,"1,725.00",Imperial Portfolios Ltd,Accommodation Costs,2019924,202007
Rother District Council,01/10/2020,091HOUSING,Housing and Community Services,20200,Housing Needs - HB (Housing Benefit),D2514,Accommodation Costs,920,Imperial Portfolios Ltd,Accommodation Costs,2019924,202007
Rother District Council,01/10/2020,091HOUSING,Housing and Community Services,20200,Housing Needs - HB (Housing Benefit),D2514,Accommodation Costs,202.5,Imperial Portfolios Ltd,Accommodation Costs,2019924,202007
Rother District Council,01/10/2020,091HOUSING,Housing and Community Services,20200,Housing Needs - HB (Housing Benefit),D2514,Accommodation Costs,"1,725.00",Imperial Portfolios Ltd,Accommodation Costs,2019924,202007
Rother District Council,01/10/2020,071STRAT,Strategy and Planning,20246,Planning Applications,D2509,Consultants and Other Services,750,Rural Planning Ltd,Consultants and other services - Consultants Fees,2019925,202007
Rother District Council,30/09/2020,091HOUSING,Housing and Community Services,20206,Syrians,D2513,Hired and Contracted services,891,REDACTED PERSONAL DATA,Hired and contracted services - Syrian-Education-Exempt VAT,2019926,202007
Rother District Council,23/09/2020,091HOUSING,Housing and Community Services,20128,Public Conveniences,B2422,Sewerage,301.25,Scottish Water Business Stream Limited,Sewerage - Sewerage Charges,2019927,202007
Rother District Council,23/09/2020,091HOUSING,Housing and Community Services,20137,Car Parks,B2422,Sewerage,85.72,Scottish Water Business Stream Limited,Sewerage - Sewerage Charges,2019927,202007
Rother District Council,23/09/2020,091HOUSING,Housing and Community Services,20128,Public Conveniences,B2421,Water,174.25,Scottish Water Business Stream Limited,Water - Water Charges,2019927,202007
Rother District Council,23/09/2020,091HOUSING,Housing and Community Services,20137,Car Parks,B2421,Water,57.6,Scottish Water Business Stream Limited,Water - Water Charges,2019927,202007
Rother District Council,26/09/2020,091HOUSING,Housing and Community Services,20115,Rye Area Parks & Gardens,B2422,Sewerage,128.8,Scottish Water Business Stream Limited,Sewerage - Sewerage Charges,2019928,202007
Rother District Council,26/09/2020,091HOUSING,Housing and Community Services,20115,Rye Area Parks & Gardens,B2421,Water,112.46,Scottish Water Business Stream Limited,Water - Water Charges,2019928,202007
Rother District Council,30/09/2020,081ACQUISIT,"Acquisitions, Transformation and Regeneration",20267,Property Investment Strategy - 18-40 Beeching Road ( Land and Buildings),B2422,Sewerage,21.94,Scottish Water Business Stream Limited,Sewerage - Sewerage Charges,2019929,202007
Rother District Council,24/09/2020,999NOREPORT,"Acquisitions, Transformation and Regeneration",70725,Capital - Blackfriars,N1004,Architects & Consultant Fees,"8,385.68",REDACTED PERSONAL DATA,Architects & Consultant Fees Capital-Architect and Conslt Fees,2019930,202007
Rother District Council,24/09/2020,999NOREPORT,"Acquisitions, Transformation and Regeneration",70725,Capital - Blackfriars,N1004,Architects & Consultant Fees,"2,454.80",REDACTED PERSONAL DATA,Architects & Consultant Fees Capital-Architect and Conslt Fees,2019931,202007
Rother District Council,01/10/2020,101RESOURCES,Resources,20241,Stationery,D2420,General office supplies (Stationery purchased from ext suppliers),57.44,Office Depot UK Ltd,General office supplies - Stationery (Stationery Services to buy ONLY),2019932,202007
Rother District Council,30/09/2020,091HOUSING,Housing and Community Services,20137,Car Parks,D1201,Equipment & Materials,709,Flowbird Smart City UK Ltd,Equipment & Materials - Car Parks various,2019933,202007
Rother District Council,11/09/2020,091HOUSING,Housing and Community Services,20145,Maintenance Services,C1101,Vehicle Repairs & Servicing,10.45,Autolec Motor Factors,Vehicle Repairs & Servicing,2019934,202007
Rother District Council,18/09/2020,031RESOURCES,Executive Directors & Corporate Core,20173,Administrative Offices - Town Hall,B1100,Repairs to Premises,"4,882.00",Alfa Electric Ltd,Repairs to Premises - Repairs - Electrical Works,2019935,202007
Rother District Council,28/09/2020,031RESOURCES,Executive Directors & Corporate Core,20175,Administrative Offices - T.H. Annex (NOT CHP),B1100,Repairs to Premises,"9,737.25",Alfa Electric Ltd,Repairs to Premises - Repairs - Electrical Works,2019936,202007
Rother District Council,30/09/2020,031RESOURCES,Executive Directors & Corporate Core,20173,Administrative Offices - Town Hall,B2611,Contract cleaning,349.91,Biffa Waste Services Ltd,Contract cleaning,2019937,202007
Rother District Council,01/10/2020,091HOUSING,Housing and Community Services,20125,Coast Protection,E2302,Third party payment private contractors,400,REDACTED PERSONAL DATA,Third party payment private contractors - Fairlight Compressor Maintenance Contract,2019938,202007
Rother District Council,01/10/2020,101RESOURCES,Resources,20216,Cost Of Collection,D2626,Postages,403.06,DSI Billing Services Ltd,Postages - DSI Billing,2019939,202007
Rother District Council,30/09/2020,091HOUSING,Housing and Community Services,20128,Public Conveniences,B2422,Sewerage,637.61,Scottish Water Business Stream Limited,Sewerage - Sewerage Charges,2019940,202007
Rother District Council,30/09/2020,091HOUSING,Housing and Community Services,20128,Public Conveniences,B2421,Water,487.45,Scottish Water Business Stream Limited,Water - Water Charges,2019940,202007
Rother District Council,30/09/2020,091HOUSING,Housing and Community Services,20204,Housing Administration Account,A1110,Agency Staff,"2,442.00","G2V Recruitment Group Ltd, t/a Vivid Resourcing",Agency Staff,2019941,202007
Rother District Council,02/10/2020,031RESOURCES,Executive Directors & Corporate Core,20173,Administrative Offices - Town Hall,B2611,Contract cleaning,91.35,Wightman and Parrish Ltd,Contract cleaning - Office Cleaning,2019942,202007
Rother District Council,29/09/2020,031RESOURCES,Executive Directors & Corporate Core,20171,Human Resources,D1201,Equipment & Materials,328.5,Value Products Ltd,Equipment & Materials - Health and Safety Act Equipment,2019943,202007
Rother District Council,29/09/2020,031RESOURCES,Executive Directors & Corporate Core,20171,Human Resources,D1201,Equipment & Materials,873.75,Value Products Ltd,Equipment & Materials - Health and Safety Act Equipment,2019943,202007
Rother District Council,23/09/2020,101RESOURCES,Resources,20240,Printing Services,D2417,Photocopy Paper by external suppliers,380.8,Ricoh UK Limited,Photocopy Paper by external suppliers - White,2019944,202007
Rother District Council,01/09/2020,091HOUSING,Housing and Community Services,20107,Camber Beach & Foreshore,D1201,Equipment & Materials,"1,940.00",MIW Office Solutions Ltd,Refreshments - Water Cooler,2019945,202007
Rother District Council,24/09/2020,031RESOURCES,Executive Directors & Corporate Core,20183,Executive Directors,D2513,Hired and Contracted services,600,REDACTED PERSONAL DATA,Hired and contracted services - Settlement Sums re Legal Issues,2019946,202007
Rother District Council,28/08/2020,091HOUSING,Housing and Community Services,20137,Car Parks,D1201,Equipment & Materials,220,Flowbird Smart City UK Ltd,Equipment & Materials - Car Parks various,2019947,202007
Rother District Council,02/10/2020,091HOUSING,Housing and Community Services,20200,Housing Needs - HB (Housing Benefit),D2514,Accommodation Costs,413,Lillybank Homes Ltd,Accommodation Costs,2019949,202007
Rother District Council,02/10/2020,091HOUSING,Housing and Community Services,20200,Housing Needs - HB (Housing Benefit),D2514,Accommodation Costs,24.99,Lillybank Homes Ltd,Accommodation Costs,2019949,202007
Rother District Council,02/10/2020,091HOUSING,Housing and Community Services,20200,Housing Needs - HB (Housing Benefit),D2514,Accommodation Costs,343,Lillybank Homes Ltd,Accommodation Costs,2019949,202007
Rother District Council,02/10/2020,091HOUSING,Housing and Community Services,20200,Housing Needs - HB (Housing Benefit),D2514,Accommodation Costs,413,Lillybank Homes Ltd,Accommodation Costs,2019949,202007
Rother District Council,02/10/2020,091HOUSING,Housing and Community Services,20200,Housing Needs - HB (Housing Benefit),D2514,Accommodation Costs,24.99,Lillybank Homes Ltd,Accommodation Costs,2019949,202007
Rother District Council,02/10/2020,091HOUSING,Housing and Community Services,20200,Housing Needs - HB (Housing Benefit),D2514,Accommodation Costs,525,Lillybank Homes Ltd,Accommodation Costs,2019949,202007
Rother District Council,02/10/2020,091HOUSING,Housing and Community Services,20200,Housing Needs - HB (Housing Benefit),D2514,Accommodation Costs,455,Lillybank Homes Ltd,Accommodation Costs,2019949,202007
Rother District Council,02/10/2020,091HOUSING,Housing and Community Services,20200,Housing Needs - HB (Housing Benefit),D2514,Accommodation Costs,24.99,Lillybank Homes Ltd,Accommodation Costs,2019949,202007
Rother District Council,02/10/2020,091HOUSING,Housing and Community Services,20200,Housing Needs - HB (Housing Benefit),D2514,Accommodation Costs,413,Lillybank Homes Ltd,Accommodation Costs,2019949,202007
Rother District Council,02/10/2020,091HOUSING,Housing and Community Services,20200,Housing Needs - HB (Housing Benefit),D2514,Accommodation Costs,455,Lillybank Homes Ltd,Accommodation Costs,2019949,202007
Rother District Council,02/10/2020,091HOUSING,Housing and Community Services,20329,Rough Sleeping Initiative,D2514,Accommodation Costs,455,Lillybank Homes Ltd,Accommodation Costs,2019949,202007
Rother District Council,02/10/2020,091HOUSING,Housing and Community Services,20329,Rough Sleeping Initiative,D2514,Accommodation Costs,24.99,Lillybank Homes Ltd,Accommodation Costs,2019949,202007
Rother District Council,23/09/2020,091HOUSING,Housing and Community Services,20261,"TA Purchases (prev - 41 Jameson Mews, Bexhill on Sea)",B1100,Repairs to Premises,18.58,Graham,Repairs to Premises,2019950,202007
Rother District Council,05/10/2020,091HOUSING,Housing and Community Services,20114,Bexhill Parks & Open Spaces,B1100,Repairs to Premises,670.76,Littlewood Fencing Ltd,Repairs to Premises - Purchase of Materials - Build Maint,2019951,202007
Rother District Council,06/10/2020,091HOUSING,Housing and Community Services,20200,Housing Needs - HB (Housing Benefit),D2513,Hired and Contracted services,55,Wealden and Eastbourne Lifeline,Hired and Contracted services,2019952,202007
Rother District Council,06/10/2020,101RESOURCES,Resources,20209,Corporate management,D2513,Hired and Contracted services,6.65,Wealden and Eastbourne Lifeline,Hired and Contracted services,2019953,202007
Rother District Council,01/10/2020,091HOUSING,Housing and Community Services,20108,Bexhill Promenade & Foreshore,B1100,Repairs to Premises,17.95,Trade UK Account (Screwfix & B&Q),Repairs to Premises - Purchase of Materials - Build Maint,2019954,202007
Rother District Council,05/10/2020,091HOUSING,Housing and Community Services,20200,Housing Needs - HB (Housing Benefit),D2514,Accommodation Costs,415,Coast Holiday Lettings Ltd,Accommodation Costs,2019956,202007
Rother District Council,05/10/2020,091HOUSING,Housing and Community Services,20200,Housing Needs - HB (Housing Benefit),D2514,Accommodation Costs,415,Coast Holiday Lettings Ltd,Accommodation Costs,2019956,202007
Rother District Council,05/10/2020,091HOUSING,Housing and Community Services,20200,Housing Needs - HB (Housing Benefit),D2514,Accommodation Costs,415,Coast Holiday Lettings Ltd,Accommodation Costs,2019956,202007
Rother District Council,31/08/2020,041ENVIRON,Environmental Services,32136,EH Pest Control R + W Partnership,C1104,Derv,3.8,Allstar Business Solutions,Derv - Fuel Service fee payable on fuel cards,2019957,202007
Rother District Council,31/08/2020,041ENVIRON,Environmental Services,32136,EH Pest Control R + W Partnership,C1104,Derv,38.33,Allstar Business Solutions,Derv,2019957,202007
Rother District Council,31/08/2020,041ENVIRON,Environmental Services,32136,EH Pest Control R + W Partnership,C1104,Derv,47.5,Allstar Business Solutions,Derv,2019957,202007
Rother District Council,31/08/2020,091HOUSING,Housing and Community Services,20145,Maintenance Services,C1104,Derv,51.67,Allstar Business Solutions,Derv,2019957,202007
Rother District Council,17/09/2020,101RESOURCES,Resources,20216,Cost Of Collection,D2513,Hired and Contracted services,12,H M Land Registry,Hired and contracted services - Council Tax-Land Registry Enquiries,2019958,202007
Rother District Council,17/09/2020,041ENVIRON,Environmental Services,32144,EH Environmental Services Admin R + W Partnership,D2513,Hired and Contracted services,3,H M Land Registry,Hired and contracted services - Env H-Land Registry,2019958,202007
Rother District Council,17/09/2020,071STRAT,Strategy and Planning,20258,BC Dangerous Structures H+R Partnership,D2513,Hired and Contracted services,9,H M Land Registry,Hired and contracted services - Env H-Land Registry,2019958,202007
Rother District Council,17/09/2020,071STRAT,Strategy and Planning,20246,Planning Applications,D2513,Hired and Contracted services,81,H M Land Registry,Hired and contracted services - Land Registry-Planning,2019958,202007
Rother District Council,07/08/2020,041ENVIRON,Environmental Services,32134,EH Pollution R + W Partnership,D2513,Hired and Contracted services,9,H M Land Registry,Hired and contracted services - Env H-Land Registry,2019959,202007
Rother District Council,07/08/2020,041ENVIRON,Environmental Services,32144,EH Environmental Services Admin R + W Partnership,D2513,Hired and Contracted services,6,H M Land Registry,Hired and contracted services - Env H-Land Registry,2019959,202007
Rother District Council,21/09/2020,101RESOURCES,Resources,20216,Cost Of Collection,D2513,Hired and Contracted services,6,H M Land Registry,Hired and contracted services - Council Tax-Land Registry Enquiries,2019960,202007
Rother District Council,21/09/2020,071STRAT,Strategy and Planning,20258,BC Dangerous Structures H+R Partnership,D2513,Hired and Contracted services,6,H M Land Registry,Hired and contracted services - Env H-Land Registry,2019960,202007
Rother District Council,21/09/2020,071STRAT,Strategy and Planning,20246,Planning Applications,D2513,Hired and Contracted services,6,H M Land Registry,Hired and contracted services - Land Registry-Planning,2019960,202007
Rother District Council,28/08/2020,041ENVIRON,Environmental Services,32134,EH Pollution R + W Partnership,D2513,Hired and Contracted services,3,H M Land Registry,Hired and contracted services - Env H-Land Registry,2019961,202007
Rother District Council,28/08/2020,071STRAT,Strategy and Planning,20246,Planning Applications,D2513,Hired and Contracted services,18,H M Land Registry,Hired and contracted services - Land Registry-Planning,2019961,202007
Rother District Council,04/09/2020,101RESOURCES,Resources,20216,Cost Of Collection,D2513,Hired and Contracted services,9,H M Land Registry,Hired and contracted services - Council Tax-Land Registry Enquiries,2019962,202007
Rother District Council,04/09/2020,071STRAT,Strategy and Planning,20258,BC Dangerous Structures H+R Partnership,D2513,Hired and Contracted services,3,H M Land Registry,Hired and contracted services - Env H-Land Registry,2019962,202007
Rother District Council,04/09/2020,091HOUSING,Housing and Community Services,20200,Housing Needs - HB (Housing Benefit),D2513,Hired and Contracted services,12,H M Land Registry,Hired and contracted services - Housing-Land Registry,2019962,202007
Rother District Council,18/09/2020,101RESOURCES,Resources,20216,Cost Of Collection,D2513,Hired and Contracted services,6,H M Land Registry,Hired and contracted services - Council Tax-Land Registry Enquiries,2019963,202007
Rother District Council,18/09/2020,041ENVIRON,Environmental Services,32134,EH Pollution R + W Partnership,D2513,Hired and Contracted services,3,H M Land Registry,Hired and contracted services - Env H-Land Registry,2019963,202007
Rother District Council,18/09/2020,071STRAT,Strategy and Planning,20246,Planning Applications,D2513,Hired and Contracted services,15,H M Land Registry,Hired and contracted services - Land Registry-Planning,2019963,202007
Rother District Council,21/08/2020,041ENVIRON,Environmental Services,32144,EH Environmental Services Admin R + W Partnership,D2513,Hired and Contracted services,3,H M Land Registry,Hired and contracted services - Env H-Land Registry,2019964,202007
Rother District Council,21/08/2020,041ENVIRON,Environmental Services,20129,Community Safety,D2513,Hired and Contracted services,3,H M Land Registry,Hired and contracted services - Env H-Land Registry,2019964,202007
Rother District Council,21/08/2020,071STRAT,Strategy and Planning,20246,Planning Applications,D2513,Hired and Contracted services,18,H M Land Registry,Hired and contracted services - Land Registry-Planning,2019964,202007
Rother District Council,25/09/2020,101RESOURCES,Resources,20216,Cost Of Collection,D2513,Hired and Contracted services,3,H M Land Registry,Hired and contracted services - Council Tax-Land Registry Enquiries,2019965,202007
Rother District Council,25/09/2020,041ENVIRON,Environmental Services,20129,Community Safety,D2513,Hired and Contracted services,15,H M Land Registry,Hired and contracted services - Env H-Land Registry,2019965,202007
Rother District Council,25/09/2020,071STRAT,Strategy and Planning,20258,BC Dangerous Structures H+R Partnership,D2513,Hired and Contracted services,6,H M Land Registry,Hired and contracted services - Env H-Land Registry,2019965,202007
Rother District Council,14/08/2020,101RESOURCES,Resources,20216,Cost Of Collection,D2513,Hired and Contracted services,3,H M Land Registry,Hired and contracted services - Council Tax-Land Registry Enquiries,2019966,202007
Rother District Council,14/08/2020,041ENVIRON,Environmental Services,32144,EH Environmental Services Admin R + W Partnership,D2513,Hired and Contracted services,6,H M Land Registry,Hired and contracted services - Env H-Land Registry,2019966,202007
Rother District Council,14/08/2020,071STRAT,Strategy and Planning,20258,BC Dangerous Structures H+R Partnership,D2513,Hired and Contracted services,3,H M Land Registry,Hired and contracted services - Env H-Land Registry,2019966,202007
Rother District Council,14/08/2020,071STRAT,Strategy and Planning,20258,BC Dangerous Structures H+R Partnership,D2513,Hired and Contracted services,12,H M Land Registry,Hired and contracted services - Env H-Land Registry,2019966,202007
Rother District Council,14/08/2020,071STRAT,Strategy and Planning,20246,Planning Applications,D2513,Hired and Contracted services,6,H M Land Registry,Hired and contracted services - Land Registry-Planning,2019966,202007
Rother District Council,11/09/2020,101RESOURCES,Resources,20216,Cost Of Collection,D2513,Hired and Contracted services,6,H M Land Registry,Hired and contracted services - Council Tax-Land Registry Enquiries,2019967,202007
Rother District Council,11/09/2020,041ENVIRON,Environmental Services,20129,Community Safety,D2513,Hired and Contracted services,6,H M Land Registry,Hired and contracted services - Env H-Land Registry,2019967,202007
Rother District Council,11/09/2020,071STRAT,Strategy and Planning,20258,BC Dangerous Structures H+R Partnership,D2513,Hired and Contracted services,6,H M Land Registry,Hired and contracted services - Env H-Land Registry,2019967,202007
Rother District Council,11/09/2020,071STRAT,Strategy and Planning,20246,Planning Applications,D2513,Hired and Contracted services,30,H M Land Registry,Hired and contracted services - Land Registry-Planning,2019967,202007
Rother District Council,18/08/2020,101RESOURCES,Resources,20216,Cost Of Collection,D2513,Hired and Contracted services,6,H M Land Registry,Hired and contracted services - Council Tax-Land Registry Enquiries,2019968,202007
Rother District Council,18/08/2020,041ENVIRON,Environmental Services,20129,Community Safety,D2513,Hired and Contracted services,36,H M Land Registry,Hired and contracted services - Env H-Land Registry,2019968,202007
Rother District Council,18/08/2020,071STRAT,Strategy and Planning,20246,Planning Applications,D2513,Hired and Contracted services,9,H M Land Registry,Hired and contracted services - Land Registry-Planning,2019968,202007
Rother District Council,24/09/2020,101RESOURCES,Resources,20216,Cost Of Collection,D2513,Hired and Contracted services,9,H M Land Registry,Hired and contracted services - Council Tax-Land Registry Enquiries,2019969,202007
Rother District Council,24/09/2020,041ENVIRON,Environmental Services,32144,EH Environmental Services Admin R + W Partnership,D2513,Hired and Contracted services,15,H M Land Registry,Hired and contracted services - Env H-Land Registry,2019969,202007
Rother District Council,24/09/2020,071STRAT,Strategy and Planning,20258,BC Dangerous Structures H+R Partnership,D2513,Hired and Contracted services,3,H M Land Registry,Hired and contracted services - Env H-Land Registry,2019969,202007
Rother District Council,24/09/2020,091HOUSING,Housing and Community Services,20200,Housing Needs - HB (Housing Benefit),D2513,Hired and Contracted services,12,H M Land Registry,Hired and contracted services - Housing-Land Registry,2019969,202007
Rother District Council,24/09/2020,071STRAT,Strategy and Planning,20246,Planning Applications,D2513,Hired and Contracted services,12,H M Land Registry,Hired and contracted services - Land Registry-Planning,2019969,202007
Rother District Council,31/07/2020,101RESOURCES,Resources,20216,Cost Of Collection,D2513,Hired and Contracted services,12,H M Land Registry,Hired and contracted services - Council Tax-Land Registry Enquiries,2019970,202007
Rother District Council,31/07/2020,041ENVIRON,Environmental Services,32144,EH Environmental Services Admin R + W Partnership,D2513,Hired and Contracted services,3,H M Land Registry,Hired and contracted services - Env H-Land Registry,2019970,202007
Rother District Council,31/07/2020,041ENVIRON,Environmental Services,32134,EH Pollution R + W Partnership,D2513,Hired and Contracted services,3,H M Land Registry,Hired and contracted services - Env H-Land Registry,2019970,202007
Rother District Council,31/07/2020,071STRAT,Strategy and Planning,20258,BC Dangerous Structures H+R Partnership,D2513,Hired and Contracted services,3,H M Land Registry,Hired and contracted services - Env H-Land Registry,2019970,202007
Rother District Council,31/07/2020,071STRAT,Strategy and Planning,20258,BC Dangerous Structures H+R Partnership,D2513,Hired and Contracted services,6,H M Land Registry,Hired and contracted services - Env H-Land Registry,2019970,202007
Rother District Council,31/07/2020,071STRAT,Strategy and Planning,20246,Planning Applications,D2513,Hired and Contracted services,18,H M Land Registry,Hired and contracted services - Land Registry-Planning,2019970,202007
Rother District Council,31/07/2020,081ACQUISIT,"Acquisitions, Transformation and Regeneration",20121,Programme and Policy Office,D2513,Hired and Contracted services,6,H M Land Registry,Hired and contracted services - Land Registry-Property Management,2019970,202007
Rother District Council,06/08/2020,101RESOURCES,Resources,20216,Cost Of Collection,D2513,Hired and Contracted services,15,H M Land Registry,Hired and contracted services - Council Tax-Land Registry Enquiries,2019971,202007
Rother District Council,06/08/2020,041ENVIRON,Environmental Services,32134,EH Pollution R + W Partnership,D2513,Hired and Contracted services,9,H M Land Registry,Hired and contracted services - Env H-Land Registry,2019971,202007
Rother District Council,06/08/2020,071STRAT,Strategy and Planning,20258,BC Dangerous Structures H+R Partnership,D2513,Hired and Contracted services,6,H M Land Registry,Hired and contracted services - Env H-Land Registry,2019971,202007
Rother District Council,06/08/2020,091HOUSING,Housing and Community Services,20200,Housing Needs - HB (Housing Benefit),D2513,Hired and Contracted services,6,H M Land Registry,Hired and contracted services - Housing-Land Registry,2019971,202007
Rother District Council,06/08/2020,071STRAT,Strategy and Planning,20246,Planning Applications,D2513,Hired and Contracted services,12,H M Land Registry,Hired and contracted services - Land Registry-Planning,2019971,202007
Rother District Council,06/08/2020,081ACQUISIT,"Acquisitions, Transformation and Regeneration",20144,Property Management,D2513,Hired and Contracted services,6,H M Land Registry,Hired and contracted services - Land Registry-Property Management,2019971,202007
Rother District Council,27/08/2020,101RESOURCES,Resources,20216,Cost Of Collection,D2513,Hired and Contracted services,3,H M Land Registry,Hired and contracted services - Council Tax-Land Registry Enquiries,2019972,202007
Rother District Council,27/08/2020,041ENVIRON,Environmental Services,20129,Community Safety,D2513,Hired and Contracted services,12,H M Land Registry,Hired and contracted services - Env H-Land Registry,2019972,202007
Rother District Council,27/08/2020,041ENVIRON,Environmental Services,32134,EH Pollution R + W Partnership,D2513,Hired and Contracted services,6,H M Land Registry,Hired and contracted services - Env H-Land Registry,2019972,202007
Rother District Council,27/08/2020,071STRAT,Strategy and Planning,20258,BC Dangerous Structures H+R Partnership,D2513,Hired and Contracted services,9,H M Land Registry,Hired and contracted services - Env H-Land Registry,2019972,202007
Rother District Council,27/08/2020,071STRAT,Strategy and Planning,20258,BC Dangerous Structures H+R Partnership,D2513,Hired and Contracted services,3,H M Land Registry,Hired and contracted services - Env H-Land Registry,2019972,202007
Rother District Council,27/08/2020,071STRAT,Strategy and Planning,20246,Planning Applications,D2513,Hired and Contracted services,15,H M Land Registry,Hired and contracted services - Land Registry-Planning,2019972,202007
Rother District Council,27/08/2020,081ACQUISIT,"Acquisitions, Transformation and Regeneration",20144,Property Management,D2513,Hired and Contracted services,6,H M Land Registry,Hired and contracted services - Land Registry-Property Management,2019972,202007
Rother District Council,10/09/2020,101RESOURCES,Resources,20216,Cost Of Collection,D2513,Hired and Contracted services,12,H M Land Registry,Hired and contracted services - Council Tax-Land Registry Enquiries,2019973,202007
Rother District Council,10/09/2020,041ENVIRON,Environmental Services,32134,EH Pollution R + W Partnership,D2513,Hired and Contracted services,6,H M Land Registry,Hired and contracted services - Env H-Land Registry,2019973,202007
Rother District Council,10/09/2020,041ENVIRON,Environmental Services,20129,Community Safety,D2513,Hired and Contracted services,3,H M Land Registry,Hired and contracted services - Env H-Land Registry,2019973,202007
Rother District Council,10/09/2020,041ENVIRON,Environmental Services,32144,EH Environmental Services Admin R + W Partnership,D2513,Hired and Contracted services,3,H M Land Registry,Hired and contracted services - Env H-Land Registry,2019973,202007
Rother District Council,10/09/2020,071STRAT,Strategy and Planning,20258,BC Dangerous Structures H+R Partnership,D2513,Hired and Contracted services,3,H M Land Registry,Hired and contracted services - Env H-Land Registry,2019973,202007
Rother District Council,10/09/2020,071STRAT,Strategy and Planning,20246,Planning Applications,D2513,Hired and Contracted services,39,H M Land Registry,Hired and contracted services - Land Registry-Planning,2019973,202007
Rother District Council,01/09/2020,101RESOURCES,Resources,20216,Cost Of Collection,D2513,Hired and Contracted services,3,H M Land Registry,Hired and contracted services - Council Tax-Land Registry Enquiries,2019974,202007
Rother District Council,01/09/2020,071STRAT,Strategy and Planning,20258,BC Dangerous Structures H+R Partnership,D2513,Hired and Contracted services,3,H M Land Registry,Hired and contracted services - Env H-Land Registry,2019974,202007
Rother District Council,01/09/2020,091HOUSING,Housing and Community Services,20200,Housing Needs - HB (Housing Benefit),D2513,Hired and Contracted services,3,H M Land Registry,Hired and contracted services - Housing-Land Registry,2019974,202007
Rother District Council,14/09/2020,101RESOURCES,Resources,20216,Cost Of Collection,D2513,Hired and Contracted services,6,H M Land Registry,Hired and contracted services - Council Tax-Land Registry Enquiries,2019975,202007
Rother District Council,14/09/2020,041ENVIRON,Environmental Services,32144,EH Environmental Services Admin R + W Partnership,D2513,Hired and Contracted services,3,H M Land Registry,Hired and contracted services - Env H-Land Registry,2019975,202007
Rother District Council,14/09/2020,071STRAT,Strategy and Planning,20246,Planning Applications,D2513,Hired and Contracted services,87,H M Land Registry,Hired and contracted services - Land Registry-Planning,2019975,202007
Rother District Council,15/09/2020,071STRAT,Strategy and Planning,20246,Planning Applications,D2513,Hired and Contracted services,99,H M Land Registry,Hired and contracted services - Land Registry-Planning,2019976,202007
Rother District Council,31/08/2020,101RESOURCES,Resources,20209,Corporate management,D2513,Hired and Contracted services,983.07,allpay.net Ltd,Hired and contracted services - Allpay Card/Rep/Let Chrg - Vatable,2019977,202007
Rother District Council,31/08/2020,101RESOURCES,Resources,20209,Corporate management,D2513,Hired and Contracted services,17,allpay.net Ltd,Hired and contracted services - Allpay Card/Rep/Let Chrg - Vatable,2019978,202007
Rother District Council,31/08/2020,101RESOURCES,Resources,20209,Corporate management,D2513,Hired and Contracted services,11.88,allpay.net Ltd,Hired and contracted services - Allpay Card/Rep/Let Chrg - Vatable,2019979,202007
Rother District Council,31/08/2020,101RESOURCES,Resources,20209,Corporate management,D2513,Hired and Contracted services,14.23,allpay.net Ltd,Hired and contracted services - Allpay Card/Rep/Let Chrg - Vatable,2019980,202007
Rother District Council,01/10/2020,091HOUSING,Housing and Community Services,20128,Public Conveniences,B2611,Contract cleaning,840.07,Specialist Hygiene Services Ltd,Contract cleaning - Public Conveniences Cleaning Servic,2019981,202007
Rother District Council,01/10/2020,091HOUSING,Housing and Community Services,20128,Public Conveniences,B2611,Contract cleaning,743.08,Specialist Hygiene Services Ltd,Contract cleaning - Public Conveniences Cleaning Servic,2019981,202007
Rother District Council,01/10/2020,091HOUSING,Housing and Community Services,20128,Public Conveniences,B2611,Contract cleaning,196.06,Specialist Hygiene Services Ltd,Contract cleaning - Public Conveniences Cleaning Servic,2019981,202007
Rother District Council,01/10/2020,091HOUSING,Housing and Community Services,20128,Public Conveniences,B2611,Contract cleaning,700.01,Specialist Hygiene Services Ltd,Contract cleaning - Public Conveniences Cleaning Servic,2019981,202007
Rother District Council,01/10/2020,091HOUSING,Housing and Community Services,20128,Public Conveniences,B2611,Contract cleaning,504.04,Specialist Hygiene Services Ltd,Contract cleaning - Public Conveniences Cleaning Servic,2019981,202007
Rother District Council,01/10/2020,091HOUSING,Housing and Community Services,20128,Public Conveniences,B2611,Contract cleaning,840.07,Specialist Hygiene Services Ltd,Contract cleaning - Public Conveniences Cleaning Servic,2019981,202007
Rother District Council,01/10/2020,091HOUSING,Housing and Community Services,20128,Public Conveniences,B2611,Contract cleaning,504.04,Specialist Hygiene Services Ltd,Contract cleaning - Public Conveniences Cleaning Servic,2019981,202007
Rother District Council,01/10/2020,091HOUSING,Housing and Community Services,20128,Public Conveniences,B2611,Contract cleaning,615.96,Specialist Hygiene Services Ltd,Contract cleaning - Public Conveniences Cleaning Servic,2019981,202007
Rother District Council,01/10/2020,091HOUSING,Housing and Community Services,20128,Public Conveniences,B2611,Contract cleaning,280.02,Specialist Hygiene Services Ltd,Contract cleaning - Public Conveniences Cleaning Servic,2019981,202007
Rother District Council,01/10/2020,091HOUSING,Housing and Community Services,20128,Public Conveniences,B2611,Contract cleaning,336.03,Specialist Hygiene Services Ltd,Contract cleaning - Public Conveniences Cleaning Servic,2019981,202007
Rother District Council,01/10/2020,091HOUSING,Housing and Community Services,20128,Public Conveniences,B2611,Contract cleaning,588,Specialist Hygiene Services Ltd,Contract cleaning - Public Conveniences Cleaning Servic,2019981,202007
Rother District Council,01/10/2020,091HOUSING,Housing and Community Services,20128,Public Conveniences,B2611,Contract cleaning,532,Specialist Hygiene Services Ltd,Contract cleaning - Public Conveniences Cleaning Servic,2019981,202007
Rother District Council,01/10/2020,091HOUSING,Housing and Community Services,20128,Public Conveniences,B2611,Contract cleaning,251.98,Specialist Hygiene Services Ltd,Contract cleaning - Public Conveniences Cleaning Servic,2019981,202007
Rother District Council,01/10/2020,091HOUSING,Housing and Community Services,20128,Public Conveniences,B2611,Contract cleaning,559.96,Specialist Hygiene Services Ltd,Contract cleaning - Public Conveniences Cleaning Servic,2019981,202007
Rother District Council,01/10/2020,091HOUSING,Housing and Community Services,20128,Public Conveniences,B2611,Contract cleaning,307.98,Specialist Hygiene Services Ltd,Contract cleaning - Public Conveniences Cleaning Servic,2019981,202007
Rother District Council,01/10/2020,091HOUSING,Housing and Community Services,20128,Public Conveniences,B2611,Contract cleaning,504.04,Specialist Hygiene Services Ltd,Contract cleaning - Public Conveniences Cleaning Servic,2019981,202007
Rother District Council,01/10/2020,091HOUSING,Housing and Community Services,20128,Public Conveniences,B2611,Contract cleaning,742.56,Specialist Hygiene Services Ltd,Contract cleaning - Public Conveniences Cleaning Servic,2019981,202007
Rother District Council,01/10/2020,091HOUSING,Housing and Community Services,20128,Public Conveniences,B2611,Contract cleaning,"1,215.52",Specialist Hygiene Services Ltd,Contract cleaning - Public Conveniences Cleaning Servic,2019981,202007
Rother District Council,01/10/2020,091HOUSING,Housing and Community Services,20128,Public Conveniences,B2611,Contract cleaning,472.87,Specialist Hygiene Services Ltd,Contract cleaning - Public Conveniences Cleaning Servic,2019981,202007
Rother District Council,01/10/2020,091HOUSING,Housing and Community Services,20128,Public Conveniences,B2611,Contract cleaning,928.11,Specialist Hygiene Services Ltd,Contract cleaning - Public Conveniences Cleaning Servic,2019981,202007
Rother District Council,01/10/2020,091HOUSING,Housing and Community Services,20128,Public Conveniences,B2611,Contract cleaning,"1,231.27",Specialist Hygiene Services Ltd,Contract cleaning - Public Conveniences Cleaning Servic,2019981,202007
Rother District Council,01/10/2020,091HOUSING,Housing and Community Services,20128,Public Conveniences,B2611,Contract cleaning,"1,231.27",Specialist Hygiene Services Ltd,Contract cleaning - Public Conveniences Cleaning Servic,2019981,202007
Rother District Council,01/10/2020,091HOUSING,Housing and Community Services,20128,Public Conveniences,B2611,Contract cleaning,"1,751.03",Specialist Hygiene Services Ltd,Contract cleaning - Public Conveniences Cleaning Servic,2019981,202007
Rother District Council,01/10/2020,091HOUSING,Housing and Community Services,20128,Public Conveniences,B2611,Contract cleaning,290.7,Specialist Hygiene Services Ltd,Contract cleaning - Public Conveniences Cleaning Servic,2019981,202007
Rother District Council,01/10/2020,091HOUSING,Housing and Community Services,20128,Public Conveniences,B2611,Contract cleaning,387.69,Specialist Hygiene Services Ltd,Contract cleaning - Public Conveniences Cleaning Servic,2019981,202007
Rother District Council,01/10/2020,091HOUSING,Housing and Community Services,20128,Public Conveniences,B2611,Contract cleaning,323.94,Specialist Hygiene Services Ltd,Contract cleaning - Public Conveniences Cleaning Servic,2019981,202007
Rother District Council,01/10/2020,091HOUSING,Housing and Community Services,20128,Public Conveniences,B2611,Contract cleaning,355.39,Specialist Hygiene Services Ltd,Contract cleaning - Public Conveniences Cleaning Servic,2019981,202007
Rother District Council,01/10/2020,091HOUSING,Housing and Community Services,20128,Public Conveniences,B2611,Contract cleaning,387.69,Specialist Hygiene Services Ltd,Contract cleaning - Public Conveniences Cleaning Servic,2019981,202007
Rother District Council,01/10/2020,091HOUSING,Housing and Community Services,20128,Public Conveniences,B2611,Contract cleaning,290.7,Specialist Hygiene Services Ltd,Contract cleaning - Public Conveniences Cleaning Servic,2019981,202007
Rother District Council,01/10/2020,091HOUSING,Housing and Community Services,20128,Public Conveniences,B2611,Contract cleaning,567.62,Specialist Hygiene Services Ltd,Contract cleaning - Public Conveniences Cleaning Servic,2019981,202007
Rother District Council,02/10/2020,091HOUSING,Housing and Community Services,20128,Public Conveniences,D2513,Hired and Contracted services,470,Clearwater Technology Ltd,Hired and contracted services - Legionella Sampling and Monitoring,2019982,202007
Rother District Council,05/10/2020,091HOUSING,Housing and Community Services,20114,Bexhill Parks & Open Spaces,D1201,Equipment & Materials,"1,209.00",Streetmaster (South Wales) Ltd,Equipment & Materials - Parks Purchase of Seats/ Benches/Plaques,2019983,202007
Rother District Council,05/10/2020,091HOUSING,Housing and Community Services,20200,Housing Needs - HB (Housing Benefit),D2514,Accommodation Costs,390,PADA Hanlon Ltd,Accommodation Costs,2019984,202007
Rother District Council,05/10/2020,091HOUSING,Housing and Community Services,20200,Housing Needs - HB (Housing Benefit),D2514,Accommodation Costs,390,PADA Hanlon Ltd,Accommodation Costs,2019984,202007
Rother District Council,05/10/2020,091HOUSING,Housing and Community Services,20200,Housing Needs - HB (Housing Benefit),D2514,Accommodation Costs,390,PADA Hanlon Ltd,Accommodation Costs,2019984,202007
Rother District Council,05/10/2020,091HOUSING,Housing and Community Services,20200,Housing Needs - HB (Housing Benefit),D2514,Accommodation Costs,25,PADA Hanlon Ltd,Accommodation Costs,2019984,202007
Rother District Council,30/09/2020,999NOREPORT,"Acquisitions, Transformation and Regeneration",70725,Capital - Blackfriars,N1004,Architects & Consultant Fees,"1,925.00",GTA Civils Ltd,Architects & Consultant Fees Capital-Architect and Conslt Fees,2019985,202007
Rother District Council,05/10/2020,091HOUSING,Housing and Community Services,20200,Housing Needs - HB (Housing Benefit),D2514,Accommodation Costs,415,47-48 Havelock Road Ltd,Accommodation Costs,2019986,202007
Rother District Council,05/10/2020,031RESOURCES,Executive Directors & Corporate Core,20276,COVID19 RDC expenditure,D2514,Accommodation Costs,315,REDACTED PERSONAL DATA,Accomodation Costs - Housing Due to Covid 19 NoVAT,2019987,202007
Rother District Council,05/10/2020,031RESOURCES,Executive Directors & Corporate Core,20276,COVID19 RDC expenditure,D2514,Accommodation Costs,315,REDACTED PERSONAL DATA,Accomodation Costs - Housing Due to Covid 19 NoVAT,2019987,202007
Rother District Council,05/10/2020,031RESOURCES,Executive Directors & Corporate Core,20276,COVID19 RDC expenditure,D2514,Accommodation Costs,315,REDACTED PERSONAL DATA,Accomodation Costs - Housing Due to Covid 19 NoVAT,2019987,202007
Rother District Council,05/10/2020,031RESOURCES,Executive Directors & Corporate Core,20276,COVID19 RDC expenditure,D2514,Accommodation Costs,315,REDACTED PERSONAL DATA,Accomodation Costs - Housing Due to Covid 19 NoVAT,2019987,202007
Rother District Council,05/10/2020,031RESOURCES,Executive Directors & Corporate Core,20276,COVID19 RDC expenditure,D2514,Accommodation Costs,315,REDACTED PERSONAL DATA,Hired and Contracted Services - Housing Misc Costs relating to Covid 19,2019987,202007
Rother District Council,05/10/2020,091HOUSING,Housing and Community Services,20200,Housing Needs - HB (Housing Benefit),D2514,Accommodation Costs,315,REDACTED PERSONAL DATA,Accommodation Costs,2019987,202007
Rother District Council,05/10/2020,091HOUSING,Housing and Community Services,20200,Housing Needs - HB (Housing Benefit),D2514,Accommodation Costs,315,REDACTED PERSONAL DATA,Accommodation Costs,2019987,202007
Rother District Council,05/10/2020,091HOUSING,Housing and Community Services,20200,Housing Needs - HB (Housing Benefit),D2514,Accommodation Costs,315,REDACTED PERSONAL DATA,Accommodation Costs,2019987,202007
Rother District Council,05/10/2020,091HOUSING,Housing and Community Services,20200,Housing Needs - HB (Housing Benefit),D2514,Accommodation Costs,315,REDACTED PERSONAL DATA,Accommodation Costs,2019987,202007
Rother District Council,05/10/2020,091HOUSING,Housing and Community Services,20200,Housing Needs - HB (Housing Benefit),D2514,Accommodation Costs,315,REDACTED PERSONAL DATA,Accommodation Costs,2019987,202007
Rother District Council,05/10/2020,101RESOURCES,Resources,20239,Computer Services,D2621,Telephones,477.18,Interoute Networks Ltd,Telephones - Leased Line Rental,2019988,202007
Rother District Council,02/10/2020,091HOUSING,Housing and Community Services,20128,Public Conveniences,B2422,Sewerage,330,CountyClean Environmental Services Ltd,Sewerage - Sewage/Cesspool Emptying,2019989,202007
Rother District Council,30/09/2020,031RESOURCES,Executive Directors & Corporate Core,20173,Administrative Offices - Town Hall,B2611,Contract cleaning,34.2,Data Shredding Services Ltd,Third party payment private contractors - Commercial Waste Collection Contract,2019990,202007
Rother District Council,05/10/2020,031RESOURCES,Executive Directors & Corporate Core,20276,COVID19 RDC expenditure,D2514,Accommodation Costs,402.5,South Down Residential Ltd,Accomodation Costs - Housing Due to Covid 19,2019991,202007
Rother District Council,05/10/2020,031RESOURCES,Executive Directors & Corporate Core,20276,COVID19 RDC expenditure,D2514,Accommodation Costs,420.01,South Down Residential Ltd,Accomodation Costs - Housing Due to Covid 19,2019991,202007
Rother District Council,05/10/2020,031RESOURCES,Executive Directors & Corporate Core,20276,COVID19 RDC expenditure,D2514,Accommodation Costs,322,South Down Residential Ltd,Accomodation Costs - Housing Due to Covid 19,2019991,202007
Rother District Council,05/10/2020,031RESOURCES,Executive Directors & Corporate Core,20276,COVID19 RDC expenditure,D2514,Accommodation Costs,80.5,South Down Residential Ltd,Accomodation Costs - Housing Due to Covid 19,2019991,202007
Rother District Council,05/10/2020,091HOUSING,Housing and Community Services,20200,Housing Needs - HB (Housing Benefit),D2514,Accommodation Costs,302.4,South Down Residential Ltd,Accommodation Costs,2019991,202007
Rother District Council,05/10/2020,091HOUSING,Housing and Community Services,20200,Housing Needs - HB (Housing Benefit),D2514,Accommodation Costs,75.6,South Down Residential Ltd,Accommodation Costs,2019991,202007
Rother District Council,05/10/2020,091HOUSING,Housing and Community Services,20200,Housing Needs - HB (Housing Benefit),D2514,Accommodation Costs,145.6,South Down Residential Ltd,Accommodation Costs,2019991,202007
Rother District Council,05/10/2020,091HOUSING,Housing and Community Services,20200,Housing Needs - HB (Housing Benefit),D2514,Accommodation Costs,36.4,South Down Residential Ltd,Accommodation Costs,2019991,202007
Rother District Council,05/10/2020,091HOUSING,Housing and Community Services,20200,Housing Needs - HB (Housing Benefit),D2514,Accommodation Costs,352.8,South Down Residential Ltd,Accommodation Costs,2019991,202007
Rother District Council,05/10/2020,091HOUSING,Housing and Community Services,20200,Housing Needs - HB (Housing Benefit),D2514,Accommodation Costs,88.2,South Down Residential Ltd,Accommodation Costs,2019991,202007
Rother District Council,05/10/2020,091HOUSING,Housing and Community Services,20200,Housing Needs - HB (Housing Benefit),D2514,Accommodation Costs,302.4,South Down Residential Ltd,Accommodation Costs,2019991,202007
Rother District Council,05/10/2020,091HOUSING,Housing and Community Services,20200,Housing Needs - HB (Housing Benefit),D2514,Accommodation Costs,75.6,South Down Residential Ltd,Accommodation Costs,2019991,202007
Rother District Council,05/10/2020,091HOUSING,Housing and Community Services,20200,Housing Needs - HB (Housing Benefit),D2514,Accommodation Costs,302.4,South Down Residential Ltd,Accommodation Costs,2019991,202007
Rother District Council,05/10/2020,091HOUSING,Housing and Community Services,20200,Housing Needs - HB (Housing Benefit),D2514,Accommodation Costs,75.6,South Down Residential Ltd,Accommodation Costs,2019991,202007
Rother District Council,05/10/2020,091HOUSING,Housing and Community Services,20200,Housing Needs - HB (Housing Benefit),D2514,Accommodation Costs,86.4,South Down Residential Ltd,Accommodation Costs,2019991,202007
Rother District Council,05/10/2020,091HOUSING,Housing and Community Services,20200,Housing Needs - HB (Housing Benefit),D2514,Accommodation Costs,21.6,South Down Residential Ltd,Accommodation Costs,2019991,202007
Rother District Council,05/10/2020,091HOUSING,Housing and Community Services,20329,Rough Sleeping Initiative,D2514,Accommodation Costs,336,South Down Residential Ltd,Accommodation Costs,2019991,202007
Rother District Council,05/10/2020,091HOUSING,Housing and Community Services,20329,Rough Sleeping Initiative,D2514,Accommodation Costs,84,South Down Residential Ltd,Accommodation Costs,2019991,202007
Rother District Council,05/10/2020,031RESOURCES,Executive Directors & Corporate Core,20276,COVID19 RDC expenditure,D2514,Accommodation Costs,425,Lets 2 Share Limited,Accomodation Costs - Housing Due to Covid 19 NoVAT,2019992,202007
Rother District Council,05/10/2020,091HOUSING,Housing and Community Services,20261,"TA Purchases (prev - 41 Jameson Mews, Bexhill on Sea)",D2513,Hired and Contracted services,127.15,Lets 2 Share Limited,Hired and contracted services - Service fee paid,2019992,202007
Rother District Council,05/10/2020,091HOUSING,Housing and Community Services,20200,Housing Needs - HB (Housing Benefit),D2514,Accommodation Costs,385,Lets 2 Share Limited,Accommodation Costs,2019992,202007
Rother District Council,05/10/2020,091HOUSING,Housing and Community Services,20200,Housing Needs - HB (Housing Benefit),D2514,Accommodation Costs,385,Lets 2 Share Limited,Accommodation Costs,2019992,202007
Rother District Council,05/10/2020,091HOUSING,Housing and Community Services,20200,Housing Needs - HB (Housing Benefit),D2514,Accommodation Costs,385,Lets 2 Share Limited,Accommodation Costs,2019992,202007
Rother District Council,05/10/2020,091HOUSING,Housing and Community Services,20200,Housing Needs - HB (Housing Benefit),D2514,Accommodation Costs,260,Lets 2 Share Limited,Accommodation Costs,2019992,202007
Rother District Council,05/10/2020,091HOUSING,Housing and Community Services,20200,Housing Needs - HB (Housing Benefit),D2514,Accommodation Costs,260,Lets 2 Share Limited,Accommodation Costs,2019992,202007
Rother District Council,05/10/2020,091HOUSING,Housing and Community Services,20200,Housing Needs - HB (Housing Benefit),D2514,Accommodation Costs,360,Lets 2 Share Limited,Accommodation Costs,2019992,202007
Rother District Council,05/10/2020,091HOUSING,Housing and Community Services,20200,Housing Needs - HB (Housing Benefit),D2514,Accommodation Costs,260,Lets 2 Share Limited,Accommodation Costs,2019992,202007
Rother District Council,05/10/2020,091HOUSING,Housing and Community Services,20200,Housing Needs - HB (Housing Benefit),D2514,Accommodation Costs,385,Lets 2 Share Limited,Accommodation Costs,2019992,202007
Rother District Council,30/09/2020,091HOUSING,Housing and Community Services,20200,Housing Needs - HB (Housing Benefit),D2513,Hired and Contracted services,84,Town Taxis,Hired and Contracted services,2019993,202007
Rother District Council,05/10/2020,091HOUSING,Housing and Community Services,20206,Syrians,D2513,Hired and Contracted services,125,Amberley Nursery Ltd,Hired and contracted services - Syrian-Education-Exempt VAT,2019994,202007
Rother District Council,02/10/2020,101RESOURCES,Resources,20239,Computer Services,D2632,Additional Computer Equipment,"17,875.00",Dell Corporation Ltd,Additional Computer Equipment - New PC/Computer,2019995,202007
Rother District Council,05/10/2020,091HOUSING,Housing and Community Services,20200,Housing Needs - HB (Housing Benefit),D2514,Accommodation Costs,340,PADA Hanlon Ltd,Accommodation Costs,2019996,202007
Rother District Council,05/10/2020,031RESOURCES,Executive Directors & Corporate Core,20276,COVID19 RDC expenditure,D2514,Accommodation Costs,300,Roost People Ltd,Accomodation Costs - Housing Due to Covid 19 NoVAT,2019997,202007
Rother District Council,05/10/2020,031RESOURCES,Executive Directors & Corporate Core,20276,COVID19 RDC expenditure,D2514,Accommodation Costs,415,Roost People Ltd,Accomodation Costs - Housing Due to Covid 19 NoVAT,2019997,202007
Rother District Council,05/10/2020,091HOUSING,Housing and Community Services,20200,Housing Needs - HB (Housing Benefit),D2514,Accommodation Costs,415,Roost People Ltd,Accommodation Costs,2019997,202007
Rother District Council,05/10/2020,091HOUSING,Housing and Community Services,20200,Housing Needs - HB (Housing Benefit),D2514,Accommodation Costs,415,Roost People Ltd,Accommodation Costs,2019997,202007
Rother District Council,05/10/2020,091HOUSING,Housing and Community Services,20200,Housing Needs - HB (Housing Benefit),D2514,Accommodation Costs,390,Roost People Ltd,Accommodation Costs,2019997,202007
Rother District Council,05/10/2020,091HOUSING,Housing and Community Services,20200,Housing Needs - HB (Housing Benefit),D2514,Accommodation Costs,340,Roost People Ltd,Accommodation Costs,2019997,202007
Rother District Council,05/10/2020,091HOUSING,Housing and Community Services,20200,Housing Needs - HB (Housing Benefit),D2514,Accommodation Costs,390,Roost People Ltd,Accommodation Costs,2019997,202007
Rother District Council,05/10/2020,091HOUSING,Housing and Community Services,20200,Housing Needs - HB (Housing Benefit),D2514,Accommodation Costs,340,Roost People Ltd,Accommodation Costs,2019997,202007
Rother District Council,05/10/2020,091HOUSING,Housing and Community Services,20200,Housing Needs - HB (Housing Benefit),D2514,Accommodation Costs,340,Roost People Ltd,Accommodation Costs,2019997,202007
Rother District Council,05/10/2020,091HOUSING,Housing and Community Services,20200,Housing Needs - HB (Housing Benefit),D2514,Accommodation Costs,390,Roost People Ltd,Accommodation Costs,2019997,202007
Rother District Council,05/10/2020,091HOUSING,Housing and Community Services,20200,Housing Needs - HB (Housing Benefit),D2514,Accommodation Costs,390,Roost People Ltd,Accommodation Costs,2019997,202007
Rother District Council,01/10/2020,101RESOURCES,Resources,20242,Communications-Phones,D2621,Telephones,"17,522.47",KCOM Group Plc,Telephones - KCOM Smartnumber Charges,2019998,202007
Rother District Council,01/10/2020,101RESOURCES,Resources,20242,Communications-Phones,D2621,Telephones,26,KCOM Group Plc,Telephones - KCOM Smartnumber Charges,2019999,202007
Rother District Council,01/10/2020,101RESOURCES,Resources,20242,Communications-Phones,D2621,Telephones,"9,916.14",KCOM Group Plc,Telephones - KCOM Smartnumber Charges,2020000,202007
Rother District Council,02/10/2020,101RESOURCES,Resources,20242,Communications-Phones,D2621,Telephones,"5,492.92",KCOM Group Plc,Telephones - KCOM Smartnumber Charges,2020001,202007
Rother District Council,28/09/2020,031RESOURCES,Executive Directors & Corporate Core,20276,COVID19 RDC expenditure,D2514,Accommodation Costs,252,Savoy Court Ltd,Accomodation Costs - Housing Due to Covid 19,2020003,202007
Rother District Council,28/09/2020,031RESOURCES,Executive Directors & Corporate Core,20276,COVID19 RDC expenditure,D2514,Accommodation Costs,63,Savoy Court Ltd,Accomodation Costs - Housing Due to Covid 19,2020003,202007
Rother District Council,28/09/2020,091HOUSING,Housing and Community Services,20200,Housing Needs - HB (Housing Benefit),D2514,Accommodation Costs,420,Savoy Court Ltd,Accommodation Costs,2020004,202007
Rother District Council,28/09/2020,091HOUSING,Housing and Community Services,20200,Housing Needs - HB (Housing Benefit),D2514,Accommodation Costs,105,Savoy Court Ltd,Accommodation Costs,2020004,202007
Rother District Council,28/09/2020,091HOUSING,Housing and Community Services,20329,Rough Sleeping Initiative,D2514,Accommodation Costs,252,Savoy Court Ltd,Accommodation Costs,2020005,202007
Rother District Council,28/09/2020,091HOUSING,Housing and Community Services,20329,Rough Sleeping Initiative,D2514,Accommodation Costs,63,Savoy Court Ltd,Accommodation Costs,2020005,202007
Rother District Council,01/10/2020,071STRAT,Strategy and Planning,20246,Planning Applications,A2202,Recruitment expenses,500,Tarson Limited (PlanningJobs.com),Recruitment expenses Advertising Vacant Post,2020006,202007
Rother District Council,30/09/2020,031RESOURCES,Executive Directors & Corporate Core,20171,Human Resources,A2203,Training,200,Beckwith Consulting Ltd,Training,2020007,202007
Rother District Council,01/10/2020,081ACQUISIT,"Acquisitions, Transformation and Regeneration",20153,"Elva Business Centre, Bexhill",B1100,Repairs to Premises,63.7,J M Waste Management Limited,Contract cleaning - Office Cleaning,2020008,202007
Rother District Council,30/09/2020,101RESOURCES,Resources,20222,Accountancy,D2513,Hired and Contracted services,"2,050.86",Embridge Consulting (UK) Ltd,Hired and contracted services - Consultancy Service per Contract,2020009,202007
Rother District Council,30/09/2020,041ENVIRON,Environmental Services,32142,EH Taxi and Private Hire Licenses R + W Partnership,D2513,Hired and Contracted services,205,DBS The Disclosure and Barring Service,Hired and contracted services - Service fee paid,2020010,202007
Rother District Council,06/10/2020,071STRAT,Strategy and Planning,20259,Land Charges,D2632,Additional Computer Equipment,"1,850.00",Ocella Ltd,Additional Computer Equipment - OCELLA Amendments/Upgrading,2020011,202007
Rother District Council,02/10/2020,071STRAT,Strategy and Planning,20246,Planning Applications,D2509,Consultants and Other Services,"1,735.30",Top Level Solutions Limited,Consultants and other services - Consultants Fees,2020012,202007
Rother District Council,02/10/2020,071STRAT,Strategy and Planning,20246,Planning Applications,D2509,Consultants and Other Services,"1,735.30",Top Level Solutions Limited,Consultants and other services - Consultants Fees,2020013,202007
Rother District Council,28/09/2020,999NOREPORT,Housing and Community Services,70714,Capital - Grants Halls and Community Projects,N1011,Capital Grants,"15,000.00",Westfield Parish Council,Capital Grants - Community Grants Scheme,2020014,202007
Rother District Council,18/09/2020,041ENVIRON,Environmental Services,32144,EH Environmental Services Admin R + W Partnership,D1201,Equipment & Materials,225,Furniture@Work Ltd,Equipment & materials - Miscellaneous,2020015,202007
Rother District Council,01/10/2020,091HOUSING,Housing and Community Services,20108,Bexhill Promenade & Foreshore,D2623,Radios and licences,11.92,Radio Relay,Radios and licences - Radio/Transmitter Licences,2020017,202007
Rother District Council,09/09/2020,091HOUSING,Housing and Community Services,20108,Bexhill Promenade & Foreshore,B1100,Repairs to Premises,111.59,Alfa Electric Ltd,Repairs to Premises - Repairs - Electrical Works,2020018,202007
Rother District Council,30/09/2020,091HOUSING,Housing and Community Services,20108,Bexhill Promenade & Foreshore,B1100,Repairs to Premises,990.49,Alfa Electric Ltd,Repairs to Premises - Repairs - Electrical Works,2020019,202007
Rother District Council,22/09/2020,031RESOURCES,Executive Directors & Corporate Core,20175,Administrative Offices - T.H. Annex (NOT CHP),B1100,Repairs to Premises,282.5,Alfa Electric Ltd,Repairs to Premises - Portable Appliance Testing (PAT),2020020,202007
Rother District Council,22/09/2020,031RESOURCES,Executive Directors & Corporate Core,20175,Administrative Offices - T.H. Annex (NOT CHP),B1100,Repairs to Premises,102.5,Alfa Electric Ltd,Repairs to Premises - Portable Appliance Testing (PAT),2020021,202007
Rother District Council,29/09/2020,031RESOURCES,Executive Directors & Corporate Core,20176,Administrative Offices - Print Room,B1100,Repairs to Premises,95,Alfa Electric Ltd,Repairs to Premises - Portable Appliance Testing (PAT),2020022,202007
Rother District Council,08/09/2020,081ACQUISIT,"Acquisitions, Transformation and Regeneration",20154,Committee Property Account,B1100,Repairs to Premises,"7,820.00",CountyClean Environmental Services Ltd,Repairs to Premises - Cesspool Pumping station service/Call out,2020023,202007
Rother District Council,01/10/2020,091HOUSING,Housing and Community Services,20137,Car Parks,D2513,Hired and Contracted services,"6,518.76",Park Now Ltd,Hired and contracted services - Car Parks-RingGo service charges,2020024,202007
Rother District Council,06/10/2020,031RESOURCES,Executive Directors & Corporate Core,20276,COVID19 RDC expenditure,D2639,Departmental Systems,"3,000.00",Ascendant Solutions Limited,Departmental Systems - Covid 19 Changes to departmental systems,2020025,202007
Rother District Council,04/10/2020,071STRAT,Strategy and Planning,20246,Planning Applications,D2519,Statutory Advertising,410.4,Reach Publishing Services Ltd,Statutory Advertising - Planadv-Kent+East Sussex Courier,2020026,202007
Rother District Council,04/10/2020,091HOUSING,Housing and Community Services,20200,Housing Needs - HB (Housing Benefit),D2514,Accommodation Costs,"7,500.00",Paramount Independent Property Services LLP,Accommodation Costs,2020027,202007
Rother District Council,02/10/2020,081ACQUISIT,"Acquisitions, Transformation and Regeneration",20136,Regeneration,D2513,Hired and Contracted services,500,Little Common & Cooden Business Association,Hired and contracted services - Christmas Lights,2020028,202007
Rother District Council,06/10/2020,041ENVIRON,Environmental Services,32134,EH Pollution R + W Partnership,D2513,Hired and Contracted services,13.3,Wealden and Eastbourne Lifeline,Hired and contracted services - Out Of Hours Call Answering Service,2020029,202007
Rother District Council,30/09/2020,101RESOURCES,Resources,20216,Cost Of Collection,D2513,Hired and Contracted services,872.85,DSI Billing Services Ltd,Hired and contracted services - DSI Billing Printing,2020030,202007
Rother District Council,02/10/2020,999NOREPORT,Environmental Services,70706,Capital - Disable Facilities Grant,N1012,Capital Advances,"2,923.84",REDACTED PERSONAL DATA,Capital Advances Disabled Facilities Grant,2020031,202007
Rother District Council,02/10/2020,999NOREPORT,Environmental Services,70706,Capital - Disable Facilities Grant,N1012,Capital Advances,"1,310.29",Peabody South East Ltd,Capital Advances Disabled Facilities Grant,2020032,202007
Rother District Council,02/10/2020,999NOREPORT,Environmental Services,70706,Capital - Disable Facilities Grant,N1012,Capital Advances,"1,833.11",Peabody South East Ltd,Capital Advances Disabled Facilities Grant,2020033,202007
Rother District Council,02/10/2020,999NOREPORT,Environmental Services,70706,Capital - Disable Facilities Grant,N1012,Capital Advances,"6,979.94",REDACTED PERSONAL DATA,Capital Advances Disabled Facilities Grant,2020034,202007
Rother District Council,22/09/2020,091HOUSING,Housing and Community Services,20132,Street & Beach Cleansing,D1201,Equipment & Materials,19.36,Trade Paints Ltd,Repairs to Premises - Purchase of Materials - Build Maint,2020035,202007
Rother District Council,23/09/2020,091HOUSING,Housing and Community Services,20138,Residual Highway Services,B1100,Repairs to Premises,32,Trade Paints Ltd,Repairs to Premises - Purchase of Materials - Build Maint,2020036,202007
Rother District Council,24/09/2020,091HOUSING,Housing and Community Services,20132,Street & Beach Cleansing,D1201,Equipment & Materials,5.55,Trade Paints Ltd,Repairs to Premises - Purchase of Materials - Build Maint,2020037,202007
Rother District Council,02/09/2020,081ACQUISIT,"Acquisitions, Transformation and Regeneration",20101,Cultural Development,D2922,Subscriptions,"4,600.00",East Sussex County Council,Subscriptions - Marketing Arts Development Partnership,2020038,202007
Rother District Council,27/09/2020,101RESOURCES,Resources,20242,Communications-Phones,D2621,Telephones,286.1,BT British Telecommunications plc,Telephones - BT-Rental-General,2020039,202007
Rother District Council,10/06/2020,101RESOURCES,Resources,20209,Corporate management,D2513,Hired and Contracted services,250.81,Capita Business Services Ltd,Bank Charges,2020040,202007
Rother District Council,13/07/2020,101RESOURCES,Resources,20209,Corporate management,D2513,Hired and Contracted services,188.23,Capita Business Services Ltd,Bank Charges,2020041,202007
Rother District Council,11/08/2020,101RESOURCES,Resources,20209,Corporate management,D2513,Hired and Contracted services,190.05,Capita Business Services Ltd,Bank Charges,2020042,202007
Rother District Council,10/09/2020,101RESOURCES,Resources,20209,Corporate management,D2513,Hired and Contracted services,209.65,Capita Business Services Ltd,Bank Charges,2020043,202007
Rother District Council,25/08/2020,031RESOURCES,Executive Directors & Corporate Core,20173,Administrative Offices - Town Hall,B2201,Electricity,"2,066.59",Laser Energy Buying Group (Kent County Council Commercial Services),Electricity - Electricity Charges,2020044,202007
Rother District Council,25/08/2020,031RESOURCES,Executive Directors & Corporate Core,20175,Administrative Offices - T.H. Annex (NOT CHP),B2201,Electricity,658.71,Laser Energy Buying Group (Kent County Council Commercial Services),Electricity - Electricity Charges,2020044,202007
Rother District Council,25/08/2020,091HOUSING,Housing and Community Services,20125,Coast Protection,B2201,Electricity,465.05,Laser Energy Buying Group (Kent County Council Commercial Services),Electricity - Electricity Charges,2020044,202007
Rother District Council,25/08/2020,081ACQUISIT,"Acquisitions, Transformation and Regeneration",20153,"Elva Business Centre, Bexhill",B2201,Electricity,593.81,Laser Energy Buying Group (Kent County Council Commercial Services),Electricity - Electricity Charges,2020044,202007
Rother District Council,25/08/2020,031RESOURCES,Executive Directors & Corporate Core,20173,Administrative Offices - Town Hall,B2202,Gas,124.62,Laser Energy Buying Group (Kent County Council Commercial Services),Gas - Gas Charges,2020045,202007
Rother District Council,25/08/2020,031RESOURCES,Executive Directors & Corporate Core,20175,Administrative Offices - T.H. Annex (NOT CHP),B2202,Gas,104.11,Laser Energy Buying Group (Kent County Council Commercial Services),Gas - Gas Charges,2020045,202007
Rother District Council,25/08/2020,031RESOURCES,Executive Directors & Corporate Core,20176,Administrative Offices - Print Room,B2202,Gas,36.26,Laser Energy Buying Group (Kent County Council Commercial Services),Gas - Gas Charges,2020045,202007
Rother District Council,25/08/2020,081ACQUISIT,"Acquisitions, Transformation and Regeneration",20154,Committee Property Account,B2202,Gas,10.23,Laser Energy Buying Group (Kent County Council Commercial Services),Gas - Gas Charges,2020045,202007
Rother District Council,25/08/2020,081ACQUISIT,"Acquisitions, Transformation and Regeneration",20155,Investment properties,B2202,Gas,9.49,Laser Energy Buying Group (Kent County Council Commercial Services),Gas - Gas Charges,2020045,202007
Rother District Council,29/05/2020,101RESOURCES,Resources,20209,Corporate management,D2513,Hired and Contracted services,35,The Information Commissioner,Hired and contracted services - Data Protection Act,2020046,202007
Rother District Council,05/09/2020,031RESOURCES,Executive Directors & Corporate Core,20170,Communications-Postages,D2626,Postages,121.63,Royal Mail Group Ltd,Postages,2020047,202007
Rother District Council,24/03/2020,999NOREPORT,Housing and Community Services,70714,Capital - Grants Halls and Community Projects,N1011,Capital Grants,300,1st Robertsbridge Scout Group,Capital Grants - Community Grants Scheme,2020048,202007
Rother District Council,21/09/2020,071STRAT,Strategy and Planning,20254,Planning Dept E-Government,D2632,Additional Computer Equipment,950,Ocella Ltd,Additional Computer Equipment - OCELLA Amendments/Upgrading,2020049,202007
Rother District Council,06/10/2020,031RESOURCES,Executive Directors & Corporate Core,20170,Communications-Postages,D2626,Postages,"4,040.00",Pitney Bowes Purchase Power,Stock Accounts Town Hall Franking Machine,2020051,202007
Rother District Council,02/10/2020,101RESOURCES,Resources,20239,Computer Services,D2633,Computer Equipment,160,Deepnet Security Ltd,Computer Equipment - New - Computer Hardware,2020052,202007
Rother District Council,02/10/2020,101RESOURCES,Resources,20239,Computer Services,D2633,Computer Equipment,12,Deepnet Security Ltd,Computer Equipment - New - Computer Hardware,2020052,202007
Rother District Council,05/10/2020,091HOUSING,Housing and Community Services,20115,Rye Area Parks & Gardens,B1100,Repairs to Premises,824.25,Alfa Electric Ltd,Repairs to Premises - Repairs Roofing Works,2020053,202007
Rother District Council,05/10/2020,091HOUSING,Housing and Community Services,20128,Public Conveniences,B1100,Repairs to Premises,274.74,Alfa Electric Ltd,Repairs to Premises - Repairs Roofing Works,2020053,202007
Rother District Council,06/10/2020,091HOUSING,Housing and Community Services,20114,Bexhill Parks & Open Spaces,B2422,Sewerage,235,CountyClean Environmental Services Ltd,Sewerage Parks- Emptying of Cesspit,2020054,202007
Rother District Council,02/10/2020,091HOUSING,Housing and Community Services,20137,Car Parks,B1100,Repairs to Premises,66.72,Chandlers Building Supplies Ltd,Repairs to Premises - Purchase of Materials - Build Maint,2020055,202007
Rother District Council,30/09/2020,091HOUSING,Housing and Community Services,20137,Car Parks,D2513,Hired and Contracted services,"2,280.00",Jade Security Services Ltd,Hired and contracted services - Cash Security Fees-Car Parks,2020056,202007
Rother District Council,07/10/2020,091HOUSING,Housing and Community Services,20137,Car Parks,I3439,Parking Chgs Off Street,"1,799.58",Freedom Leisure,Parking Chgs Off Street,2020057,202007
Rother District Council,30/09/2020,091HOUSING,Housing and Community Services,20261,"TA Purchases (prev - 41 Jameson Mews, Bexhill on Sea)",D2513,Hired and Contracted services,320,REDACTED PERSONAL DATA,Hired and contracted services - Hire of Skip,2020058,202007
Rother District Council,23/09/2020,091HOUSING,Housing and Community Services,20116,Rural Open Spaces & Amenities,B1100,Repairs to Premises,40.68,Saint-Gobain Building Distribution Ltd t/a Jewson,Repairs to Premises - Purchase of Materials - Build Maint,2020059,202007
Rother District Council,24/09/2020,091HOUSING,Housing and Community Services,20114,Bexhill Parks & Open Spaces,B1100,Repairs to Premises,15.06,Saint-Gobain Building Distribution Ltd t/a Jewson,Repairs to Premises - Purchase of Materials - Build Maint,2020060,202007
Rother District Council,21/09/2020,091HOUSING,Housing and Community Services,20145,Maintenance Services,D1201,Equipment & Materials,52.92,Saint-Gobain Building Distribution Ltd t/a Jewson,Equipment & Materials - Purchase of Tools,2020061,202007
Rother District Council,30/09/2020,031RESOURCES,Executive Directors & Corporate Core,20173,Administrative Offices - Town Hall,B2611,Contract cleaning,380,Abacus Main Ltd,Contract cleaning - Office Cleaning,2020062,202007
Rother District Council,30/09/2020,091HOUSING,Housing and Community Services,20108,Bexhill Promenade & Foreshore,B2611,Contract cleaning,126,Abacus Main Ltd,Contract cleaning,2020063,202007
Rother District Council,29/09/2020,041ENVIRON,Environmental Services,32133,EH Food Hyg / Idc / Water Purity R + W Partnership,D2352,Clothing and Uniforms,46.28,MI Hub Ltd T/A Alexandra,Clothing and Uniforms - EnvH- Protective Clothing EnvHealth,2020064,202007
Rother District Council,05/10/2020,091HOUSING,Housing and Community Services,20102,Rother Museum Services,B1100,Repairs to Premises,125.13,Stannah Lift Services Ltd,Repairs to Premises - Specified Repairs and Works listed,2020065,202007
Rother District Council,26/06/2020,071STRAT,Strategy and Planning,20246,Planning Applications,D2519,Statutory Advertising,549,JPIMedia Publishing Ltd,Statutory Advertising - Planadv - Rye+Battle Observer,2020067,202007
Rother District Council,07/08/2020,081ACQUISIT,"Acquisitions, Transformation and Regeneration",20144,Property Management,D2519,Statutory Advertising,"1,249.29",JPIMedia Publishing Ltd,Statutory Advertising - Planadv - Rye+Battle Observer,2020068,202007
Rother District Council,04/09/2020,071STRAT,Strategy and Planning,20246,Planning Applications,D2519,Statutory Advertising,549,JPIMedia Publishing Ltd,Statutory Advertising - Planadv - Rye+Battle Observer,2020069,202007
Rother District Council,11/09/2020,071STRAT,Strategy and Planning,20255,Local Development Framework,D2519,Statutory Advertising,686.25,JPIMedia Publishing Ltd,Statutory Advertising - Planadv - Rye+Battle Observer,2020070,202007
Rother District Council,11/09/2020,071STRAT,Strategy and Planning,20246,Planning Applications,D2519,Statutory Advertising,732,JPIMedia Publishing Ltd,Statutory Advertising - Planadv - Rye+Battle Observer,2020071,202007
Rother District Council,02/07/2020,101RESOURCES,Resources,20242,Communications-Phones,D2621,Telephones,25.75,TalkTalk Communications Ltd T/A TalkTalk Business,Telephones - Telephone Call Costs+Line Rental,2020072,202007
Rother District Council,02/08/2020,101RESOURCES,Resources,20242,Communications-Phones,D2621,Telephones,30.65,TalkTalk Communications Ltd T/A TalkTalk Business,Telephones - Telephone Call Costs+Line Rental,2020073,202007
Rother District Council,02/09/2020,101RESOURCES,Resources,20242,Communications-Phones,D2621,Telephones,28.25,TalkTalk Communications Ltd T/A TalkTalk Business,Telephones - Telephone Call Costs+Line Rental,2020074,202007
Rother District Council,30/09/2020,999NOREPORT,"Acquisitions, Transformation and Regeneration",70725,Capital - Blackfriars,D2513,Hired and Contracted services,318.5,Southern Testing Laboratories Limited,Hired and contracted services - ecology work-blackfriars,2020075,202007
Rother District Council,30/09/2020,091HOUSING,Housing and Community Services,20108,Bexhill Promenade & Foreshore,D2513,Hired and Contracted services,-162.5,Hailsham Roadway Construction Ltd,Repairs to Premises - Specified Repairs and Works listed,2020076,202007
Rother District Council,30/09/2020,081ACQUISIT,"Acquisitions, Transformation and Regeneration",20104,Ancient Monuments & Gazebo,B1100,Repairs to Premises,200,REDACTED PERSONAL DATA,Repairs to Premises - Repairs - Electrical Works,2020077,202007
Rother District Council,29/09/2020,091HOUSING,Housing and Community Services,20236,Customer Services and Development,D2635,Computer Licences,19.95,Click4Assistance,Computer Licences - Computer Licence Renewal,2020078,202007
Rother District Council,27/08/2020,091HOUSING,Housing and Community Services,20236,Customer Services and Development,D2635,Computer Licences,19.95,Click4Assistance,Computer Licences - Computer Licence Renewal,2020079,202007
Rother District Council,08/10/2020,091HOUSING,Housing and Community Services,20206,Syrians,D2513,Hired and Contracted services,225,Milburn Psychology Practice,Hired and contracted services - Syrian Misc,2020080,202007
Rother District Council,29/09/2020,091HOUSING,Housing and Community Services,20236,Customer Services and Development,D1206,Furniture & Fittings,465,Team Interiors LTD,Furniture & Fittings - New Reception Furniture,2020081,202007
Rother District Council,08/10/2020,041ENVIRON,Environmental Services,20130,Crime and Disorder Initiatives,D1201,Equipment & Materials,674.35,The Police and Crime Commissioner for Sussex,Equipment & Materials - Safer Rother Partnership,2020082,202007
Rother District Council,08/10/2020,041ENVIRON,Environmental Services,20130,Crime and Disorder Initiatives,D1201,Equipment & Materials,"2,241.32",The Police and Crime Commissioner for Sussex,Equipment & Materials - Safer Rother Partnership,2020083,202007
Rother District Council,07/10/2020,071STRAT,Strategy and Planning,20246,Planning Applications,D2509,Consultants and Other Services,"1,798.60",Carrington West Ltd,Agency Staff,2020084,202007
Rother District Council,07/10/2020,999NOREPORT,Housing and Community Services,70714,Capital - Grants Halls and Community Projects,N1011,Capital Grants,"3,000.00",Stonegate Village Hall,Capital Grants - Community Grants Scheme,2020085,202007
Rother District Council,25/09/2020,091HOUSING,Housing and Community Services,20204,Housing Administration Account,D2513,Hired and Contracted services,"1,000.00",LHS Locata (Housing Services) Ltd,Hired and contracted services - Service fee paid,2020086,202007
Rother District Council,30/09/2020,081ACQUISIT,"Acquisitions, Transformation and Regeneration",20153,"Elva Business Centre, Bexhill",B1100,Repairs to Premises,264.31,Alfa Electric Ltd,Repairs to Premises - Specified Repairs and Works listed,2020087,202007
Rother District Council,22/09/2020,091HOUSING,Housing and Community Services,20102,Rother Museum Services,B1100,Repairs to Premises,245,CountyClean Environmental Services Ltd,Repairs to Premises - Pumps Maintenance/ Repairs,2020088,202007
Rother District Council,05/10/2020,091HOUSING,Housing and Community Services,20145,Maintenance Services,D1201,Equipment & Materials,18.31,Trade UK Account (Screwfix & B&Q),Equipment & Materials - Purchase of Tools,2020089,202007
Rother District Council,05/10/2020,091HOUSING,Housing and Community Services,20145,Maintenance Services,D1201,Equipment & Materials,61.64,Trade UK Account (Screwfix & B&Q),Equipment & Materials - Purchase of Tools,2020090,202007
Rother District Council,05/10/2020,091HOUSING,Housing and Community Services,20261,"TA Purchases (prev - 41 Jameson Mews, Bexhill on Sea)",B1100,Repairs to Premises,16.67,Trade UK Account (Screwfix & B&Q),Repairs to Premises - Purchase of Materials - Build Maint,2020091,202007
Rother District Council,07/10/2020,091HOUSING,Housing and Community Services,20128,Public Conveniences,B2422,Sewerage,266.68,Scottish Water Business Stream Limited,Sewerage - Sewerage Charges,2020092,202007
Rother District Council,07/10/2020,081ACQUISIT,"Acquisitions, Transformation and Regeneration",20150,Peasmarsh Workshops,B2422,Sewerage,375.43,Scottish Water Business Stream Limited,Sewerage - Sewerage Charges,2020093,202007
Rother District Council,05/10/2020,091HOUSING,Housing and Community Services,20201,Homelessness and Prevention,D2514,Accommodation Costs,"1,000.00",Pride n Property,Accommodation Costs - Homelessness services Deposit for Landlords,2020094,202007
Rother District Council,05/10/2020,091HOUSING,Housing and Community Services,20201,Homelessness and Prevention,D2514,Accommodation Costs,800,Pride n Property,Accommodation Costs - Homelessness services Rent in Advance for Homeless,2020094,202007
Rother District Council,28/09/2020,091HOUSING,Housing and Community Services,20201,Homelessness and Prevention,D2514,Accommodation Costs,500,Polecat Properties Ltd,Accommodation Costs - Homelessness services Deposit for Landlords,2020095,202007
Rother District Council,28/09/2020,091HOUSING,Housing and Community Services,20202,Rother Tenant Finder (prev Rother Letting Service),D2514,Accommodation Costs,"1,000.00",Polecat Properties Ltd,Accommodation Costs - Homelessness services Rent in Advance for Homeless,2020095,202007
Rother District Council,28/09/2020,091HOUSING,Housing and Community Services,20201,Homelessness and Prevention,D2514,Accommodation Costs,650,Polecat Properties Ltd,Accommodation Costs - Homelessness services Rent in Advance for Homeless,2020095,202007
Rother District Council,13/06/2019,041ENVIRON,Environmental Services,20130,Crime and Disorder Initiatives,D2923,Grants made,"5,000.00",Seaview,Grants made - Crime Prevention Initiative (JAG),2020096,202007
Rother District Council,21/07/2020,041ENVIRON,Environmental Services,32144,EH Environmental Services Admin R + W Partnership,A2203,Training,160,Institute of Licensing (Events) Ltd,Training,2020097,202007
Rother District Council,15/09/2020,041ENVIRON,Environmental Services,32142,EH Taxi and Private Hire Licenses R + W Partnership,D2513,Hired and Contracted services,374,Thomas Design & Graphics Ltd,Hired and contracted services - RDC Taxi Licence Plates,2020098,202007
Rother District Council,15/09/2020,041ENVIRON,Environmental Services,32142,EH Taxi and Private Hire Licenses R + W Partnership,D2513,Hired and Contracted services,363,Thomas Design & Graphics Ltd,Hired and contracted services - WDC Taxi Licence Plates,2020098,202007
Rother District Council,30/09/2020,091HOUSING,Housing and Community Services,20200,Housing Needs - HB (Housing Benefit),D2513,Hired and Contracted services,70,NowMedical,Hired and contracted services - Medical Assessments,2020099,202007
Rother District Council,30/09/2020,091HOUSING,Housing and Community Services,20138,Residual Highway Services,B1100,Repairs to Premises,60.06,REDACTED PERSONAL DATA,Repairs to Premises - Purchase of Materials - Build Maint,2020100,202007
Rother District Council,30/09/2020,091HOUSING,Housing and Community Services,20108,Bexhill Promenade & Foreshore,B1100,Repairs to Premises,43,REDACTED PERSONAL DATA,Repairs to Premises - Purchase of Materials - Build Maint,2020101,202007
Rother District Council,30/09/2020,091HOUSING,Housing and Community Services,20138,Residual Highway Services,B1100,Repairs to Premises,35.73,REDACTED PERSONAL DATA,Repairs to Premises - Purchase of Materials - Build Maint,2020102,202007
Rother District Council,01/10/2020,101RESOURCES,Resources,20240,Printing Services,D2638,Photocopier Contracts,266.23,Canon (UK) Ltd,Photocopier Contracts,2020103,202007
Rother District Council,01/10/2020,031RESOURCES,Executive Directors & Corporate Core,20162,Electoral Registration,D1203,Books And Publications,132.5,Thomson Reuters Ltd,Books And Publications - Miscellaneous Legal Reference Books,2020104,202007
Rother District Council,01/10/2020,031RESOURCES,Executive Directors & Corporate Core,20162,Electoral Registration,D1203,Books And Publications,132.5,Thomson Reuters Ltd,Books And Publications - Miscellaneous Legal Reference Books,2020104,202007
Rother District Council,01/10/2020,031RESOURCES,Executive Directors & Corporate Core,20162,Electoral Registration,D2513,Hired and Contracted services,"2,886.64",Civica Election Services Ltd,Hired and contracted services - election misc payment-net,2020105,202007
Rother District Council,06/10/2020,031RESOURCES,Executive Directors & Corporate Core,20171,Human Resources,A2203,Training,"1,200.00",Sanitas Hub Ltd,Training,2020106,202007
Rother District Council,06/10/2020,091HOUSING,Housing and Community Services,20145,Maintenance Services,D1201,Equipment & Materials,44.14,Trade UK Account (Screwfix & B&Q),Equipment & Materials - Purchase of Tools,2020107,202007
Rother District Council,06/10/2020,031RESOURCES,Executive Directors & Corporate Core,20171,Human Resources,A2203,Training,225,Simpila Ltd,Training,2020108,202007
Rother District Council,07/10/2020,091HOUSING,Housing and Community Services,20137,Car Parks,D1201,Equipment & Materials,"1,620.00",Flowbird Smart City UK Ltd,Equipment & Materials - Car Parks various,2020109,202007
Rother District Council,07/10/2020,091HOUSING,Housing and Community Services,20261,"TA Purchases (prev - 41 Jameson Mews, Bexhill on Sea)",B1100,Repairs to Premises,12.49,Trade UK Account (Screwfix & B&Q),Repairs to Premises - Purchase of Materials - Build Maint,2020110,202007
Rother District Council,08/10/2020,091HOUSING,Housing and Community Services,20201,Homelessness and Prevention,D2514,Accommodation Costs,660,Fox and Sons (Sequence UK Ltd),Accommodation Costs - Homelessness services Deposit for Landlords,2020111,202007
Rother District Council,08/10/2020,091HOUSING,Housing and Community Services,20201,Homelessness and Prevention,D2514,Accommodation Costs,575,Fox and Sons (Sequence UK Ltd),Accommodation Costs - Homelessness services Rent in Advance for Homeless,2020111,202007
Rother District Council,01/10/2020,031RESOURCES,Executive Directors & Corporate Core,20173,Administrative Offices - Town Hall,B1100,Repairs to Premises,"1,080.00",Alfa Electric Ltd,Repairs to Premises - Portable Appliance Testing (PAT),2020112,202007
Rother District Council,08/10/2020,091HOUSING,Housing and Community Services,20206,Syrians,D2513,Hired and Contracted services,"1,335.15",REDACTED PERSONAL DATA,Hired and contracted services - Syrian-Translation Services,2020113,202007
Rother District Council,09/10/2020,091HOUSING,Housing and Community Services,20261,"TA Purchases (prev - 41 Jameson Mews, Bexhill on Sea)",B1100,Repairs to Premises,37.54,Parker Building Supplies Ltd,Repairs to Premises - Purchase of Materials - Build Maint,2020114,202007
Rother District Council,14/10/2020,031RESOURCES,Executive Directors & Corporate Core,20280,Covid 19 RHSS Reopening High Streets Safely,D1201,Equipment & Materials,"7,409.25",Kaleido Design,Equipment & Materials - Purchase of Signs,2020115,202007
Rother District Council,06/10/2020,091HOUSING,Housing and Community Services,20108,Bexhill Promenade & Foreshore,B2201,Electricity,6.79,Npower Ltd,Electricity - Electricity Charges,2020120,202007
Rother District Council,06/10/2020,091HOUSING,Housing and Community Services,20137,Car Parks,B2201,Electricity,43.01,Npower Ltd,Electricity - Electricity Charges,2020120,202007
Rother District Council,06/10/2020,091HOUSING,Housing and Community Services,20138,Residual Highway Services,B2201,Electricity,6.79,Npower Ltd,Electricity - Electricity Charges,2020120,202007
Rother District Council,06/10/2020,091HOUSING,Housing and Community Services,20108,Bexhill Promenade & Foreshore,B2201,Electricity,0.92,Npower Ltd,Electricity - Electricity Charges,2020121,202007
Rother District Council,06/10/2020,091HOUSING,Housing and Community Services,20137,Car Parks,B2201,Electricity,5.83,Npower Ltd,Electricity - Electricity Charges,2020121,202007
Rother District Council,06/10/2020,091HOUSING,Housing and Community Services,20138,Residual Highway Services,B2201,Electricity,0.92,Npower Ltd,Electricity - Electricity Charges,2020121,202007
Rother District Council,06/10/2020,091HOUSING,Housing and Community Services,20114,Bexhill Parks & Open Spaces,B2201,Electricity,14.64,Npower Ltd,Electricity - Electricity Charges,2020122,202007
Rother District Council,06/10/2020,041ENVIRON,Environmental Services,20129,Community Safety,B2201,Electricity,325.6,Npower Ltd,Electricity - Electricity Charges,2020123,202007
Rother District Council,06/10/2020,091HOUSING,Housing and Community Services,20137,Car Parks,B2201,Electricity,43.44,Npower Ltd,Electricity - Electricity Charges,2020123,202007
Rother District Council,06/10/2020,091HOUSING,Housing and Community Services,20138,Residual Highway Services,B2201,Electricity,36.14,Npower Ltd,Electricity - Electricity Charges,2020123,202007
Rother District Council,06/10/2020,041ENVIRON,Environmental Services,20129,Community Safety,B2201,Electricity,40.29,Npower Ltd,Electricity - Electricity Charges,2020124,202007
Rother District Council,06/10/2020,091HOUSING,Housing and Community Services,20137,Car Parks,B2201,Electricity,5.37,Npower Ltd,Electricity - Electricity Charges,2020124,202007
Rother District Council,06/10/2020,091HOUSING,Housing and Community Services,20138,Residual Highway Services,B2201,Electricity,4.47,Npower Ltd,Electricity - Electricity Charges,2020124,202007
Rother District Council,06/10/2020,091HOUSING,Housing and Community Services,20108,Bexhill Promenade & Foreshore,B2201,Electricity,2.58,Npower Ltd,Electricity - Electricity Charges,2020125,202007
Rother District Council,06/10/2020,091HOUSING,Housing and Community Services,20137,Car Parks,B2201,Electricity,16.41,Npower Ltd,Electricity - Electricity Charges,2020125,202007
Rother District Council,06/10/2020,091HOUSING,Housing and Community Services,20138,Residual Highway Services,B2201,Electricity,2.59,Npower Ltd,Electricity - Electricity Charges,2020125,202007
Rother District Council,10/10/2020,031RESOURCES,Executive Directors & Corporate Core,20156,Representing Local Interest,D2312,Refreshments,269.1,UK Vending Ltd,Refreshments - Plastic Cups,2020126,202007
Rother District Council,12/10/2020,091HOUSING,Housing and Community Services,20107,Camber Beach & Foreshore,D2352,Clothing and Uniforms,57.98,SuperStitch 86,Clothing and Uniforms - Mens Uniform-Shirt,2020129,202007
Rother District Council,13/10/2020,031RESOURCES,Executive Directors & Corporate Core,32132,Joint Waste Contract Client Unit,D2513,Hired and Contracted services,"4,158.00",WYG Environment Planning Transport Ltd,Hired and contracted services - Service fee paid,2020130,202007
Rother District Council,12/10/2020,091HOUSING,Housing and Community Services,20200,Housing Needs - HB (Housing Benefit),D2514,Accommodation Costs,415,Coast Holiday Lettings Ltd,Accommodation Costs,2020132,202007
Rother District Council,12/10/2020,091HOUSING,Housing and Community Services,20200,Housing Needs - HB (Housing Benefit),D2514,Accommodation Costs,415,Coast Holiday Lettings Ltd,Accommodation Costs,2020132,202007
Rother District Council,12/10/2020,091HOUSING,Housing and Community Services,20200,Housing Needs - HB (Housing Benefit),D2514,Accommodation Costs,415,Coast Holiday Lettings Ltd,Accommodation Costs,2020132,202007
Rother District Council,12/10/2020,091HOUSING,Housing and Community Services,20137,Car Parks,D1201,Equipment & Materials,150,Contract Sign Systems,Equipment & Materials - Carriage/Handling Charge,2020133,202007
Rother District Council,12/10/2020,091HOUSING,Housing and Community Services,20137,Car Parks,D1201,Equipment & Materials,"3,515.60",Contract Sign Systems,Equipment & Materials - Purchase of Signs,2020133,202007
Rother District Council,09/10/2020,071STRAT,Strategy and Planning,20246,Planning Applications,D2513,Hired and Contracted services,"1,330.00",East Sussex County Council,Hired and contracted services - Plan-Ecological Advice,2020134,202007
Rother District Council,12/10/2020,091HOUSING,Housing and Community Services,20200,Housing Needs - HB (Housing Benefit),D2514,Accommodation Costs,390,PADA Hanlon Ltd,Accommodation Costs,2020135,202007
Rother District Council,12/10/2020,091HOUSING,Housing and Community Services,20200,Housing Needs - HB (Housing Benefit),D2514,Accommodation Costs,390,PADA Hanlon Ltd,Accommodation Costs,2020135,202007
Rother District Council,12/10/2020,091HOUSING,Housing and Community Services,20200,Housing Needs - HB (Housing Benefit),D2514,Accommodation Costs,415,PADA Hanlon Ltd,Accommodation Costs,2020135,202007
Rother District Council,09/10/2020,031RESOURCES,Executive Directors & Corporate Core,20159,Corporate Policy Making,D1201,Equipment & Materials,310,Haven Security Ltd,Equipment & Materials - Access cards and systems,2020136,202007
Rother District Council,09/10/2020,091HOUSING,Housing and Community Services,20114,Bexhill Parks & Open Spaces,B2731,Grounds maintenance routine,"65,050.64",Idverde Limited,Grounds maintenance routine - Parks-Grounds Maintenance Contracts,2020137,202007
Rother District Council,12/10/2020,091HOUSING,Housing and Community Services,20200,Housing Needs - HB (Housing Benefit),D2514,Accommodation Costs,415,47-48 Havelock Road Ltd,Accommodation Costs,2020138,202007
Rother District Council,11/10/2020,031RESOURCES,Executive Directors & Corporate Core,20276,COVID19 RDC expenditure,D2514,Accommodation Costs,315,REDACTED PERSONAL DATA,Accomodation Costs - Housing Due to Covid 19 NoVAT,2020139,202007
Rother District Council,11/10/2020,091HOUSING,Housing and Community Services,20200,Housing Needs - HB (Housing Benefit),D2514,Accommodation Costs,315,REDACTED PERSONAL DATA,Accommodation Costs,2020139,202007
Rother District Council,09/10/2020,101RESOURCES,Resources,20240,Printing Services,D1201,Equipment & Materials,12.95,Landor (UK) Ltd,Equipment & Materials - Carriage/Handling Charge,2020140,202007
Rother District Council,09/10/2020,101RESOURCES,Resources,20240,Printing Services,D2417,Photocopy Paper by external suppliers,132,Landor (UK) Ltd,Photocopy Paper by external suppliers - White,2020140,202007
Rother District Council,09/10/2020,091HOUSING,Housing and Community Services,20261,"TA Purchases (prev - 41 Jameson Mews, Bexhill on Sea)",B1100,Repairs to Premises,"1,491.11",Alfa Electric Ltd,Repairs to Premises - Repairs Refurbishment of premises,2020141,202007
Rother District Council,09/10/2020,091HOUSING,Housing and Community Services,20112,Bexhill Leisure Centre,B1100,Repairs to Premises,389.37,Alfa Electric Ltd,Repairs to Premises - Repairs Roofing Works,2020142,202007
Rother District Council,12/10/2020,999NOREPORT,Executive Directors & Corporate Core,70727,Capital - Joint  Waste Equipment,N1008,Equipment,"42,585.00",Biffa Municipal Limited,Capital - Purchase of Equipment,2020143,202007
Rother District Council,09/10/2020,091HOUSING,Housing and Community Services,20200,Housing Needs - HB (Housing Benefit),D2514,Accommodation Costs,437.99,Lillybank Homes Ltd,Accommodation Costs,2020144,202007
Rother District Council,09/10/2020,091HOUSING,Housing and Community Services,20200,Housing Needs - HB (Housing Benefit),D2514,Accommodation Costs,343,Lillybank Homes Ltd,Accommodation Costs,2020144,202007
Rother District Council,09/10/2020,091HOUSING,Housing and Community Services,20200,Housing Needs - HB (Housing Benefit),D2514,Accommodation Costs,437.99,Lillybank Homes Ltd,Accommodation Costs,2020144,202007
Rother District Council,09/10/2020,091HOUSING,Housing and Community Services,20200,Housing Needs - HB (Housing Benefit),D2514,Accommodation Costs,525,Lillybank Homes Ltd,Accommodation Costs,2020144,202007
Rother District Council,09/10/2020,091HOUSING,Housing and Community Services,20200,Housing Needs - HB (Housing Benefit),D2514,Accommodation Costs,479.99,Lillybank Homes Ltd,Accommodation Costs,2020144,202007
Rother District Council,09/10/2020,091HOUSING,Housing and Community Services,20200,Housing Needs - HB (Housing Benefit),D2514,Accommodation Costs,413,Lillybank Homes Ltd,Accommodation Costs,2020144,202007
Rother District Council,09/10/2020,091HOUSING,Housing and Community Services,20200,Housing Needs - HB (Housing Benefit),D2514,Accommodation Costs,455,Lillybank Homes Ltd,Accommodation Costs,2020144,202007
Rother District Council,09/10/2020,091HOUSING,Housing and Community Services,20329,Rough Sleeping Initiative,D2514,Accommodation Costs,479.99,Lillybank Homes Ltd,Accommodation Costs,2020144,202007
Rother District Council,11/10/2020,031RESOURCES,Executive Directors & Corporate Core,20276,COVID19 RDC expenditure,D2514,Accommodation Costs,300,Specialist Care UK Group Ltd,Accomodation Costs - Housing Due to Covid 19,2020145,202007
Rother District Council,11/10/2020,091HOUSING,Housing and Community Services,20200,Housing Needs - HB (Housing Benefit),D2514,Accommodation Costs,262.5,Specialist Care UK Group Ltd,Accommodation Costs,2020146,202007
Rother District Council,11/10/2020,091HOUSING,Housing and Community Services,20200,Housing Needs - HB (Housing Benefit),D2514,Accommodation Costs,175,Specialist Care UK Group Ltd,Accommodation Costs - RRP - Homelessness services Temp Accom-plus VAT,2020147,202007
Rother District Council,11/10/2020,091HOUSING,Housing and Community Services,20200,Housing Needs - HB (Housing Benefit),D2514,Accommodation Costs,350,Specialist Care UK Group Ltd,Accommodation Costs,2020148,202007
Rother District Council,11/10/2020,091HOUSING,Housing and Community Services,20200,Housing Needs - HB (Housing Benefit),D2514,Accommodation Costs,175,Specialist Care UK Group Ltd,Accommodation Costs,2020149,202007
Rother District Council,11/10/2020,091HOUSING,Housing and Community Services,20200,Housing Needs - HB (Housing Benefit),D2514,Accommodation Costs,262.5,Specialist Care UK Group Ltd,Accommodation Costs,2020150,202007
Rother District Council,11/10/2020,031RESOURCES,Executive Directors & Corporate Core,20276,COVID19 RDC expenditure,D2514,Accommodation Costs,350,Specialist Care UK Group Ltd,Accomodation Costs - Housing Due to Covid 19,2020151,202007
Rother District Council,11/10/2020,091HOUSING,Housing and Community Services,20200,Housing Needs - HB (Housing Benefit),D2514,Accommodation Costs,262.5,Specialist Care UK Group Ltd,Accommodation Costs,2020152,202007
Rother District Council,11/10/2020,091HOUSING,Housing and Community Services,20200,Housing Needs - HB (Housing Benefit),D2514,Accommodation Costs,262.5,Specialist Care UK Group Ltd,Accommodation Costs,2020152,202007
Rother District Council,11/10/2020,091HOUSING,Housing and Community Services,20200,Housing Needs - HB (Housing Benefit),D2514,Accommodation Costs,350,Specialist Care UK Group Ltd,Accommodation Costs,2020152,202007
Rother District Council,11/10/2020,091HOUSING,Housing and Community Services,20200,Housing Needs - HB (Housing Benefit),D2514,Accommodation Costs,262.5,Specialist Care UK Group Ltd,Accommodation Costs,2020152,202007
Rother District Council,11/10/2020,091HOUSING,Housing and Community Services,20200,Housing Needs - HB (Housing Benefit),D2514,Accommodation Costs,262.5,Specialist Care UK Group Ltd,Accommodation Costs,2020152,202007
Rother District Council,11/10/2020,091HOUSING,Housing and Community Services,20200,Housing Needs - HB (Housing Benefit),D2514,Accommodation Costs,375,Specialist Care UK Group Ltd,Accommodation Costs,2020152,202007
Rother District Council,11/10/2020,031RESOURCES,Executive Directors & Corporate Core,20276,COVID19 RDC expenditure,D2514,Accommodation Costs,300,Specialist Care UK Group Ltd,Accomodation Costs - Housing Due to Covid 19,2020153,202007
Rother District Council,11/10/2020,091HOUSING,Housing and Community Services,20200,Housing Needs - HB (Housing Benefit),D2514,Accommodation Costs,262.5,Specialist Care UK Group Ltd,Accommodation Costs,2020154,202007
Rother District Council,11/10/2020,091HOUSING,Housing and Community Services,20200,Housing Needs - HB (Housing Benefit),D2514,Accommodation Costs,175,Specialist Care UK Group Ltd,Accommodation Costs - RRP - Homelessness services Temp Accom-plus VAT,2020155,202007
Rother District Council,11/10/2020,091HOUSING,Housing and Community Services,20200,Housing Needs - HB (Housing Benefit),D2514,Accommodation Costs,350,Specialist Care UK Group Ltd,Accommodation Costs,2020156,202007
Rother District Council,11/10/2020,091HOUSING,Housing and Community Services,20200,Housing Needs - HB (Housing Benefit),D2514,Accommodation Costs,175,Specialist Care UK Group Ltd,Accommodation Costs,2020157,202007
Rother District Council,11/10/2020,091HOUSING,Housing and Community Services,20200,Housing Needs - HB (Housing Benefit),D2514,Accommodation Costs,262.5,Specialist Care UK Group Ltd,Accommodation Costs,2020158,202007
Rother District Council,11/10/2020,031RESOURCES,Executive Directors & Corporate Core,20276,COVID19 RDC expenditure,D2514,Accommodation Costs,350,Specialist Care UK Group Ltd,Accomodation Costs - Housing Due to Covid 19,2020159,202007
Rother District Council,11/10/2020,091HOUSING,Housing and Community Services,20200,Housing Needs - HB (Housing Benefit),D2514,Accommodation Costs,262.5,Specialist Care UK Group Ltd,Accommodation Costs,2020160,202007
Rother District Council,11/10/2020,091HOUSING,Housing and Community Services,20200,Housing Needs - HB (Housing Benefit),D2514,Accommodation Costs,262.5,Specialist Care UK Group Ltd,Accommodation Costs,2020160,202007
Rother District Council,11/10/2020,091HOUSING,Housing and Community Services,20200,Housing Needs - HB (Housing Benefit),D2514,Accommodation Costs,350,Specialist Care UK Group Ltd,Accommodation Costs,2020160,202007
Rother District Council,11/10/2020,091HOUSING,Housing and Community Services,20200,Housing Needs - HB (Housing Benefit),D2514,Accommodation Costs,262.5,Specialist Care UK Group Ltd,Accommodation Costs,2020160,202007
Rother District Council,11/10/2020,091HOUSING,Housing and Community Services,20200,Housing Needs - HB (Housing Benefit),D2514,Accommodation Costs,262.5,Specialist Care UK Group Ltd,Accommodation Costs,2020160,202007
Rother District Council,11/10/2020,091HOUSING,Housing and Community Services,20200,Housing Needs - HB (Housing Benefit),D2514,Accommodation Costs,375,Specialist Care UK Group Ltd,Accommodation Costs,2020160,202007
Rother District Council,12/10/2020,031RESOURCES,Executive Directors & Corporate Core,20276,COVID19 RDC expenditure,D2514,Accommodation Costs,420,South Down Residential Ltd,Accomodation Costs - Housing Due to Covid 19,2020161,202007
Rother District Council,12/10/2020,031RESOURCES,Executive Directors & Corporate Core,20276,COVID19 RDC expenditure,D2514,Accommodation Costs,322,South Down Residential Ltd,Accomodation Costs - Housing Due to Covid 19,2020161,202007
Rother District Council,12/10/2020,031RESOURCES,Executive Directors & Corporate Core,20276,COVID19 RDC expenditure,D2514,Accommodation Costs,80.5,South Down Residential Ltd,Accomodation Costs - Housing Due to Covid 19,2020161,202007
Rother District Council,12/10/2020,031RESOURCES,Executive Directors & Corporate Core,20276,COVID19 RDC expenditure,D2514,Accommodation Costs,230,South Down Residential Ltd,Accomodation Costs - Housing Due to Covid 19,2020161,202007
Rother District Council,12/10/2020,031RESOURCES,Executive Directors & Corporate Core,20276,COVID19 RDC expenditure,D2514,Accommodation Costs,138,South Down Residential Ltd,Accomodation Costs - Housing Due to Covid 19,2020161,202007
Rother District Council,12/10/2020,031RESOURCES,Executive Directors & Corporate Core,20276,COVID19 RDC expenditure,D2514,Accommodation Costs,34.5,South Down Residential Ltd,Accomodation Costs - Housing Due to Covid 19,2020161,202007
Rother District Council,12/10/2020,091HOUSING,Housing and Community Services,20200,Housing Needs - HB (Housing Benefit),D2514,Accommodation Costs,302.4,South Down Residential Ltd,Accommodation Costs,2020161,202007
Rother District Council,12/10/2020,091HOUSING,Housing and Community Services,20200,Housing Needs - HB (Housing Benefit),D2514,Accommodation Costs,75.6,South Down Residential Ltd,Accommodation Costs,2020161,202007
Rother District Council,12/10/2020,091HOUSING,Housing and Community Services,20200,Housing Needs - HB (Housing Benefit),D2514,Accommodation Costs,145.6,South Down Residential Ltd,Accommodation Costs,2020161,202007
Rother District Council,12/10/2020,091HOUSING,Housing and Community Services,20200,Housing Needs - HB (Housing Benefit),D2514,Accommodation Costs,36.4,South Down Residential Ltd,Accommodation Costs,2020161,202007
Rother District Council,12/10/2020,091HOUSING,Housing and Community Services,20200,Housing Needs - HB (Housing Benefit),D2514,Accommodation Costs,129.6,South Down Residential Ltd,Accommodation Costs,2020161,202007
Rother District Council,12/10/2020,091HOUSING,Housing and Community Services,20200,Housing Needs - HB (Housing Benefit),D2514,Accommodation Costs,32.4,South Down Residential Ltd,Accommodation Costs,2020161,202007
Rother District Council,12/10/2020,091HOUSING,Housing and Community Services,20200,Housing Needs - HB (Housing Benefit),D2514,Accommodation Costs,302.4,South Down Residential Ltd,Accommodation Costs,2020161,202007
Rother District Council,12/10/2020,091HOUSING,Housing and Community Services,20200,Housing Needs - HB (Housing Benefit),D2514,Accommodation Costs,75.6,South Down Residential Ltd,Accommodation Costs,2020161,202007
Rother District Council,12/10/2020,091HOUSING,Housing and Community Services,20200,Housing Needs - HB (Housing Benefit),D2514,Accommodation Costs,60,South Down Residential Ltd,Accommodation Costs,2020161,202007
Rother District Council,12/10/2020,091HOUSING,Housing and Community Services,20200,Housing Needs - HB (Housing Benefit),D2514,Accommodation Costs,100.8,South Down Residential Ltd,Accommodation Costs,2020161,202007
Rother District Council,12/10/2020,091HOUSING,Housing and Community Services,20200,Housing Needs - HB (Housing Benefit),D2514,Accommodation Costs,25.2,South Down Residential Ltd,Accommodation Costs,2020161,202007
Rother District Council,12/10/2020,091HOUSING,Housing and Community Services,20329,Rough Sleeping Initiative,D2514,Accommodation Costs,336,South Down Residential Ltd,Accommodation Costs,2020161,202007
Rother District Council,12/10/2020,091HOUSING,Housing and Community Services,20329,Rough Sleeping Initiative,D2514,Accommodation Costs,84,South Down Residential Ltd,Accommodation Costs,2020161,202007
Rother District Council,12/10/2020,031RESOURCES,Executive Directors & Corporate Core,20276,COVID19 RDC expenditure,D2514,Accommodation Costs,425,Lets 2 Share Limited,Accomodation Costs - Housing Due to Covid 19 NoVAT,2020162,202007
Rother District Council,12/10/2020,091HOUSING,Housing and Community Services,20200,Housing Needs - HB (Housing Benefit),D2514,Accommodation Costs,385,Lets 2 Share Limited,Accommodation Costs,2020162,202007
Rother District Council,12/10/2020,091HOUSING,Housing and Community Services,20200,Housing Needs - HB (Housing Benefit),D2514,Accommodation Costs,385,Lets 2 Share Limited,Accommodation Costs,2020162,202007
Rother District Council,12/10/2020,091HOUSING,Housing and Community Services,20200,Housing Needs - HB (Housing Benefit),D2514,Accommodation Costs,385,Lets 2 Share Limited,Accommodation Costs,2020162,202007
Rother District Council,12/10/2020,091HOUSING,Housing and Community Services,20200,Housing Needs - HB (Housing Benefit),D2514,Accommodation Costs,260,Lets 2 Share Limited,Accommodation Costs,2020162,202007
Rother District Council,12/10/2020,091HOUSING,Housing and Community Services,20200,Housing Needs - HB (Housing Benefit),D2514,Accommodation Costs,260,Lets 2 Share Limited,Accommodation Costs,2020162,202007
Rother District Council,12/10/2020,091HOUSING,Housing and Community Services,20200,Housing Needs - HB (Housing Benefit),D2514,Accommodation Costs,360,Lets 2 Share Limited,Accommodation Costs,2020162,202007
Rother District Council,12/10/2020,091HOUSING,Housing and Community Services,20200,Housing Needs - HB (Housing Benefit),D2514,Accommodation Costs,260,Lets 2 Share Limited,Accommodation Costs,2020162,202007
Rother District Council,12/10/2020,091HOUSING,Housing and Community Services,20200,Housing Needs - HB (Housing Benefit),D2514,Accommodation Costs,385,Lets 2 Share Limited,Accommodation Costs,2020162,202007
Rother District Council,09/10/2020,091HOUSING,Housing and Community Services,20206,Syrians,D2513,Hired and Contracted services,153.64,Amberley Nursery Ltd,Hired and contracted services - Syrian-Education-Exempt VAT,2020163,202007
Rother District Council,12/10/2020,091HOUSING,Housing and Community Services,20200,Housing Needs - HB (Housing Benefit),D2514,Accommodation Costs,340,PADA Hanlon Ltd,Accommodation Costs,2020166,202007
Rother District Council,09/10/2020,999NOREPORT,"Acquisitions, Transformation and Regeneration",70725,Capital - Blackfriars,N1004,Architects & Consultant Fees,142.5,Ardent Management Limited,Architects & Consultant Fees Capital-Architect and Conslt Fees,2020168,202007
Rother District Council,09/10/2020,091HOUSING,Housing and Community Services,20200,Housing Needs - HB (Housing Benefit),D2514,Accommodation Costs,615,MB Hotels Ltd,Accommodation Costs,2020169,202007
Rother District Council,09/10/2020,091HOUSING,Housing and Community Services,20200,Housing Needs - HB (Housing Benefit),D2514,Accommodation Costs,582.86,MB Hotels Ltd,Accommodation Costs - RRP - Homelessness services Temp Accom - No VAT,2020170,202007
Rother District Council,09/10/2020,091HOUSING,Housing and Community Services,20200,Housing Needs - HB (Housing Benefit),D2514,Accommodation Costs,765,MB Hotels Ltd,Accommodation Costs,2020171,202007
Rother District Council,13/10/2020,091HOUSING,Housing and Community Services,20114,Bexhill Parks & Open Spaces,B1100,Repairs to Premises,385,Gristwood and Toms Limited,Repairs to Premises - Parks - Tree Works,2020172,202007
Rother District Council,13/10/2020,041ENVIRON,Environmental Services,32142,EH Taxi and Private Hire Licenses R + W Partnership,D1201,Equipment & Materials,10,Thomas Design & Graphics Ltd,Equipment & Materials - Carriage/Handling Charge,2020173,202007
Rother District Council,13/10/2020,041ENVIRON,Environmental Services,32142,EH Taxi and Private Hire Licenses R + W Partnership,D2513,Hired and Contracted services,20,Thomas Design & Graphics Ltd,Hired and contracted services - WDC Taxi Licence Plates,2020173,202007
Rother District Council,01/10/2020,091HOUSING,Housing and Community Services,20206,Syrians,D2513,Hired and Contracted services,775,REDACTED PERSONAL DATA,Hired and contracted services - Syrian-Education-Exempt VAT,2020174,202007
Rother District Council,12/10/2020,091HOUSING,Housing and Community Services,20145,Maintenance Services,D1201,Equipment & Materials,16.66,Trade UK Account (Screwfix & B&Q),Equipment & Materials - Purchase of Tools,2020175,202007
Rother District Council,12/10/2020,091HOUSING,Housing and Community Services,20145,Maintenance Services,D1201,Equipment & Materials,33.32,Trade UK Account (Screwfix & B&Q),Equipment & Materials - Purchase of Tools,2020176,202007
Rother District Council,12/10/2020,091HOUSING,Housing and Community Services,20145,Maintenance Services,D1201,Equipment & Materials,58.33,Trade UK Account (Screwfix & B&Q),Equipment & Materials - Purchase of Tools,2020177,202007
Rother District Council,09/09/2020,081ACQUISIT,"Acquisitions, Transformation and Regeneration",20155,Investment properties,B1100,Repairs to Premises,139.66,Alfa Electric Ltd,Repairs to Premises - Repairs - Electrical Works,2020178,202007
Rother District Council,12/10/2020,091HOUSING,Housing and Community Services,20115,Rye Area Parks & Gardens,B1100,Repairs to Premises,521.3,Alfa Electric Ltd,Repairs to Premises - Lighting Repairs,2020179,202007
Rother District Council,09/10/2020,091HOUSING,Housing and Community Services,20206,Syrians,D2513,Hired and Contracted services,"2,696.91",Just Accommodation Ltd,Hired and contracted services - Syrian Resettlement Programme-Rent,2020180,202007
Rother District Council,12/10/2020,999NOREPORT,Housing and Community Services,70745,Capital - Accommodation Strategy,N1008,Equipment,"19,133.12",Black Sheep Engineering Ltd,Capital - Purchase of Equipment,2020181,202007
Rother District Council,13/10/2020,081ACQUISIT,"Acquisitions, Transformation and Regeneration",20118,Tourism,D2923,Grants made,"9,000.00",Battle Chamber of Commerce Marketing,Grants made - SLA Contribution,2020182,202007
Rother District Council,14/10/2020,071STRAT,Strategy and Planning,20255,Local Development Framework,D2513,Hired and Contracted services,"3,120.00",JDi Solutions Ltd,Hired and contracted services - LDF Consultancy,2020183,202007
Rother District Council,12/10/2020,081ACQUISIT,"Acquisitions, Transformation and Regeneration",20267,Property Investment Strategy - 18-40 Beeching Road ( Land and Buildings),B2202,Gas,47.7,Gazprom Marketing & Trading Retail Ltd,Gas - Gas Charges,2020184,202007
Rother District Council,12/10/2020,081ACQUISIT,"Acquisitions, Transformation and Regeneration",20146,West Trading Estate,B2202,Gas,47.7,Gazprom Marketing & Trading Retail Ltd,Gas - Gas Charges,2020185,202007
Rother District Council,08/10/2020,081ACQUISIT,"Acquisitions, Transformation and Regeneration",20146,West Trading Estate,B2202,Gas,29.4,Crown Oil Ltd t/a Crown Gas & Power,Gas - Gas Charges,2020186,202007
Rother District Council,30/09/2020,091HOUSING,Housing and Community Services,20116,Rural Open Spaces & Amenities,B1100,Repairs to Premises,9,REDACTED PERSONAL DATA,Repairs to Premises - Purchase of Materials - Build Maint,2020187,202007
Rother District Council,06/10/2020,041ENVIRON,Environmental Services,32133,EH Food Hyg / Idc / Water Purity R + W Partnership,D2352,Clothing and Uniforms,92.18,MI Hub Ltd T/A Alexandra,Clothing and Uniforms - EnvH- Protective Clothing EnvHealth,2020189,202007
Rother District Council,29/05/2020,081ACQUISIT,"Acquisitions, Transformation and Regeneration",20146,West Trading Estate,B2202,Gas,299.36,Southern Electric (SSE),Gas - Gas Charges,2020190,202007
Rother District Council,15/10/2020,999NOREPORT,Environmental Services,70706,Capital - Disable Facilities Grant,N1012,Capital Advances,854.06,Peabody South East Ltd,Capital Advances Disabled Facilities Grant,2020191,202007
Rother District Council,15/10/2020,999NOREPORT,Environmental Services,70706,Capital - Disable Facilities Grant,N1012,Capital Advances,"2,673.77",REDACTED PERSONAL DATA,Capital Advances Disabled Facilities Grant,2020192,202007
Rother District Council,15/10/2020,999NOREPORT,Environmental Services,70706,Capital - Disable Facilities Grant,N1012,Capital Advances,224.24,Peabody South East Ltd,Capital Advances Disabled Facilities Grant,2020193,202007
Rother District Council,15/10/2020,999NOREPORT,Environmental Services,70706,Capital - Disable Facilities Grant,N1012,Capital Advances,"1,495.00",Prestige Stairlifts Ltd,Capital Advances Disabled Facilities Grant,2020194,202007
Rother District Council,13/10/2020,999NOREPORT,"Acquisitions, Transformation and Regeneration",70736,Capital - 18-40 Beeching Close Refurbishment,N1003,Construction/Conversion,"55,364.18",REDACTED PERSONAL DATA,Construction/Conversion Capital-Contract Payments - General,2020195,202007
Rother District Council,17/04/2020,091HOUSING,Housing and Community Services,20107,Camber Beach & Foreshore,D2623,Radios and licences,"1,990.00",Niro Together Ltd,Radios and licences - Radio/Transmitter Licences,2020197,202007
Rother District Council,18/05/2020,091HOUSING,Housing and Community Services,20107,Camber Beach & Foreshore,D2623,Radios and licences,490,Niro Together Ltd,Radios and licences - Radio/Transmitter Licences,2020198,202007
Rother District Council,05/10/2020,031RESOURCES,Executive Directors & Corporate Core,20276,COVID19 RDC expenditure,D2514,Accommodation Costs,252,Savoy Court Ltd,Accomodation Costs - Housing Due to Covid 19,2020199,202007
Rother District Council,05/10/2020,031RESOURCES,Executive Directors & Corporate Core,20276,COVID19 RDC expenditure,D2514,Accommodation Costs,63,Savoy Court Ltd,Accomodation Costs - Housing Due to Covid 19,2020199,202007
Rother District Council,05/10/2020,091HOUSING,Housing and Community Services,20200,Housing Needs - HB (Housing Benefit),D2514,Accommodation Costs,420,Savoy Court Ltd,Accommodation Costs,2020200,202007
Rother District Council,05/10/2020,091HOUSING,Housing and Community Services,20200,Housing Needs - HB (Housing Benefit),D2514,Accommodation Costs,105,Savoy Court Ltd,Accommodation Costs,2020200,202007
Rother District Council,05/10/2020,091HOUSING,Housing and Community Services,20329,Rough Sleeping Initiative,D2514,Accommodation Costs,252,Savoy Court Ltd,Accommodation Costs,2020201,202007
Rother District Council,05/10/2020,091HOUSING,Housing and Community Services,20329,Rough Sleeping Initiative,D2514,Accommodation Costs,63,Savoy Court Ltd,Accommodation Costs,2020201,202007
Rother District Council,12/10/2020,031RESOURCES,Executive Directors & Corporate Core,20276,COVID19 RDC expenditure,D2514,Accommodation Costs,252,Savoy Court Ltd,Accomodation Costs - Housing Due to Covid 19,2020202,202007
Rother District Council,12/10/2020,031RESOURCES,Executive Directors & Corporate Core,20276,COVID19 RDC expenditure,D2514,Accommodation Costs,63,Savoy Court Ltd,Accomodation Costs - Housing Due to Covid 19,2020202,202007
Rother District Council,12/10/2020,091HOUSING,Housing and Community Services,20200,Housing Needs - HB (Housing Benefit),D2514,Accommodation Costs,420,Savoy Court Ltd,Accommodation Costs,2020203,202007
Rother District Council,12/10/2020,091HOUSING,Housing and Community Services,20200,Housing Needs - HB (Housing Benefit),D2514,Accommodation Costs,105,Savoy Court Ltd,Accommodation Costs,2020203,202007
Rother District Council,12/10/2020,091HOUSING,Housing and Community Services,20329,Rough Sleeping Initiative,D2514,Accommodation Costs,252,Savoy Court Ltd,Accommodation Costs,2020204,202007
Rother District Council,12/10/2020,091HOUSING,Housing and Community Services,20329,Rough Sleeping Initiative,D2514,Accommodation Costs,63,Savoy Court Ltd,Accommodation Costs,2020204,202007
Rother District Council,13/10/2020,091HOUSING,Housing and Community Services,20145,Maintenance Services,D1201,Equipment & Materials,6.66,Trade UK Account (Screwfix & B&Q),Clothing and Uniforms - Mens Protective-Other,2020205,202007
Rother District Council,13/10/2020,091HOUSING,Housing and Community Services,20145,Maintenance Services,D1201,Equipment & Materials,8.33,Trade UK Account (Screwfix & B&Q),Clothing and Uniforms - Mens Protective-Other,2020205,202007
Rother District Council,14/10/2020,101RESOURCES,Resources,20241,Stationery,D2420,General office supplies (Stationery purchased from ext suppliers),33.5,Office Depot UK Ltd,General office supplies - Stationery (Stationery Services to buy ONLY),2020206,202007
Rother District Council,15/10/2020,091HOUSING,Housing and Community Services,20137,Car Parks,D1201,Equipment & Materials,80,Contract Sign Systems,Equipment & Materials - Carriage/Handling Charge,2020207,202007
Rother District Council,15/10/2020,091HOUSING,Housing and Community Services,20137,Car Parks,D1201,Equipment & Materials,"1,180.70",Contract Sign Systems,Equipment & Materials - Purchase of Signs,2020207,202007
Rother District Council,14/10/2020,091HOUSING,Housing and Community Services,20137,Car Parks,B1100,Repairs to Premises,343.5,Flowbird Smart City UK Ltd,Repairs to Premises - Car Park Maintenance,2020208,202007
Rother District Council,14/10/2020,091HOUSING,Housing and Community Services,20137,Car Parks,D2513,Hired and Contracted services,46.5,Flowbird Smart City UK Ltd,Hired and contracted services - Car Parks-CALE Online Software Service for ticket machines,2020209,202007
Rother District Council,14/10/2020,031RESOURCES,Executive Directors & Corporate Core,20173,Administrative Offices - Town Hall,B1100,Repairs to Premises,"1,590.00",JS Wadeson Cleaning Services Ltd,Repairs to Premises - Specified Repairs and Works listed,2020210,202007
Rother District Council,08/10/2020,091HOUSING,Housing and Community Services,20109,Sports Development,D2927,Services Facilitated by External Grants,125,Active Sussex,Services Facilitated by External - Grant-Sports Development-Active Rother,2020211,202007
Rother District Council,14/10/2020,041ENVIRON,Environmental Services,32134,EH Pollution R + W Partnership,D1201,Equipment & Materials,120.1,Gradko International Ltd,Equipment & Materials - EnvH- Air Quality Maintenance Contr,2020212,202007
Rother District Council,13/10/2020,041ENVIRON,Environmental Services,32140,EN Wealden Training (WEALDEN ONLY) R + W Partnership,D1201,Equipment & Materials,8,Highfield Awarding Body for Compliance Ltd,Equipment & Materials - Carriage/Handling Charge,2020213,202007
Rother District Council,13/10/2020,041ENVIRON,Environmental Services,32140,EN Wealden Training (WEALDEN ONLY) R + W Partnership,D2513,Hired and Contracted services,101.25,Highfield Awarding Body for Compliance Ltd,Hired and contracted services - Service fee paid,2020213,202007
Rother District Council,07/10/2020,091HOUSING,Housing and Community Services,20204,Housing Administration Account,A1110,Agency Staff,"1,221.00","G2V Recruitment Group Ltd, t/a Vivid Resourcing",Agency Staff,2020214,202007
Rother District Council,14/10/2020,091HOUSING,Housing and Community Services,20204,Housing Administration Account,A1110,Agency Staff,759,"G2V Recruitment Group Ltd, t/a Vivid Resourcing",Agency Staff,2020215,202007
Rother District Council,28/09/2020,091HOUSING,Housing and Community Services,20261,"TA Purchases (prev - 41 Jameson Mews, Bexhill on Sea)",B1100,Repairs to Premises,16.04,Saint-Gobain Building Distribution Ltd t/a Jewson,Repairs to Premises - Purchase of Materials - Build Maint,2020216,202007
Rother District Council,30/09/2020,091HOUSING,Housing and Community Services,20261,"TA Purchases (prev - 41 Jameson Mews, Bexhill on Sea)",B1100,Repairs to Premises,34.91,Saint-Gobain Building Distribution Ltd t/a Jewson,Repairs to Premises - Purchase of Materials - Build Maint,2020217,202007
Rother District Council,16/10/2020,091HOUSING,Housing and Community Services,20137,Car Parks,B1100,Repairs to Premises,61.12,Littlewood Fencing Ltd,Repairs to Premises - Purchase of Materials - Build Maint,2020218,202007
Rother District Council,16/10/2020,091HOUSING,Housing and Community Services,20114,Bexhill Parks & Open Spaces,B1100,Repairs to Premises,8.11,Littlewood Fencing Ltd,Repairs to Premises - Purchase of Materials - Build Maint,2020219,202007
Rother District Council,14/10/2020,091HOUSING,Housing and Community Services,20261,"TA Purchases (prev - 41 Jameson Mews, Bexhill on Sea)",B1100,Repairs to Premises,14.74,Trade UK Account (Screwfix & B&Q),Repairs to Premises - Purchase of Materials - Build Maint,2020220,202007
Rother District Council,14/10/2020,091HOUSING,Housing and Community Services,20125,Coast Protection,B1100,Repairs to Premises,91.67,Trade UK Account (Screwfix & B&Q),Repairs to Premises - Purchase of Materials - Build Maint,2020221,202007
Rother District Council,07/10/2020,091HOUSING,Housing and Community Services,20201,Homelessness and Prevention,D2514,Accommodation Costs,285.65,South East Guardians Ltd (SEG),Accommodation Costs - Homelessness services Deposit for Landlords,2020222,202007
Rother District Council,07/10/2020,091HOUSING,Housing and Community Services,20201,Homelessness and Prevention,D2514,Accommodation Costs,325,South East Guardians Ltd (SEG),Accommodation Costs - Homelessness services Rent in Advance for Homeless,2020222,202007
Rother District Council,23/09/2020,091HOUSING,Housing and Community Services,20138,Residual Highway Services,B1100,Repairs to Premises,363.66,Four Seasons Plastics,Repairs to Premises - Purchase of Materials - Build Maint,2020223,202007
Rother District Council,14/09/2020,091HOUSING,Housing and Community Services,20102,Rother Museum Services,B1100,Repairs to Premises,580,CountyClean Environmental Services Ltd,Repairs to Premises - Cesspool Pumping station service/Call out,2020224,202007
Rother District Council,15/10/2020,081ACQUISIT,"Acquisitions, Transformation and Regeneration",20273,Environment Strategy,D2513,Hired and Contracted services,"3,108.00",West Sussex County Council,Hired and contracted services - Direct Mail Delivery cost,2020225,202007
Rother District Council,16/10/2020,999NOREPORT,Housing and Community Services,70752,Capital - Battle Health Pathway Project CIL,N1005,Other fees,"75,000.00",Battle Town Council,Other Fees - Capital exp Std VAT,2020226,202007
Rother District Council,16/10/2020,031RESOURCES,Executive Directors & Corporate Core,20173,Administrative Offices - Town Hall,B2611,Contract cleaning,30,Data Shredding Services Ltd,Third party payment private contractors - Commercial Waste Collection Contract,2020227,202007
Rother District Council,16/10/2020,091HOUSING,Housing and Community Services,20200,Housing Needs - HB (Housing Benefit),D2514,Accommodation Costs,413,Lillybank Homes Ltd,Accommodation Costs,2020228,202007
Rother District Council,16/10/2020,091HOUSING,Housing and Community Services,20200,Housing Needs - HB (Housing Benefit),D2514,Accommodation Costs,24.99,Lillybank Homes Ltd,Accommodation Costs,2020228,202007
Rother District Council,16/10/2020,091HOUSING,Housing and Community Services,20200,Housing Needs - HB (Housing Benefit),D2514,Accommodation Costs,343,Lillybank Homes Ltd,Accommodation Costs,2020228,202007
Rother District Council,16/10/2020,091HOUSING,Housing and Community Services,20200,Housing Needs - HB (Housing Benefit),D2514,Accommodation Costs,413,Lillybank Homes Ltd,Accommodation Costs,2020228,202007
Rother District Council,16/10/2020,091HOUSING,Housing and Community Services,20200,Housing Needs - HB (Housing Benefit),D2514,Accommodation Costs,24.99,Lillybank Homes Ltd,Accommodation Costs,2020228,202007
Rother District Council,16/10/2020,091HOUSING,Housing and Community Services,20200,Housing Needs - HB (Housing Benefit),D2514,Accommodation Costs,450,Lillybank Homes Ltd,Accommodation Costs,2020228,202007
Rother District Council,16/10/2020,091HOUSING,Housing and Community Services,20200,Housing Needs - HB (Housing Benefit),D2514,Accommodation Costs,455,Lillybank Homes Ltd,Accommodation Costs,2020228,202007
Rother District Council,16/10/2020,091HOUSING,Housing and Community Services,20200,Housing Needs - HB (Housing Benefit),D2514,Accommodation Costs,24.99,Lillybank Homes Ltd,Accommodation Costs,2020228,202007
Rother District Council,16/10/2020,091HOUSING,Housing and Community Services,20200,Housing Needs - HB (Housing Benefit),D2514,Accommodation Costs,413,Lillybank Homes Ltd,Accommodation Costs,2020228,202007
Rother District Council,16/10/2020,091HOUSING,Housing and Community Services,20200,Housing Needs - HB (Housing Benefit),D2514,Accommodation Costs,455,Lillybank Homes Ltd,Accommodation Costs,2020228,202007
Rother District Council,16/10/2020,091HOUSING,Housing and Community Services,20200,Housing Needs - HB (Housing Benefit),D2514,Accommodation Costs,362.5,Lillybank Homes Ltd,Accommodation Costs,2020228,202007
Rother District Council,16/10/2020,091HOUSING,Housing and Community Services,20329,Rough Sleeping Initiative,D2514,Accommodation Costs,455,Lillybank Homes Ltd,Accommodation Costs,2020228,202007
Rother District Council,16/10/2020,091HOUSING,Housing and Community Services,20329,Rough Sleeping Initiative,D2514,Accommodation Costs,24.99,Lillybank Homes Ltd,Accommodation Costs,2020228,202007
Rother District Council,01/11/2020,091HOUSING,Housing and Community Services,20206,Syrians,D2513,Hired and Contracted services,237.33,Amberley Nursery Ltd,Hired and contracted services - Syrian-Education-Exempt VAT,2020229,202007
Rother District Council,13/10/2020,031RESOURCES,Executive Directors & Corporate Core,20173,Administrative Offices - Town Hall,D1201,Equipment & Materials,192.5,J S Fire Protection Ltd,Equipment & Materials - Fire Equipment Maintenance,2020230,202007
Rother District Council,13/10/2020,031RESOURCES,Executive Directors & Corporate Core,20176,Administrative Offices - Print Room,D1201,Equipment & Materials,71,J S Fire Protection Ltd,Equipment & Materials - Fire Equipment Maintenance,2020230,202007
Rother District Council,13/10/2020,031RESOURCES,Executive Directors & Corporate Core,20175,Administrative Offices - T.H. Annex (NOT CHP),D1201,Equipment & Materials,114.7,J S Fire Protection Ltd,Equipment & Materials - Fire Equipment Maintenance,2020230,202007
Rother District Council,13/10/2020,091HOUSING,Housing and Community Services,20123,Cemeteries,D1201,Equipment & Materials,52.6,J S Fire Protection Ltd,Equipment & Materials - Fire Equipment Maintenance,2020230,202007
Rother District Council,13/10/2020,091HOUSING,Housing and Community Services,20114,Bexhill Parks & Open Spaces,D1201,Equipment & Materials,167,J S Fire Protection Ltd,Equipment & Materials - Fire Equipment Maintenance,2020230,202007
